Workbook

Sheet 1. Info
AB1: Alectra Utilities Corporation-Brampton Rate Zone | AC1: 2021 RTSR Workform for Electricity Distributors
AB2: Alectra Utilities Corporation-Enersource Rate Zone | AC2: v 1.0
AB3: Alectra Utilities Corporation-Horizon Utilities Rate Zone
AB4: Alectra Utilities Corporation-PowerStream Rate Zone
AB5: Alectra Utilities Corporation-Guelph Rate Zone
AB6: Algoma Power Inc.
AB7: Atikokan Hydro Inc.
AB8: Bluewater Power Distribution Corporation
AB9: Brantford Power Inc.
AB10: Burlington Hydro Inc.
AB11: Canadian Niagara Power Inc.
AB12: Centre Wellington Hydro Ltd.
A13: Drop-down lists are shaded blue; Input cells are shaded green. | AB13: Chapleau Public Utilities Corporation
AB14: Cooperative Hydro Embrun Inc.
C15: Utility Name | D15: PUC Distribution Inc. | AB15: E.L.K. Energy Inc.
AB16: Elexicon Energy Inc.-Whitby Rate Zone
C17: Assigned EB Number | D17: EB-2022-0059 | AB17: Elexicon Energy Inc.-Veridian Rate Zone
AB18: Energy+ Inc.
C19: Name and Title of Contact | D19: Tyler Kasubeck, Regulatory Financial Analyst | AB19: Entegrus Powerlines Inc.-For Entegrus-Main Rate Zone
AB20: Entegrus Powerlines Inc.-For Former St. Thomas Energy Rate Zone
C21: Phone Number | D21: 705-759-3009 | AB21: ENWIN Utilities Ltd.
AB22: EPCOR Electricity Distribution Ontario Inc.
C23: Email Address | D23: tyler.kasubeck@ssmpuc.com | AB23: ERTH Power Corporation - ERTH Power Main Rate Zone
AB24: ERTH POWER CORPORATION – GODERICH RATE ZONE
C25: Last COS Re-based Year | D25: 2018 | AB25: Essex Powerlines Corporation
AB26: Festival Hydro Inc.
AB27: Fort Frances Power Corporation
AB28: Greater Sudbury Hydro Inc.
AB29: Grimsby Power Incorporated
AB30: Halton Hills Hydro Inc.
AB31: Hearst Power Distribution Co. Ltd.
AB32: Hydro 2000 Inc.
AB33: Hydro Hawkesbury Inc.
AB34: Hydro One Networks Inc.
AB35: Hydro One Networks Inc.-Former Haldimand County Hydro Inc. Service Area
AB36: Hydro One Networks Inc.-Former Norfolk Power Distribution Inc. Service Area
AB37: Hydro One Networks Inc.-Former Woodstock Hydro Services Inc. Service Area
AB38: Hydro One Remote Communites Inc.
AB39: Hydro Ottawa Limited
AB40: InnPower Corporation
AB41: Kingston Hydro Corporation
AB42: Kitchener-Wilmot Hydro Inc.
AB43: Lakefront Utilities Inc.
AB44: Lakeland Power Distribution Ltd.
AB45: Lakeland Power Distribution Ltd.-Parry Sound Service Area
AB46: London Hydro Inc.
AB47: Milton Hydro Distribution Inc.
AB48: Newmarket-Tay Power Distribution Ltd.-For Former Midland Power Utility Rate Zone
AB49: Newmarket-Tay Power Distribution Ltd.-For Newmarket-Tay Power Main Rate Zone
AB50: Niagara Peninsula Energy Inc.
AB51: Niagara-on-the-Lake Hydro Inc.
AB52: North Bay Hydro Distribution Limited - Espanola service territory
AB53: North Bay Hydro Distribution Limited - North Bay service territory
AB54: Northern Ontario Wires Inc.
AB55: Oakville Hydro Electricity Distribution Inc.
AB56: Orangeville Hydro Limited
AB57: Orillia Power Distribution Corporation
AB58: Oshawa PUC Networks Inc.
AB59: Ottawa River Power Corporation
AB60: Peterborough Distribution Incorporated
AB61: PUC Distribution Inc.
AB62: Renfrew Hydro Inc.
AB63: Rideau St. Lawrence Distribution Inc.
AB64: Sioux Lookout Hydro Inc.
AB65: Synergy North Corporation-Kenora Rate Zone
AB66: Synergy North Corporation-Thunder Bay Rate Zone
AB67: Tillsonburg Hydro Inc.
AB68: Toronto Hydro-Electric System Limited
AB69: Wasaga Distribution Inc.
AB70: Waterloo North Hydro Inc.
AB71: Welland Hydro-Electric System Corp.
AB72: Wellington North Power Inc.
AB73: Westario Power Inc.

Sheet 2021 List (hidden)
A1: Alectra Utilities Corporation-Brampton Rate Zone | B1: HHPNS717
A2: Alectra Utilities Corporation-Enersource Rate Zone | B2: HHPNS717
A3: Alectra Utilities Corporation-Horizon Utilities Rate Zone | B3: HHPNS717
A4: Alectra Utilities Corporation-PowerStream Rate Zone | B4: HHPNS717
A5: Alectra Utilities Corporation-Guelph Rate Zone | B5: HHPNS717
A6: Algoma Power Inc. | B6: WKBSV849
A7: Atikokan Hydro Inc. | B7: NJYBW716
A8: Bluewater Power Distribution Corporation | B8: GQQHM388
A9: Brantford Power Inc. | B9: SFXZP935
A10: Burlington Hydro Inc. | B10: OARZC118
A11: Canadian Niagara Power Inc. | B11: HJHBH994
A12: Centre Wellington Hydro Ltd. | B12: KQEEH473
A13: Chapleau Public Utilities Corporation | B13: CPEFQ593
A14: Cooperative Hydro Embrun Inc. | B14: QXHJU641
A15: E.L.K. Energy Inc. | B15: AVXSO594
A16: Elexicon Energy Inc.-Whitby Rate Zone | B16: JMNNR431
A17: Elexicon Energy Inc.-Veridian Rate Zone | B17: JMNNR431
A18: Energy+ Inc. | B18: JKBZG525
A19: Entegrus Powerlines Inc.-For Entegrus-Main Rate Zone | B19: YEOQG654
A20: Entegrus Powerlines Inc.-For Former St. Thomas Energy Rate Zone | B20: YEOQG654
A21: ENWIN Utilities Ltd. | B21: PTLUC812
A22: EPCOR Electricity Distribution Ontario Inc. | B22: ADICB565
A23: ERTH Power Corporation - ERTH Power Main Rate Zone | B23: LRECV427
A24: ERTH POWER CORPORATION – GODERICH RATE ZONE | B24: KTCNY552
A25: Espanola Regional Hydro Distribution Corporation | B25: YEPCI143
A26: Essex Powerlines Corporation | B26: GRHTW113
A27: Festival Hydro Inc. | B27: GMGHU415
A28: Fort Frances Power Corporation | B28: YTPWF351
A29: Greater Sudbury Hydro Inc. | B29: YCYKQ642
A30: Grimsby Power Incorporated | B30: ADZFM459
A31: Halton Hills Hydro Inc. | B31: RVWKN794
A32: Hearst Power Distribution Co. Ltd. | B32: KESKM585
A33: Hydro 2000 Inc. | B33: MQFNL784
A34: Hydro Hawkesbury Inc. | B34: FNDHH648
A35: Hydro One Networks Inc. | B35: PTREM828
A36: Hydro One Networks Inc.-Former Haldimand County Hydro Inc. Service Area | B36: PTREM828
A37: Hydro One Networks Inc.-Former Norfolk Power Distribution Inc. Service Area | B37: PTREM828
A38: Hydro One Networks Inc.-Former Woodstock Hydro Services Inc. Service Area | B38: PTREM828
A39: Hydro One Remote Communites Inc. | B39: UBBYF452
A40: Hydro Ottawa Limited | B40: NSBED625
A41: InnPower Corporation | B41: TXKTT167
A42: Kingston Hydro Corporation | B42: ZHKLA874
A43: Kitchener-Wilmot Hydro Inc. | B43: YLJHT264
A44: Lakefront Utilities Inc. | B44: YLCEC559
A45: Lakeland Power Distribution Ltd. | B45: NHKJF259
A46: Lakeland Power Distribution Ltd.-Parry Sound Service Area | B46: NHKJF259
A47: London Hydro Inc. | B47: SLRXO177
A48: Milton Hydro Distribution Inc. | B48: UIFEM157
A49: Newmarket-Tay Power Distribution Ltd.-For Former Midland Power Utility Rate Zone | B49: RUZIU984
A50: Newmarket-Tay Power Distribution Ltd.-For Newmarket-Tay Power Main Rate Zone | B50: RUZIU984
A51: Niagara Peninsula Energy Inc. | B51: KSUYD122
A52: Niagara-on-the-Lake Hydro Inc. | B52: QHCKN852
A53: North Bay Hydro Distribution Limited | B53: FUIJX538
A54: Northern Ontario Wires Inc. | B54: PWKJP953
A55: Oakville Hydro Electricity Distribution Inc. | B55: JEGGW178
A56: Orangeville Hydro Limited | B56: TVKSH414
A57: Orillia Power Distribution Corporation | B57: DUISI693
A58: Oshawa PUC Networks Inc. | B58: PQZCY963
A59: Ottawa River Power Corporation | B59: GTLBW445
A60: Peterborough Distribution Incorporated | B60: XCFPH269
A61: PUC Distribution Inc. | B61: MLWYG784
A62: Renfrew Hydro Inc. | B62: QDKIF127
A63: Rideau St. Lawrence Distribution Inc. | B63: AMZEN437
A64: Sioux Lookout Hydro Inc. | B64: ACEVX242
A65: Synergy North Corporation-Kenora Rate Zone | B65: DSPWZ318
A66: Synergy North Corporation-Thunder Bay Rate Zone | B66: DSPWZ318
A67: Tillsonburg Hydro Inc. | B67: OLIUU862
A68: Toronto Hydro-Electric System Limited | B68: NIOJF461
A69: Wasaga Distribution Inc. | B69: ZYZFO848
A70: Waterloo North Hydro Inc. | B70: ASEGZ471
A71: Welland Hydro-Electric System Corp. | B71: IOKHC383
A72: Wellington North Power Inc. | B72: SKVKJ649
A73: Westario Power Inc. | B73: TPFNQ593

Sheet Sheet1 (hidden)
A5: 2. Table of Contents | B5: X
A6: 3. RRR Data | B6: X
A7: 4. UTRs and Sub-Transmission | B7: X
A8: 5. Historical Wholesale | B8: X
A9: 6. Current Wholesale | B9: X
A10: 7. Forecast Wholesale | B10: X
A11: 8. RTSR Rates to Forecast | B11: X

Sheet 2. Table of Contents
D20: 1. Info | I20: 5. Historical Wholesale
D22: 2. Table of Contents | I22: 6. Current Wholesale
D24: 3. RRR Data | I24: 7. Forecast Wholesale
D26: 4. UTRs and Sub-Transmission | I26: 8. RTSR Rates to Forecast

Sheet 3. RRR Data
AZ1: 1
B15: Rate Class | C15: Rate Description | D15: Unit | E15: Rate | F15: Non-Loss Adjusted Metered kWh | G15: Non-Loss Adjusted Metered kW | H15: Applicable Loss Factor eg: (1.0325) | I15: Loss Adjusted Billed kWh
B17: RESIDENTIAL SERVICE CLASSIFICATION | C17: Retail Transmission Rate - Network Service Rate | D17: $/kWh | E17: 0.0086 | F17: 292492184.4 | G17: 0 | H17: 1.0481 | I17: =F17*H17 -> 306561058.4
B18: GENERAL SERVICE LESS THAN 50 KW SERVICE CLASSIFICATION | C18: Retail Transmission Rate - Network Service Rate | D18: $/kWh | E18: 0.008 | F18: 88569433.44 | G18: 0 | H18: 1.0481 | I18: 92829623.19
B19: GENERAL SERVICE 50 to 4,999 kW SERVICE CLASSIFICATION | C19: Retail Transmission Rate - Network Service Rate | D19: $/kW | E19: 3.233 | F19: 87886230.28 | G19: 214683 | H19: 1.0481 | I19: 92113557.95 | J19: For this line item, please ensure that the consumption and demand values have been adjusted to account for non-interval/interval customers.
B20: GENERAL SERVICE 50 to 4,999 kW SERVICE CLASSIFICATION | C20: Retail Transmission Rate - Network Service Rate - Interval Metered | D20: $/kW | E20: 4.0669 | F20: 131829140.7 | G20: 322024 | H20: 1.0481 | I20: 138170122.4 | J20: For this line item, please ensure that the consumption and demand values have been adjusted to account for non-interval/interval customers.
B21: UNMETERED SCATTERED LOAD SERVICE CLASSIFICATION | C21: Retail Transmission Rate - Network Service Rate | D21: $/kWh | E21: 0.008 | F21: 877917.99 | G21: 0 | H21: 1.0481 | I21: 920145.8453
B22: SENTINEL LIGHTING SERVICE CLASSIFICATION | C22: Retail Transmission Rate - Network Service Rate | D22: $/kW | E22: 2.4511 | F22: 203610.79 | G22: 596.41 | H22: 1.0481 | I22: 213404.469
B23: STREET LIGHTING SERVICE CLASSIFICATION | C23: Retail Transmission Rate - Network Service Rate | D23: $/kW | E23: 2.4391 | F23: 2459994.48 | G23: 7201.8 | H23: 1.0481 | I23: 2578320.214

Sheet 4. UTRs and Sub-Transmission
B18: Uniform Transmission Rates | C18: Unit | E18: 2021 Jan to Jun | G18: 2021 Jul to Dec | I18: 2022 Jan to Mar | J18: 2022 Apr to Dec | L18: 2023
B20: Rate Description | E20: Rate | I20: Rate | J20: Rate | L20: Rate
B22: Network Service Rate | C22: kW | E22: 4.67 | G22: 4.9 | I22: 5.13 | J22: 5.46 | L22: =J22 -> 5.46
B24: Line Connection Service Rate | C24: kW | E24: 0.77 | G24: 0.81 | I24: 0.88 | J24: 0.88 | L24: =J24 -> 0.88
B26: Transformation Connection Service Rate | C26: kW | E26: 2.53 | G26: 2.65 | I26: 2.81 | J26: 2.81 | L26: =J26 -> 2.81
B29: Hydro One Sub-Transmission Rates | C29: Unit | E29: 2021 | I29: 2022 | L29: 2023
B33: Rate Description | E33: Rate | I33: Rate | L33: Rate
B35: Network Service Rate | C35: kW | E35: 3.4778 | I35: 4.3473 | L35: =I35 -> 4.3473
B37: Line Connection Service Rate | C37: kW | E37: 0.8128 | F37: 0.8045 | I37: 0.6788 | L37: =I37 -> 0.6788
B39: Transformation Connection Service Rate | C39: kW | E39: 2.0458 | F39: 2.0194 | I39: 2.3267 | L39: =I39 -> 2.3267
B41: Both Line and Transformation Connection Service Rate | C41: kW | E41: 2.8586 | F41: =SUM(F37,F39) -> 2.8239 | I41: 3.0055 | L41: =L37+L39 -> 3.0055
B44: If needed, add extra host here. (I) | C44: Unit | E44: 2021 | I44: 2022 | L44: 2023
B48: Rate Description | E48: Rate | H48: Rate | L48: Rate
B50: Network Service Rate | C50: kW
B52: Line Connection Service Rate | C52: kW
B54: Transformation Connection Service Rate | C54: kW
B56: Both Line and Transformation Connection Service Rate | C56: kW | E56: =E54+E52 -> 0 | H56: =H54+H52 -> 0 | I56: =J54+J52 -> 0 | L56: =L54+L52 -> 0
B59: If needed, add extra host here. (II) | C59: Unit | E59: 2021 | I59: 2022 | L59: 2023
B63: Rate Description | E63: Rate | H63: Rate | L63: Rate
B65: Network Service Rate | C65: kW
B67: Line Connection Service Rate | C67: kW
B69: Transformation Connection Service Rate | C69: kW
B71: Both Line and Transformation Connection Service Rate | C71: kW | E71: =E69+E67 -> 0 | H71: =H69+H67 -> 0 | I71: =J69+J67 -> 0 | L71: =L69+L67 -> 0
E73: Historical 2021 | I73: Current 2022 | L73: Forecast 2023
B74: Low Voltage Switchgear Credit (if applicable, enter as a negative value) | C74: $
E75: Historical 2021 | I75: Current 2022 | L75: Forecast 2023
B76: Low Voltage Switchgear Credit (if applicable, enter as a negative value) | C76: $

Sheet 5. Historical Wholesale
B21: IESO | D21: Network | H21: Line Connection | L21: Transformation Connection | P21: Total Connection
B22: Month | D22: Units Billed | E22: Rate | F22: Amount | H22: Units Billed | I22: Rate | J22: Amount | L22: Units Billed | M22: Rate | N22: Amount | P22: Amount
B24: January | D24: 107975 | E24: =IF(D24<>0,F24/D24,0) -> 4.67 | F24: 504243.25 | I24: =IF(H24<>0,J24/H24,0) -> 0 | M24: =IF(L24<>0,N24/L24,0) -> 0 | P24: =J24+N24 -> 0
B25: February | D25: 108561 | E25: 4.67 | F25: 506979.87 | I25: 0 | M25: 0 | P25: 0
B26: March | D26: 105073 | E26: 4.67 | F26: 490690.91 | I26: 0 | M26: 0 | P26: 0
B27: April | D27: 87429 | E27: 4.67 | F27: 408293.43 | I27: 0 | M27: 0 | P27: 0
B28: May | D28: 64144 | E28: 4.67 | F28: 299552.48 | I28: 0 | M28: 0 | P28: 0
B29: June | D29: 72483 | E29: 4.67 | F29: 338495.61 | I29: 0 | M29: 0 | P29: 0
B30: July | D30: 69449 | E30: 4.9 | F30: 340300.1 | I30: 0 | M30: 0 | P30: 0
B31: August | D31: 74032 | E31: 4.9 | F31: 362756.8 | I31: 0 | M31: 0 | P31: 0
B32: September | D32: 68321 | E32: 4.9 | F32: 334772.9 | I32: 0 | M32: 0 | P32: 0
B33: October | D33: 73309 | E33: 4.9 | F33: 359214.1 | I33: 0 | M33: 0 | P33: 0
B34: November | D34: 95200 | E34: 4.9 | F34: 466480 | I34: 0 | M34: 0 | P34: 0
B35: December | D35: 106596 | E35: 4.9 | F35: 522320.4 | I35: 0 | M35: 0 | P35: 0
B37: Total | D37: =SUM(D24:D35) -> 1032572 | E37: =IF(D37<>0,F37/D37,0) -> 4.778455982 | F37: =SUM(F24:F35) -> 4934099.85 | H37: =SUM(H24:H35) -> 0 | I37: =IF(H37<>0,J37/H37,0) -> 0 | J37: =SUM(J24:J35) -> 0 | L37: =SUM(L24:L35) -> 0 | M37: =IF(L37<>0,N37/L37,0) -> 0 | N37: =SUM(N24:N35) -> 0 | P37: =SUM(P24:P35) -> 0
B39: Hydro One | D39: Network | H39: Line Connection | L39: Transformation Connection | P39: Total Connection
B41: Month | D41: Units Billed | E41: Rate | F41: Amount | H41: Units Billed | I41: Rate | J41: Amount | L41: Units Billed | M41: Rate | N41: Amount | P41: Amount
B43: January | E43: =ROUND(IF(D43<>0,F43/D43,0),4) -> 0 | I43: =ROUND(IF(H43<>0,J43/H43,0),4) -> 0 | M43: =ROUND(IF(L43<>0,N43/L43,0),4) -> 0 | P43: =J43+N43 -> 0
B44: February | E44: =ROUND(IF(D44<>0,F44/D44,0),4) -> 0 | I44: =ROUND(IF(H44<>0,J44/H44,0),4) -> 0 | M44: =ROUND(IF(L44<>0,N44/L44,0),4) -> 0 | P44: 0
B45: March | E45: 0 | I45: 0 | M45: 0 | P45: 0
B46: April | E46: 0 | I46: 0 | M46: 0 | P46: 0
B47: May | E47: 0 | I47: 0 | M47: 0 | P47: 0
B48: June | E48: 0 | I48: 0 | M48: 0 | P48: 0
B49: July | E49: 0 | I49: 0 | M49: 0 | P49: 0
B50: August | E50: 0 | I50: 0 | M50: 0 | P50: 0
B51: September | E51: 0 | I51: 0 | M51: 0 | P51: 0
B52: October | E52: 0 | I52: 0 | M52: 0 | P52: 0
B53: November | E53: 0 | I53: 0 | M53: 0 | P53: 0
B54: December | E54: 0 | I54: 0 | M54: 0 | P54: 0
B56: Total | D56: =SUM(D43:D54) -> 0 | E56: =IF(D56<>0,F56/D56,0) -> 0 | F56: =SUM(F43:F54) -> 0 | H56: =SUM(H43:H54) -> 0 | I56: =IF(H56<>0,J56/H56,0) -> 0 | J56: =SUM(J43:J54) -> 0 | L56: =SUM(L43:L54) -> 0 | M56: =IF(L56<>0,N56/L56,0) -> 0 | N56: =SUM(N43:N54) -> 0 | P56: =SUM(P43:P54) -> 0
B58: Add Extra Host Here (I) | D58: Network | H58: Line Connection | L58: Transformation Connection | P58: Total Connection
B59: (if needed)
B60: Month | D60: Units Billed | E60: Rate | F60: Amount | H60: Units Billed | I60: Rate | J60: Amount | L60: Units Billed | M60: Rate | N60: Amount | P60: Amount
B62: January | E62: =IF(D62<>0,F62/D62,0) -> 0 | I62: =IF(H62<>0,J62/H62,0) -> 0 | M62: =IF(L62<>0,N62/L62,0) -> 0 | P62: =J62+N62 -> 0
B63: February | E63: 0 | I63: 0 | M63: 0 | P63: 0
B64: March | E64: 0 | I64: 0 | M64: 0 | P64: 0
B65: April | E65: 0 | I65: 0 | M65: 0 | P65: 0
B66: May | E66: 0 | I66: 0 | M66: 0 | P66: 0
B67: June | E67: 0 | I67: 0 | M67: 0 | P67: 0
B68: July | E68: 0 | I68: 0 | M68: 0 | P68: 0
B69: August | E69: 0 | I69: 0 | M69: 0 | P69: 0
B70: September | E70: 0 | I70: 0 | M70: 0 | P70: 0
B71: October | E71: 0 | I71: 0 | M71: 0 | P71: 0
B72: November | E72: 0 | I72: 0 | M72: 0 | P72: 0
B73: December | E73: 0 | I73: 0 | M73: 0 | P73: 0
B75: Total | D75: =SUM(D62:D73) -> 0 | E75: =IF(D75<>0,F75/D75,0) -> 0 | F75: =SUM(F62:F73) -> 0 | H75: =SUM(H62:H73) -> 0 | I75: =IF(H75<>0,J75/H75,0) -> 0 | J75: =SUM(J62:J73) -> 0 | L75: =SUM(L62:L73) -> 0 | M75: =IF(L75<>0,N75/L75,0) -> 0 | N75: =SUM(N62:N73) -> 0 | P75: =SUM(P62:P73) -> 0
B77: Add Extra Host Here (II) | D77: Network | H77: Line Connection | L77: Transformation Connection | P77: Total Connection
B78: (if needed)
B79: Month | D79: Units Billed | E79: Rate | F79: Amount | H79: Units Billed | I79: Rate | J79: Amount | L79: Units Billed | M79: Rate | N79: Amount | P79: Amount
B81: January | E81: =IF(D81<>0,F81/D81,0) -> 0 | I81: =IF(H81<>0,J81/H81,0) -> 0 | M81: =IF(L81<>0,N81/L81,0) -> 0 | P81: =J81+N81 -> 0
B82: February | E82: 0 | I82: 0 | M82: 0 | P82: 0
B83: March | E83: 0 | I83: 0 | M83: 0 | P83: 0
B84: April | E84: 0 | I84: 0 | M84: 0 | P84: 0
B85: May | E85: 0 | I85: 0 | M85: 0 | P85: 0
B86: June | E86: 0 | I86: 0 | M86: 0 | P86: 0
B87: July | E87: 0 | I87: 0 | M87: 0 | P87: 0
B88: August | E88: 0 | I88: 0 | M88: 0 | P88: 0
B89: September | E89: 0 | I89: 0 | M89: 0 | P89: 0
B90: October | E90: 0 | I90: 0 | M90: 0 | P90: 0
B91: November | E91: 0 | I91: 0 | M91: 0 | P91: 0
B92: December | E92: 0 | I92: 0 | M92: 0 | P92: 0
B94: Total | D94: =SUM(D81:D92) -> 0 | E94: =IF(D94<>0,F94/D94,0) -> 0 | F94: =SUM(F81:F92) -> 0 | H94: =SUM(H81:H92) -> 0 | I94: =IF(H94<>0,J94/H94,0) -> 0 | J94: =SUM(J81:J92) -> 0 | L94: =SUM(L81:L92) -> 0 | M94: =IF(L94<>0,N94/L94,0) -> 0 | N94: =SUM(N81:N92) -> 0 | P94: =SUM(P81:P92) -> 0
B96: Total | D96: Network | H96: Line Connection | L96: Transformation Connection | P96: Total Connection
B98: Month | D98: Units Billed | E98: Rate | F98: Amount | H98: Units Billed | I98: Rate | J98: Amount | L98: Units Billed | M98: Rate | N98: Amount | P98: Amount
B100: January | D100: =D24+D43+D62+D81 -> 107975 | E100: =IF(D100<>0,F100/D100,0) -> 4.67 | F100: =F24+F43+F62+F81 -> 504243.25 | H100: =H24+H43+H62+H81 -> 0 | I100: =IF(H100<>0,J100/H100,0) -> 0 | J100: =J24+J43+J62+J81 -> 0 | L100: =L24+L43+L62+L81 -> 0 | M100: =IF(L100<>0,N100/L100,0) -> 0 | N100: =N24+N43+N62+N81 -> 0 | P100: =J100+N100 -> 0
B101: February | D101: =D25+D44+D63+D82 -> 108561 | E101: 4.67 | F101: =F25+F44+F63+F82 -> 506979.87 | H101: =H25+H44+H63+H82 -> 0 | I101: 0 | J101: =J25+J44+J63+J82 -> 0 | L101: =L25+L44+L63+L82 -> 0 | M101: 0 | N101: =N25+N44+N63+N82 -> 0 | P101: 0
B102: March | D102: 105073 | E102: 4.67 | F102: 490690.91 | H102: 0 | I102: 0 | J102: 0 | L102: 0 | M102: 0 | N102: 0 | P102: 0
B103: April | D103: 87429 | E103: 4.67 | F103: 408293.43 | H103: 0 | I103: 0 | J103: 0 | L103: 0 | M103: 0 | N103: 0 | P103: 0
B104: May | D104: 64144 | E104: 4.67 | F104: 299552.48 | H104: 0 | I104: 0 | J104: 0 | L104: 0 | M104: 0 | N104: 0 | P104: 0
B105: June | D105: 72483 | E105: 4.67 | F105: 338495.61 | H105: 0 | I105: 0 | J105: 0 | L105: 0 | M105: 0 | N105: 0 | P105: 0
B106: July | D106: 69449 | E106: 4.9 | F106: 340300.1 | H106: 0 | I106: 0 | J106: 0 | L106: 0 | M106: 0 | N106: 0 | P106: 0
B107: August | D107: 74032 | E107: 4.9 | F107: 362756.8 | H107: 0 | I107: 0 | J107: 0 | L107: 0 | M107: 0 | N107: 0 | P107: 0
B108: September | D108: 68321 | E108: 4.9 | F108: 334772.9 | H108: 0 | I108: 0 | J108: 0 | L108: 0 | M108: 0 | N108: 0 | P108: 0
B109: October | D109: 73309 | E109: 4.9 | F109: 359214.1 | H109: 0 | I109: 0 | J109: 0 | L109: 0 | M109: 0 | N109: 0 | P109: 0
B110: November | D110: 95200 | E110: 4.9 | F110: 466480 | H110: 0 | I110: 0 | J110: 0 | L110: 0 | M110: 0 | N110: 0 | P110: 0
B111: December | D111: 106596 | E111: 4.9 | F111: 522320.4 | H111: 0 | I111: 0 | J111: 0 | L111: 0 | M111: 0 | N111: 0 | P111: 0
B113: Total | D113: =SUM(D100:D111) -> 1032572 | E113: =IF(D113<>0,F113/D113,0) -> 4.778455982 | F113: =SUM(F100:F111) -> 4934099.85 | H113: =SUM(H100:H111) -> 0 | I113: =IF(H113<>0,J113/H113,0) -> 0 | J113: =SUM(J100:J111) -> 0 | L113: =SUM(L100:L111) -> 0 | M113: =IF(L113<>0,N113/L113,0) -> 0 | N113: =SUM(N100:N111) -> 0 | P113: =SUM(P100:P111) -> 0
N115: Low Voltage Switchgear Credit (if applicable) | P115: ='4. UTRs and Sub-Transmission'!E76 -> 0
N117: Total including deduction for Low Voltage Switchgear Credit | P117: =P113+P115 -> 0

Sheet 6. Current Wholesale
B13: The purpose of this sheet is to calculate the expected billing when current 2022 Uniform Transmission Rates and Hydro One Sub-transmission Rates are applied against historical 2021 transmission units.
B20: IESO | D20: Network | H20: Line Connection | L20: Transformation Connection | P20: Total Connection
B22: Month | D22: Units Billed | E22: Rate | F22: Amount | H22: Units Billed | I22: Rate | J22: Amount | L22: Units Billed | M22: Rate | N22: Amount | P22: Amount
B24: January | D24: ='5. Historical Wholesale'!D24 -> 107975 | E24: ='4. UTRs and Sub-Transmission'!I22 -> 5.13 | F24: =D24*E24 -> 553911.75 | H24: ='5. Historical Wholesale'!H24 -> 0 | I24: ='4. UTRs and Sub-Transmission'!I24 -> 0.88 | J24: =H24*I24 -> 0 | L24: ='5. Historical Wholesale'!L24 -> 0 | M24: ='4. UTRs and Sub-Transmission'!I26 -> 2.81 | N24: =L24*M24 -> 0 | P24: =J24+N24 -> 0
B25: February | D25: ='5. Historical Wholesale'!D25 -> 108561 | E25: =E24 -> 5.13 | F25: =D25*E25 -> 556917.93 | H25: ='5. Historical Wholesale'!H25 -> 0 | I25: =I24 -> 0.88 | J25: =H25*I25 -> 0 | L25: ='5. Historical Wholesale'!L25 -> 0 | M25: =M24 -> 2.81 | N25: =L25*M25 -> 0 | P25: 0
B26: March | D26: ='5. Historical Wholesale'!D26 -> 105073 | E26: =E25 -> 5.13 | F26: 539024.49 | H26: ='5. Historical Wholesale'!H26 -> 0 | I26: =I25 -> 0.88 | J26: 0 | L26: ='5. Historical Wholesale'!L26 -> 0 | M26: =M25 -> 2.81 | N26: 0 | P26: 0
B27: April | D27: ='5. Historical Wholesale'!D27 -> 87429 | E27: ='4. UTRs and Sub-Transmission'!J22 -> 5.46 | F27: 477362.34 | H27: ='5. Historical Wholesale'!H27 -> 0 | I27: ='4. UTRs and Sub-Transmission'!J24 -> 0.88 | J27: 0 | L27: ='5. Historical Wholesale'!L27 -> 0 | M27: ='4. UTRs and Sub-Transmission'!I26 -> 2.81 | N27: 0 | P27: 0
B28: May | D28: ='5. Historical Wholesale'!D28 -> 64144 | E28: 5.46 | F28: 350226.24 | H28: ='5. Historical Wholesale'!H28 -> 0 | I28: 0.88 | J28: 0 | L28: ='5. Historical Wholesale'!L28 -> 0 | M28: =M27 -> 2.81 | N28: 0 | P28: 0
B29: June | D29: ='5. Historical Wholesale'!D29 -> 72483 | E29: 5.46 | F29: 395757.18 | H29: ='5. Historical Wholesale'!H29 -> 0 | I29: 0.88 | J29: 0 | L29: ='5. Historical Wholesale'!L29 -> 0 | M29: 2.81 | N29: 0 | P29: 0
B30: July | D30: ='5. Historical Wholesale'!D30 -> 69449 | E30: 5.46 | F30: 379191.54 | H30: ='5. Historical Wholesale'!H30 -> 0 | I30: 0.88 | J30: 0 | L30: ='5. Historical Wholesale'!L30 -> 0 | M30: 2.81 | N30: 0 | P30: 0
B31: August | D31: ='5. Historical Wholesale'!D31 -> 74032 | E31: 5.46 | F31: 404214.72 | H31: ='5. Historical Wholesale'!H31 -> 0 | I31: 0.88 | J31: 0 | L31: ='5. Historical Wholesale'!L31 -> 0 | M31: 2.81 | N31: 0 | P31: 0
B32: September | D32: ='5. Historical Wholesale'!D32 -> 68321 | E32: 5.46 | F32: 373032.66 | H32: ='5. Historical Wholesale'!H32 -> 0 | I32: 0.88 | J32: 0 | L32: ='5. Historical Wholesale'!L32 -> 0 | M32: 2.81 | N32: 0 | P32: 0
B33: October | D33: ='5. Historical Wholesale'!D33 -> 73309 | E33: 5.46 | F33: 400267.14 | H33: ='5. Historical Wholesale'!H33 -> 0 | I33: 0.88 | J33: 0 | L33: ='5. Historical Wholesale'!L33 -> 0 | M33: 2.81 | N33: 0 | P33: 0
B34: November | D34: ='5. Historical Wholesale'!D34 -> 95200 | E34: 5.46 | F34: 519792 | H34: ='5. Historical Wholesale'!H34 -> 0 | I34: 0.88 | J34: 0 | L34: ='5. Historical Wholesale'!L34 -> 0 | M34: 2.81 | N34: 0 | P34: 0
B35: December | D35: ='5. Historical Wholesale'!D35 -> 106596 | E35: 5.46 | F35: 582014.16 | H35: ='5. Historical Wholesale'!H35 -> 0 | I35: 0.88 | J35: 0 | L35: ='5. Historical Wholesale'!L35 -> 0 | M35: 2.81 | N35: 0 | P35: 0
B37: Total | D37: =SUM(D24:D35) -> 1032572 | E37: =IF(D37<>0,F37/D37,0) -> 5.357216882 | F37: =SUM(F24:F35) -> 5531712.15 | H37: =SUM(H24:H35) -> 0 | I37: =IF(H37<>0,J37/H37,0) -> 0 | J37: =SUM(J24:J35) -> 0 | L37: =SUM(L24:L35) -> 0 | M37: =IF(L37<>0,N37/L37,0) -> 0 | N37: =SUM(N24:N35) -> 0 | P37: =SUM(P24:P35) -> 0
B39: Hydro One | D39: Network | H39: Line Connection | L39: Transformation Connection | P39: Total Connection
B41: Month | D41: Units Billed | E41: Rate | F41: Amount | H41: Units Billed | I41: Rate | J41: Amount | L41: Units Billed | M41: Rate | N41: Amount | P41: Amount
B43: January | D43: ='5. Historical Wholesale'!D43 -> 0 | E43: ='4. UTRs and Sub-Transmission'!I35 -> 4.3473 | F43: =D43*E43 -> 0 | H43: ='5. Historical Wholesale'!H43 -> 0 | I43: ='4. UTRs and Sub-Transmission'!I37 -> 0.6788 | J43: =H43*I43 -> 0 | L43: ='5. Historical Wholesale'!L43 -> 0 | M43: ='4. UTRs and Sub-Transmission'!I39 -> 2.3267 | N43: =L43*M43 -> 0 | P43: =J43+N43 -> 0
B44: February | D44: ='5. Historical Wholesale'!D44 -> 0 | E44: =E43 -> 4.3473 | F44: =D44*E44 -> 0 | H44: ='5. Historical Wholesale'!H44 -> 0 | I44: =I43 -> 0.6788 | J44: =H44*I44 -> 0 | L44: ='5. Historical Wholesale'!L44 -> 0 | M44: =M43 -> 2.3267 | N44: =L44*M44 -> 0 | P44: 0
B45: March | D45: ='5. Historical Wholesale'!D45 -> 0 | E45: 4.3473 | F45: 0 | H45: ='5. Historical Wholesale'!H45 -> 0 | I45: 0.6788 | J45: 0 | L45: ='5. Historical Wholesale'!L45 -> 0 | M45: =M44 -> 2.3267 | N45: 0 | P45: 0
B46: April | D46: ='5. Historical Wholesale'!D46 -> 0 | E46: 4.3473 | F46: 0 | H46: ='5. Historical Wholesale'!H46 -> 0 | I46: 0.6788 | J46: 0 | L46: ='5. Historical Wholesale'!L46 -> 0 | M46: =M45 -> 2.3267 | N46: 0 | P46: 0
B47: May | D47: ='5. Historical Wholesale'!D47 -> 0 | E47: 4.3473 | F47: 0 | H47: ='5. Historical Wholesale'!H47 -> 0 | I47: 0.6788 | J47: 0 | L47: ='5. Historical Wholesale'!L47 -> 0 | M47: 2.3267 | N47: 0 | P47: 0
B48: June | D48: ='5. Historical Wholesale'!D48 -> 0 | E48: 4.3473 | F48: 0 | H48: ='5. Historical Wholesale'!H48 -> 0 | I48: 0.6788 | J48: 0 | L48: ='5. Historical Wholesale'!L48 -> 0 | M48: 2.3267 | N48: 0 | P48: 0
B49: July | D49: ='5. Historical Wholesale'!D49 -> 0 | E49: 4.3473 | F49: 0 | H49: ='5. Historical Wholesale'!H49 -> 0 | I49: 0.6788 | J49: 0 | L49: ='5. Historical Wholesale'!L49 -> 0 | M49: 2.3267 | N49: 0 | P49: 0
B50: August | D50: ='5. Historical Wholesale'!D50 -> 0 | E50: 4.3473 | F50: 0 | H50: ='5. Historical Wholesale'!H50 -> 0 | I50: 0.6788 | J50: 0 | L50: ='5. Historical Wholesale'!L50 -> 0 | M50: 2.3267 | N50: 0 | P50: 0
B51: September | D51: ='5. Historical Wholesale'!D51 -> 0 | E51: 4.3473 | F51: 0 | H51: ='5. Historical Wholesale'!H51 -> 0 | I51: 0.6788 | J51: 0 | L51: ='5. Historical Wholesale'!L51 -> 0 | M51: 2.3267 | N51: 0 | P51: 0
B52: October | D52: ='5. Historical Wholesale'!D52 -> 0 | E52: 4.3473 | F52: 0 | H52: ='5. Historical Wholesale'!H52 -> 0 | I52: 0.6788 | J52: 0 | L52: ='5. Historical Wholesale'!L52 -> 0 | M52: 2.3267 | N52: 0 | P52: 0
B53: November | D53: ='5. Historical Wholesale'!D53 -> 0 | E53: 4.3473 | F53: 0 | H53: ='5. Historical Wholesale'!H53 -> 0 | I53: 0.6788 | J53: 0 | L53: ='5. Historical Wholesale'!L53 -> 0 | M53: 2.3267 | N53: 0 | P53: 0
B54: December | D54: ='5. Historical Wholesale'!D54 -> 0 | E54: 4.3473 | F54: 0 | H54: ='5. Historical Wholesale'!H54 -> 0 | I54: 0.6788 | J54: 0 | L54: ='5. Historical Wholesale'!L54 -> 0 | M54: 2.3267 | N54: 0 | P54: 0
B56: Total | D56: =SUM(D43:D54) -> 0 | E56: =IF(D56<>0,F56/D56,0) -> 0 | F56: =SUM(F43:F54) -> 0 | H56: =SUM(H43:H54) -> 0 | I56: =IF(H56<>0,J56/H56,0) -> 0 | J56: =SUM(J43:J54) -> 0 | L56: =SUM(L43:L54) -> 0 | M56: =IF(L56<>0,N56/L56,0) -> 0 | N56: =SUM(N43:N54) -> 0 | P56: =SUM(P43:P54) -> 0
B58: ='5. Historical Wholesale'!B58 -> Add Extra Host Here (I) | D58: Network | H58: Line Connection | L58: Transformation Connection | P58: Total Connection
B60: Month | D60: Units Billed | E60: Rate | F60: Amount | H60: Units Billed | I60: Rate | J60: Amount | L60: Units Billed | M60: Rate | N60: Amount | P60: Amount
B62: January | D62: ='5. Historical Wholesale'!D62 -> 0 | E62: ='4. UTRs and Sub-Transmission'!H52 -> 0 | F62: =D62*E62 -> 0 | H62: ='5. Historical Wholesale'!H62 -> 0 | I62: ='4. UTRs and Sub-Transmission'!H54 -> 0 | J62: =H62*I62 -> 0 | L62: ='5. Historical Wholesale'!L62 -> 0 | M62: ='4. UTRs and Sub-Transmission'!H56 -> 0 | N62: =L62*M62 -> 0 | P62: =J62+N62 -> 0
B63: February | D63: ='5. Historical Wholesale'!D63 -> 0 | E63: =E62 -> 0 | F63: =D63*E63 -> 0 | H63: ='5. Historical Wholesale'!H63 -> 0 | I63: =I62 -> 0 | J63: =H63*I63 -> 0 | L63: ='5. Historical Wholesale'!L63 -> 0 | M63: =M62 -> 0 | N63: =L63*M63 -> 0 | P63: 0
B64: March | D64: ='5. Historical Wholesale'!D64 -> 0 | E64: =E63 -> 0 | F64: 0 | H64: ='5. Historical Wholesale'!H64 -> 0 | I64: =I63 -> 0 | J64: 0 | L64: ='5. Historical Wholesale'!L64 -> 0 | M64: =M63 -> 0 | N64: 0 | P64: 0
B65: April | D65: ='5. Historical Wholesale'!D65 -> 0 | E65: 0 | F65: 0 | H65: ='5. Historical Wholesale'!H65 -> 0 | I65: 0 | J65: 0 | L65: ='5. Historical Wholesale'!L65 -> 0 | M65: =M64 -> 0 | N65: 0 | P65: 0
B66: May | D66: ='5. Historical Wholesale'!D66 -> 0 | E66: 0 | F66: 0 | H66: ='5. Historical Wholesale'!H66 -> 0 | I66: 0 | J66: 0 | L66: ='5. Historical Wholesale'!L66 -> 0 | M66: 0 | N66: 0 | P66: 0
B67: June | D67: ='5. Historical Wholesale'!D67 -> 0 | E67: 0 | F67: 0 | H67: ='5. Historical Wholesale'!H67 -> 0 | I67: 0 | J67: 0 | L67: ='5. Historical Wholesale'!L67 -> 0 | M67: 0 | N67: 0 | P67: 0
B68: July | D68: ='5. Historical Wholesale'!D68 -> 0 | E68: 0 | F68: 0 | H68: ='5. Historical Wholesale'!H68 -> 0 | I68: 0 | J68: 0 | L68: ='5. Historical Wholesale'!L68 -> 0 | M68: 0 | N68: 0 | P68: 0
B69: August | D69: ='5. Historical Wholesale'!D69 -> 0 | E69: 0 | F69: 0 | H69: ='5. Historical Wholesale'!H69 -> 0 | I69: 0 | J69: 0 | L69: ='5. Historical Wholesale'!L69 -> 0 | M69: 0 | N69: 0 | P69: 0
B70: September | D70: ='5. Historical Wholesale'!D70 -> 0 | E70: 0 | F70: 0 | H70: ='5. Historical Wholesale'!H70 -> 0 | I70: 0 | J70: 0 | L70: ='5. Historical Wholesale'!L70 -> 0 | M70: 0 | N70: 0 | P70: 0
B71: October | D71: ='5. Historical Wholesale'!D71 -> 0 | E71: 0 | F71: 0 | H71: ='5. Historical Wholesale'!H71 -> 0 | I71: 0 | J71: 0 | L71: ='5. Historical Wholesale'!L71 -> 0 | M71: 0 | N71: 0 | P71: 0
B72: November | D72: ='5. Historical Wholesale'!D72 -> 0 | E72: 0 | F72: 0 | H72: ='5. Historical Wholesale'!H72 -> 0 | I72: 0 | J72: 0 | L72: ='5. Historical Wholesale'!L72 -> 0 | M72: 0 | N72: 0 | P72: 0
B73: December | D73: ='5. Historical Wholesale'!D73 -> 0 | E73: 0 | F73: 0 | H73: ='5. Historical Wholesale'!H73 -> 0 | I73: 0 | J73: 0 | L73: ='5. Historical Wholesale'!L73 -> 0 | M73: 0 | N73: 0 | P73: 0
B75: Total | D75: =SUM(D62:D73) -> 0 | E75: =IF(D75<>0,F75/D75,0) -> 0 | F75: =SUM(F62:F73) -> 0 | H75: =SUM(H62:H73) -> 0 | I75: =IF(H75<>0,J75/H75,0) -> 0 | J75: =SUM(J62:J73) -> 0 | L75: =SUM(L62:L73) -> 0 | M75: =IF(L75<>0,N75/L75,0) -> 0 | N75: =SUM(N62:N73) -> 0 | P75: =SUM(P62:P73) -> 0
B77: ='5. Historical Wholesale'!B77 -> Add Extra Host Here (II) | D77: Network | H77: Line Connection | L77: Transformation Connection | P77: Total Connection
B79: Month | D79: Units Billed | E79: Rate | F79: Amount | H79: Units Billed | I79: Rate | J79: Amount | L79: Units Billed | M79: Rate | N79: Amount | P79: Amount
B81: January | D81: ='5. Historical Wholesale'!D81 -> 0 | E81: ='4. UTRs and Sub-Transmission'!H67 -> 0 | F81: =D81*E81 -> 0 | H81: ='5. Historical Wholesale'!H81 -> 0 | I81: ='4. UTRs and Sub-Transmission'!H69 -> 0 | J81: =H81*I81 -> 0 | L81: ='5. Historical Wholesale'!L81 -> 0 | M81: ='4. UTRs and Sub-Transmission'!H71 -> 0 | N81: =L81*M81 -> 0 | P81: =J81+N81 -> 0
B82: February | D82: ='5. Historical Wholesale'!D82 -> 0 | E82: =E81 -> 0 | F82: =D82*E82 -> 0 | H82: ='5. Historical Wholesale'!H82 -> 0 | I82: =I81 -> 0 | J82: =H82*I82 -> 0 | L82: ='5. Historical Wholesale'!L82 -> 0 | M82: =M81 -> 0 | N82: =L82*M82 -> 0 | P82: 0
B83: March | D83: ='5. Historical Wholesale'!D83 -> 0 | E83: =E82 -> 0 | F83: 0 | H83: ='5. Historical Wholesale'!H83 -> 0 | I83: =I82 -> 0 | J83: 0 | L83: ='5. Historical Wholesale'!L83 -> 0 | M83: =M82 -> 0 | N83: 0 | P83: 0
B84: April | D84: ='5. Historical Wholesale'!D84 -> 0 | E84: 0 | F84: 0 | H84: ='5. Historical Wholesale'!H84 -> 0 | I84: 0 | J84: 0 | L84: ='5. Historical Wholesale'!L84 -> 0 | M84: =M83 -> 0 | N84: 0 | P84: 0
B85: May | D85: ='5. Historical Wholesale'!D85 -> 0 | E85: 0 | F85: 0 | H85: ='5. Historical Wholesale'!H85 -> 0 | I85: 0 | J85: 0 | L85: ='5. Historical Wholesale'!L85 -> 0 | M85: 0 | N85: 0 | P85: 0
B86: June | D86: ='5. Historical Wholesale'!D86 -> 0 | E86: 0 | F86: 0 | H86: ='5. Historical Wholesale'!H86 -> 0 | I86: 0 | J86: 0 | L86: ='5. Historical Wholesale'!L86 -> 0 | M86: 0 | N86: 0 | P86: 0
B87: July | D87: ='5. Historical Wholesale'!D87 -> 0 | E87: 0 | F87: 0 | H87: ='5. Historical Wholesale'!H87 -> 0 | I87: 0 | J87: 0 | L87: ='5. Historical Wholesale'!L87 -> 0 | M87: 0 | N87: 0 | P87: 0
B88: August | D88: ='5. Historical Wholesale'!D88 -> 0 | E88: 0 | F88: 0 | H88: ='5. Historical Wholesale'!H88 -> 0 | I88: 0 | J88: 0 | L88: ='5. Historical Wholesale'!L88 -> 0 | M88: 0 | N88: 0 | P88: 0
B89: September | D89: ='5. Historical Wholesale'!D89 -> 0 | E89: 0 | F89: 0 | H89: ='5. Historical Wholesale'!H89 -> 0 | I89: 0 | J89: 0 | L89: ='5. Historical Wholesale'!L89 -> 0 | M89: 0 | N89: 0 | P89: 0
B90: October | D90: ='5. Historical Wholesale'!D90 -> 0 | E90: 0 | F90: 0 | H90: ='5. Historical Wholesale'!H90 -> 0 | I90: 0 | J90: 0 | L90: ='5. Historical Wholesale'!L90 -> 0 | M90: 0 | N90: 0 | P90: 0
B91: November | D91: ='5. Historical Wholesale'!D91 -> 0 | E91: 0 | F91: 0 | H91: ='5. Historical Wholesale'!H91 -> 0 | I91: 0 | J91: 0 | L91: ='5. Historical Wholesale'!L91 -> 0 | M91: 0 | N91: 0 | P91: 0
B92: December | D92: ='5. Historical Wholesale'!D92 -> 0 | E92: 0 | F92: 0 | H92: ='5. Historical Wholesale'!H92 -> 0 | I92: 0 | J92: 0 | L92: ='5. Historical Wholesale'!L92 -> 0 | M92: 0 | N92: 0 | P92: 0
B94: Total | D94: =SUM(D81:D92) -> 0 | E94: =IF(D94<>0,F94/D94,0) -> 0 | F94: =SUM(F81:F92) -> 0 | H94: =SUM(H81:H92) -> 0 | I94: =IF(H94<>0,J94/H94,0) -> 0 | J94: =SUM(J81:J92) -> 0 | L94: =SUM(L81:L92) -> 0 | M94: =IF(L94<>0,N94/L94,0) -> 0 | N94: =SUM(N81:N92) -> 0 | P94: =SUM(P81:P92) -> 0
B96: Total | D96: Network | H96: Line Connection | L96: Transformation Connection | P96: Total Connection
B98: Month | D98: Units Billed | E98: Rate | F98: Amount | H98: Units Billed | I98: Rate | J98: Amount | L98: Units Billed | M98: Rate | N98: Amount | P98: Amount
B100: January | D100: =D24+D43+D62+D81 -> 107975 | E100: =IF(D100<>0,F100/D100,0) -> 5.13 | F100: =F24+F43+F62+F81 -> 553911.75 | H100: =H24+H43+H62+H81 -> 0 | I100: =IF(H100<>0,J100/H100,0) -> 0 | J100: =J24+J43+J62+J81 -> 0 | L100: =L24+L43+L62+L81 -> 0 | M100: =IF(L100<>0,N100/L100,0) -> 0 | N100: =N24+N43+N62+N81 -> 0 | P100: =J100+N100 -> 0
B101: February | D101: =D25+D44+D63+D82 -> 108561 | E101: 5.13 | F101: =F25+F44+F63+F82 -> 556917.93 | H101: =H25+H44+H63+H82 -> 0 | I101: 0 | J101: =J25+J44+J63+J82 -> 0 | L101: =L25+L44+L63+L82 -> 0 | M101: 0 | N101: =N25+N44+N63+N82 -> 0 | P101: 0
B102: March | D102: 105073 | E102: 5.13 | F102: 539024.49 | H102: 0 | I102: 0 | J102: 0 | L102: 0 | M102: 0 | N102: 0 | P102: 0
B103: April | D103: 87429 | E103: 5.46 | F103: 477362.34 | H103: 0 | I103: 0 | J103: 0 | L103: 0 | M103: 0 | N103: 0 | P103: 0
B104: May | D104: 64144 | E104: 5.46 | F104: 350226.24 | H104: 0 | I104: 0 | J104: 0 | L104: 0 | M104: 0 | N104: 0 | P104: 0
B105: June | D105: 72483 | E105: 5.46 | F105: 395757.18 | H105: 0 | I105: 0 | J105: 0 | L105: 0 | M105: 0 | N105: 0 | P105: 0
B106: July | D106: 69449 | E106: 5.46 | F106: 379191.54 | H106: 0 | I106: 0 | J106: 0 | L106: 0 | M106: 0 | N106: 0 | P106: 0
B107: August | D107: 74032 | E107: 5.46 | F107: 404214.72 | H107: 0 | I107: 0 | J107: 0 | L107: 0 | M107: 0 | N107: 0 | P107: 0
B108: September | D108: 68321 | E108: 5.46 | F108: 373032.66 | H108: 0 | I108: 0 | J108: 0 | L108: 0 | M108: 0 | N108: 0 | P108: 0
B109: October | D109: 73309 | E109: 5.46 | F109: 400267.14 | H109: 0 | I109: 0 | J109: 0 | L109: 0 | M109: 0 | N109: 0 | P109: 0
B110: November | D110: 95200 | E110: 5.46 | F110: 519792 | H110: 0 | I110: 0 | J110: 0 | L110: 0 | M110: 0 | N110: 0 | P110: 0
B111: December | D111: 106596 | E111: 5.46 | F111: 582014.16 | H111: 0 | I111: 0 | J111: 0 | L111: 0 | M111: 0 | N111: 0 | P111: 0
B113: Total | D113: =SUM(D100:D111) -> 1032572 | E113: =IF(D113<>0,F113/D113,0) -> 5.357216882 | F113: =SUM(F100:F111) -> 5531712.15 | H113: =SUM(H100:H111) -> 0 | I113: =IF(H113<>0,J113/H113,0) -> 0 | J113: =SUM(J100:J111) -> 0 | L113: =SUM(L100:L111) -> 0 | M113: =IF(L113<>0,N113/L113,0) -> 0 | N113: =SUM(N100:N111) -> 0 | P113: =SUM(P100:P111) -> 0
N115: Low Voltage Switchgear Credit (if applicable) | P115: ='4. UTRs and Sub-Transmission'!J76 -> 0
N117: Total including deduction for Low Voltage Switchgear Credit | P117: =P113+P115 -> 0

Sheet 7. Forecast Wholesale
B13: The purpose of this sheet is to calculate the expected billing when forecasted 2023 Uniform Transmission Rates and Hydro One Sub-transmission Rates are applied against historical 2021 transmission units.
B20: IESO | D20: Network | H20: Line Connection | L20: Transformation Connection | P20: Total Connection
B22: Month | D22: Units Billed | E22: Rate | F22: Amount | H22: Units Billed | I22: Rate | J22: Amount | L22: Units Billed | M22: Rate | N22: Amount | P22: Amount
B24: January | D24: ='5. Historical Wholesale'!D24 -> 107975 | E24: ='4. UTRs and Sub-Transmission'!L22 -> 5.46 | F24: =D24*E24 -> 589543.5 | H24: ='5. Historical Wholesale'!H24 -> 0 | I24: ='4. UTRs and Sub-Transmission'!L24 -> 0.88 | J24: =H24*I24 -> 0 | L24: ='5. Historical Wholesale'!L24 -> 0 | M24: ='4. UTRs and Sub-Transmission'!L26 -> 2.81 | N24: =L24*M24 -> 0 | P24: =J24+N24 -> 0
B25: February | D25: ='5. Historical Wholesale'!D25 -> 108561 | E25: =E24 -> 5.46 | F25: 592743.06 | H25: ='5. Historical Wholesale'!H25 -> 0 | I25: =I24 -> 0.88 | J25: 0 | L25: ='5. Historical Wholesale'!L25 -> 0 | M25: =M24 -> 2.81 | N25: 0 | P25: 0
B26: March | D26: ='5. Historical Wholesale'!D26 -> 105073 | E26: 5.46 | F26: 573698.58 | H26: ='5. Historical Wholesale'!H26 -> 0 | I26: 0.88 | J26: 0 | L26: ='5. Historical Wholesale'!L26 -> 0 | M26: 2.81 | N26: 0 | P26: 0
B27: April | D27: ='5. Historical Wholesale'!D27 -> 87429 | E27: 5.46 | F27: 477362.34 | H27: ='5. Historical Wholesale'!H27 -> 0 | I27: 0.88 | J27: 0 | L27: ='5. Historical Wholesale'!L27 -> 0 | M27: 2.81 | N27: 0 | P27: 0
B28: May | D28: ='5. Historical Wholesale'!D28 -> 64144 | E28: 5.46 | F28: 350226.24 | H28: ='5. Historical Wholesale'!H28 -> 0 | I28: 0.88 | J28: 0 | L28: ='5. Historical Wholesale'!L28 -> 0 | M28: 2.81 | N28: 0 | P28: 0
B29: June | D29: ='5. Historical Wholesale'!D29 -> 72483 | E29: 5.46 | F29: 395757.18 | H29: ='5. Historical Wholesale'!H29 -> 0 | I29: 0.88 | J29: 0 | L29: ='5. Historical Wholesale'!L29 -> 0 | M29: 2.81 | N29: 0 | P29: 0
B30: July | D30: ='5. Historical Wholesale'!D30 -> 69449 | E30: 5.46 | F30: 379191.54 | H30: ='5. Historical Wholesale'!H30 -> 0 | I30: 0.88 | J30: 0 | L30: ='5. Historical Wholesale'!L30 -> 0 | M30: 2.81 | N30: 0 | P30: 0
B31: August | D31: ='5. Historical Wholesale'!D31 -> 74032 | E31: 5.46 | F31: 404214.72 | H31: ='5. Historical Wholesale'!H31 -> 0 | I31: 0.88 | J31: 0 | L31: ='5. Historical Wholesale'!L31 -> 0 | M31: 2.81 | N31: 0 | P31: 0
B32: September | D32: ='5. Historical Wholesale'!D32 -> 68321 | E32: 5.46 | F32: 373032.66 | H32: ='5. Historical Wholesale'!H32 -> 0 | I32: 0.88 | J32: 0 | L32: ='5. Historical Wholesale'!L32 -> 0 | M32: 2.81 | N32: 0 | P32: 0
B33: October | D33: ='5. Historical Wholesale'!D33 -> 73309 | E33: 5.46 | F33: 400267.14 | H33: ='5. Historical Wholesale'!H33 -> 0 | I33: 0.88 | J33: 0 | L33: ='5. Historical Wholesale'!L33 -> 0 | M33: 2.81 | N33: 0 | P33: 0
B34: November | D34: ='5. Historical Wholesale'!D34 -> 95200 | E34: 5.46 | F34: 519792 | H34: ='5. Historical Wholesale'!H34 -> 0 | I34: 0.88 | J34: 0 | L34: ='5. Historical Wholesale'!L34 -> 0 | M34: 2.81 | N34: 0 | P34: 0
B35: December | D35: ='5. Historical Wholesale'!D35 -> 106596 | E35: 5.46 | F35: 582014.16 | H35: ='5. Historical Wholesale'!H35 -> 0 | I35: 0.88 | J35: 0 | L35: ='5. Historical Wholesale'!L35 -> 0 | M35: 2.81 | N35: 0 | P35: 0
B37: Total | D37: =SUM(D24:D35) -> 1032572 | E37: =IF(D37<>0,F37/D37,0) -> 5.46 | F37: =SUM(F24:F35) -> 5637843.12 | H37: =SUM(H24:H35) -> 0 | I37: =IF(H37<>0,J37/H37,0) -> 0 | J37: =SUM(J24:J35) -> 0 | L37: =SUM(L24:L35) -> 0 | M37: =IF(L37<>0,N37/L37,0) -> 0 | N37: =SUM(N24:N35) -> 0 | P37: =SUM(P24:P35) -> 0
B39: Hydro One | D39: Network | H39: Line Connection | L39: Transformation Connection | P39: Total Connection
B41: Month | D41: Units Billed | E41: Rate | F41: Amount | H41: Units Billed | I41: Rate | J41: Amount | L41: Units Billed | M41: Rate | N41: Amount | P41: Amount
B43: January | D43: ='5. Historical Wholesale'!D43 -> 0 | E43: ='4. UTRs and Sub-Transmission'!L37 -> 0.6788 | F43: =D43*E43 -> 0 | H43: ='5. Historical Wholesale'!H43 -> 0 | I43: ='4. UTRs and Sub-Transmission'!L39 -> 2.3267 | J43: =H43*I43 -> 0 | L43: ='5. Historical Wholesale'!L43 -> 0 | M43: ='4. UTRs and Sub-Transmission'!L41 -> 3.0055 | N43: =L43*M43 -> 0 | P43: =J43+N43 -> 0
B44: February | D44: ='5. Historical Wholesale'!D44 -> 0 | E44: =E43 -> 0.6788 | F44: 0 | H44: ='5. Historical Wholesale'!H44 -> 0 | I44: =I43 -> 2.3267 | J44: 0 | L44: ='5. Historical Wholesale'!L44 -> 0 | M44: =M43 -> 3.0055 | N44: 0 | P44: 0
B45: March | D45: ='5. Historical Wholesale'!D45 -> 0 | E45: 0.6788 | F45: 0 | H45: ='5. Historical Wholesale'!H45 -> 0 | I45: 2.3267 | J45: 0 | L45: ='5. Historical Wholesale'!L45 -> 0 | M45: 3.0055 | N45: 0 | P45: 0
B46: April | D46: ='5. Historical Wholesale'!D46 -> 0 | E46: 0.6788 | F46: 0 | H46: ='5. Historical Wholesale'!H46 -> 0 | I46: 2.3267 | J46: 0 | L46: ='5. Historical Wholesale'!L46 -> 0 | M46: 3.0055 | N46: 0 | P46: 0
B47: May | D47: ='5. Historical Wholesale'!D47 -> 0 | E47: 0.6788 | F47: 0 | H47: ='5. Historical Wholesale'!H47 -> 0 | I47: 2.3267 | J47: 0 | L47: ='5. Historical Wholesale'!L47 -> 0 | M47: 3.0055 | N47: 0 | P47: 0
B48: June | D48: ='5. Historical Wholesale'!D48 -> 0 | E48: 0.6788 | F48: 0 | H48: ='5. Historical Wholesale'!H48 -> 0 | I48: 2.3267 | J48: 0 | L48: ='5. Historical Wholesale'!L48 -> 0 | M48: 3.0055 | N48: 0 | P48: 0
B49: July | D49: ='5. Historical Wholesale'!D49 -> 0 | E49: 0.6788 | F49: 0 | H49: ='5. Historical Wholesale'!H49 -> 0 | I49: 2.3267 | J49: 0 | L49: ='5. Historical Wholesale'!L49 -> 0 | M49: 3.0055 | N49: 0 | P49: 0
B50: August | D50: ='5. Historical Wholesale'!D50 -> 0 | E50: 0.6788 | F50: 0 | H50: ='5. Historical Wholesale'!H50 -> 0 | I50: 2.3267 | J50: 0 | L50: ='5. Historical Wholesale'!L50 -> 0 | M50: 3.0055 | N50: 0 | P50: 0
B51: September | D51: ='5. Historical Wholesale'!D51 -> 0 | E51: 0.6788 | F51: 0 | H51: ='5. Historical Wholesale'!H51 -> 0 | I51: 2.3267 | J51: 0 | L51: ='5. Historical Wholesale'!L51 -> 0 | M51: 3.0055 | N51: 0 | P51: 0
B52: October | D52: ='5. Historical Wholesale'!D52 -> 0 | E52: 0.6788 | F52: 0 | H52: ='5. Historical Wholesale'!H52 -> 0 | I52: 2.3267 | J52: 0 | L52: ='5. Historical Wholesale'!L52 -> 0 | M52: 3.0055 | N52: 0 | P52: 0
B53: November | D53: ='5. Historical Wholesale'!D53 -> 0 | E53: 0.6788 | F53: 0 | H53: ='5. Historical Wholesale'!H53 -> 0 | I53: 2.3267 | J53: 0 | L53: ='5. Historical Wholesale'!L53 -> 0 | M53: 3.0055 | N53: 0 | P53: 0
B54: December | D54: ='5. Historical Wholesale'!D54 -> 0 | E54: 0.6788 | F54: 0 | H54: ='5. Historical Wholesale'!H54 -> 0 | I54: 2.3267 | J54: 0 | L54: ='5. Historical Wholesale'!L54 -> 0 | M54: 3.0055 | N54: 0 | P54: 0
B56: Total | D56: =SUM(D43:D54) -> 0 | E56: =IF(D56<>0,F56/D56,0) -> 0 | F56: =SUM(F43:F54) -> 0 | H56: =SUM(H43:H54) -> 0 | I56: =IF(H56<>0,J56/H56,0) -> 0 | J56: =SUM(J43:J54) -> 0 | L56: =SUM(L43:L54) -> 0 | M56: =IF(L56<>0,N56/L56,0) -> 0 | N56: =SUM(N43:N54) -> 0 | P56: =SUM(P43:P54) -> 0
B58: ='5. Historical Wholesale'!B58 -> Add Extra Host Here (I) | D58: Network | H58: Line Connection | L58: Transformation Connection | P58: Total Connection
B60: Month | D60: Units Billed | E60: Rate | F60: Amount | H60: Units Billed | I60: Rate | J60: Amount | L60: Units Billed | M60: Rate | N60: Amount | P60: Amount
B62: January | D62: ='5. Historical Wholesale'!D62 -> 0 | E62: ='4. UTRs and Sub-Transmission'!L52 -> 0 | F62: =D62*E62 -> 0 | H62: ='5. Historical Wholesale'!H62 -> 0 | I62: ='4. UTRs and Sub-Transmission'!L54 -> 0 | J62: =H62*I62 -> 0 | L62: ='5. Historical Wholesale'!L62 -> 0 | M62: ='4. UTRs and Sub-Transmission'!L56 -> 0 | N62: =L62*M62 -> 0 | P62: =J62+N62 -> 0
B63: February | D63: ='5. Historical Wholesale'!D63 -> 0 | E63: =E62 -> 0 | F63: 0 | H63: ='5. Historical Wholesale'!H63 -> 0 | I63: =I62 -> 0 | J63: 0 | L63: ='5. Historical Wholesale'!L63 -> 0 | M63: =M62 -> 0 | N63: 0 | P63: 0
B64: March | D64: ='5. Historical Wholesale'!D64 -> 0 | E64: 0 | F64: 0 | H64: ='5. Historical Wholesale'!H64 -> 0 | I64: 0 | J64: 0 | L64: ='5. Historical Wholesale'!L64 -> 0 | M64: 0 | N64: 0 | P64: 0
B65: April | D65: ='5. Historical Wholesale'!D65 -> 0 | E65: 0 | F65: 0 | H65: ='5. Historical Wholesale'!H65 -> 0 | I65: 0 | J65: 0 | L65: ='5. Historical Wholesale'!L65 -> 0 | M65: 0 | N65: 0 | P65: 0
B66: May | D66: ='5. Historical Wholesale'!D66 -> 0 | E66: 0 | F66: 0 | H66: ='5. Historical Wholesale'!H66 -> 0 | I66: 0 | J66: 0 | L66: ='5. Historical Wholesale'!L66 -> 0 | M66: 0 | N66: 0 | P66: 0
B67: June | D67: ='5. Historical Wholesale'!D67 -> 0 | E67: 0 | F67: 0 | H67: ='5. Historical Wholesale'!H67 -> 0 | I67: 0 | J67: 0 | L67: ='5. Historical Wholesale'!L67 -> 0 | M67: 0 | N67: 0 | P67: 0
B68: July | D68: ='5. Historical Wholesale'!D68 -> 0 | E68: 0 | F68: 0 | H68: ='5. Historical Wholesale'!H68 -> 0 | I68: 0 | J68: 0 | L68: ='5. Historical Wholesale'!L68 -> 0 | M68: 0 | N68: 0 | P68: 0
B69: August | D69: ='5. Historical Wholesale'!D69 -> 0 | E69: 0 | F69: 0 | H69: ='5. Historical Wholesale'!H69 -> 0 | I69: 0 | J69: 0 | L69: ='5. Historical Wholesale'!L69 -> 0 | M69: 0 | N69: 0 | P69: 0
B70: September | D70: ='5. Historical Wholesale'!D70 -> 0 | E70: 0 | F70: 0 | H70: ='5. Historical Wholesale'!H70 -> 0 | I70: 0 | J70: 0 | L70: ='5. Historical Wholesale'!L70 -> 0 | M70: 0 | N70: 0 | P70: 0
B71: October | D71: ='5. Historical Wholesale'!D71 -> 0 | E71: 0 | F71: 0 | H71: ='5. Historical Wholesale'!H71 -> 0 | I71: 0 | J71: 0 | L71: ='5. Historical Wholesale'!L71 -> 0 | M71: 0 | N71: 0 | P71: 0
B72: November | D72: ='5. Historical Wholesale'!D72 -> 0 | E72: 0 | F72: 0 | H72: ='5. Historical Wholesale'!H72 -> 0 | I72: 0 | J72: 0 | L72: ='5. Historical Wholesale'!L72 -> 0 | M72: 0 | N72: 0 | P72: 0
B73: December | D73: ='5. Historical Wholesale'!D73 -> 0 | E73: 0 | F73: 0 | H73: ='5. Historical Wholesale'!H73 -> 0 | I73: 0 | J73: 0 | L73: ='5. Historical Wholesale'!L73 -> 0 | M73: 0 | N73: 0 | P73: 0
B75: Total | D75: =SUM(D62:D73) -> 0 | E75: =IF(D75<>0,F75/D75,0) -> 0 | F75: =SUM(F62:F73) -> 0 | H75: =SUM(H62:H73) -> 0 | I75: =IF(H75<>0,J75/H75,0) -> 0 | J75: =SUM(J62:J73) -> 0 | L75: =SUM(L62:L73) -> 0 | M75: =IF(L75<>0,N75/L75,0) -> 0 | N75: =SUM(N62:N73) -> 0 | P75: =SUM(P62:P73) -> 0
B77: ='5. Historical Wholesale'!B77 -> Add Extra Host Here (II) | D77: Network | H77: Line Connection | L77: Transformation Connection | P77: Total Connection
B79: Month | D79: Units Billed | E79: Rate | F79: Amount | H79: Units Billed | I79: Rate | J79: Amount | L79: Units Billed | M79: Rate | N79: Amount | P79: Amount
B81: January | D81: ='5. Historical Wholesale'!D81 -> 0 | E81: ='4. UTRs and Sub-Transmission'!L67 -> 0 | F81: =D81*E81 -> 0 | H81: ='5. Historical Wholesale'!H81 -> 0 | I81: ='4. UTRs and Sub-Transmission'!L69 -> 0 | J81: =H81*I81 -> 0 | L81: ='5. Historical Wholesale'!L81 -> 0 | M81: ='4. UTRs and Sub-Transmission'!L71 -> 0 | N81: =L81*M81 -> 0 | P81: =J81+N81 -> 0
B82: February | D82: ='5. Historical Wholesale'!D82 -> 0 | E82: =E81 -> 0 | F82: 0 | H82: ='5. Historical Wholesale'!H82 -> 0 | I82: =I81 -> 0 | J82: 0 | L82: ='5. Historical Wholesale'!L82 -> 0 | M82: =M81 -> 0 | N82: 0 | P82: 0
B83: March | D83: ='5. Historical Wholesale'!D83 -> 0 | E83: 0 | F83: 0 | H83: ='5. Historical Wholesale'!H83 -> 0 | I83: 0 | J83: 0 | L83: ='5. Historical Wholesale'!L83 -> 0 | M83: 0 | N83: 0 | P83: 0
B84: April | D84: ='5. Historical Wholesale'!D84 -> 0 | E84: 0 | F84: 0 | H84: ='5. Historical Wholesale'!H84 -> 0 | I84: 0 | J84: 0 | L84: ='5. Historical Wholesale'!L84 -> 0 | M84: 0 | N84: 0 | P84: 0
B85: May | D85: ='5. Historical Wholesale'!D85 -> 0 | E85: 0 | F85: 0 | H85: ='5. Historical Wholesale'!H85 -> 0 | I85: 0 | J85: 0 | L85: ='5. Historical Wholesale'!L85 -> 0 | M85: 0 | N85: 0 | P85: 0
B86: June | D86: ='5. Historical Wholesale'!D86 -> 0 | E86: 0 | F86: 0 | H86: ='5. Historical Wholesale'!H86 -> 0 | I86: 0 | J86: 0 | L86: ='5. Historical Wholesale'!L86 -> 0 | M86: 0 | N86: 0 | P86: 0
B87: July | D87: ='5. Historical Wholesale'!D87 -> 0 | E87: 0 | F87: 0 | H87: ='5. Historical Wholesale'!H87 -> 0 | I87: 0 | J87: 0 | L87: ='5. Historical Wholesale'!L87 -> 0 | M87: 0 | N87: 0 | P87: 0
B88: August | D88: ='5. Historical Wholesale'!D88 -> 0 | E88: 0 | F88: 0 | H88: ='5. Historical Wholesale'!H88 -> 0 | I88: 0 | J88: 0 | L88: ='5. Historical Wholesale'!L88 -> 0 | M88: 0 | N88: 0 | P88: 0
B89: September | D89: ='5. Historical Wholesale'!D89 -> 0 | E89: 0 | F89: 0 | H89: ='5. Historical Wholesale'!H89 -> 0 | I89: 0 | J89: 0 | L89: ='5. Historical Wholesale'!L89 -> 0 | M89: 0 | N89: 0 | P89: 0
B90: October | D90: ='5. Historical Wholesale'!D90 -> 0 | E90: 0 | F90: 0 | H90: ='5. Historical Wholesale'!H90 -> 0 | I90: 0 | J90: 0 | L90: ='5. Historical Wholesale'!L90 -> 0 | M90: 0 | N90: 0 | P90: 0
B91: November | D91: ='5. Historical Wholesale'!D91 -> 0 | E91: 0 | F91: 0 | H91: ='5. Historical Wholesale'!H91 -> 0 | I91: 0 | J91: 0 | L91: ='5. Historical Wholesale'!L91 -> 0 | M91: 0 | N91: 0 | P91: 0
B92: December | D92: ='5. Historical Wholesale'!D92 -> 0 | E92: 0 | F92: 0 | H92: ='5. Historical Wholesale'!H92 -> 0 | I92: 0 | J92: 0 | L92: ='5. Historical Wholesale'!L92 -> 0 | M92: 0 | N92: 0 | P92: 0
B94: Total | D94: =SUM(D81:D92) -> 0 | E94: =IF(D94<>0,F94/D94,0) -> 0 | F94: =SUM(F81:F92) -> 0 | H94: =SUM(H81:H92) -> 0 | I94: =IF(H94<>0,J94/H94,0) -> 0 | J94: =SUM(J81:J92) -> 0 | L94: =SUM(L81:L92) -> 0 | M94: =IF(L94<>0,N94/L94,0) -> 0 | N94: =SUM(N81:N92) -> 0 | P94: =SUM(P81:P92) -> 0
B96: Total | D96: Network | H96: Line Connection | L96: Transformation Connection | P96: Total Connection
B98: Month | D98: Units Billed | E98: Rate | F98: Amount | H98: Units Billed | I98: Rate | J98: Amount | L98: Units Billed | M98: Rate | N98: Amount | P98: Amount
B100: January | D100: =D24+D43+D62+D81 -> 107975 | E100: =IF(D100<>0,F100/D100,0) -> 5.46 | F100: =F24+F43+F62+F81 -> 589543.5 | H100: =H24+H43+H62+H81 -> 0 | I100: =IF(H100<>0,J100/H100,0) -> 0 | J100: =J24+J43+J62+J81 -> 0 | L100: =L24+L43+L62+L81 -> 0 | M100: =IF(L100<>0,N100/L100,0) -> 0 | N100: =N24+N43+N62+N81 -> 0 | P100: =J100+N100 -> 0
B101: February | D101: =D25+D44+D63+D82 -> 108561 | E101: 5.46 | F101: 592743.06 | H101: =H25+H44+H63+H82 -> 0 | I101: 0 | J101: =J25+J44+J63+J82 -> 0 | L101: =L25+L44+L63+L82 -> 0 | M101: 0 | N101: =N25+N44+N63+N82 -> 0 | P101: 0
B102: March | D102: 105073 | E102: 5.46 | F102: 573698.58 | H102: =H26+H45+H64+H83 -> 0 | I102: 0 | J102: =J26+J45+J64+J83 -> 0 | L102: =L26+L45+L64+L83 -> 0 | M102: 0 | N102: =N26+N45+N64+N83 -> 0 | P102: 0
B103: April | D103: 87429 | E103: 5.46 | F103: 477362.34 | H103: =H27+H46+H65+H84 -> 0 | I103: 0 | J103: =J27+J46+J65+J84 -> 0 | L103: =L27+L46+L65+L84 -> 0 | M103: 0 | N103: =N27+N46+N65+N84 -> 0 | P103: 0
B104: May | D104: 64144 | E104: 5.46 | F104: 350226.24 | H104: =H28+H47+H66+H85 -> 0 | I104: 0 | J104: =J28+J47+J66+J85 -> 0 | L104: =L28+L47+L66+L85 -> 0 | M104: 0 | N104: =N28+N47+N66+N85 -> 0 | P104: 0
B105: June | D105: 72483 | E105: 5.46 | F105: 395757.18 | H105: =H29+H48+H67+H86 -> 0 | I105: 0 | J105: =J29+J48+J67+J86 -> 0 | L105: =L29+L48+L67+L86 -> 0 | M105: 0 | N105: =N29+N48+N67+N86 -> 0 | P105: 0
B106: July | D106: 69449 | E106: 5.46 | F106: 379191.54 | H106: =H30+H49+H68+H87 -> 0 | I106: 0 | J106: =J30+J49+J68+J87 -> 0 | L106: =L30+L49+L68+L87 -> 0 | M106: 0 | N106: =N30+N49+N68+N87 -> 0 | P106: 0
B107: August | D107: 74032 | E107: 5.46 | F107: 404214.72 | H107: =H31+H50+H69+H88 -> 0 | I107: 0 | J107: =J31+J50+J69+J88 -> 0 | L107: =L31+L50+L69+L88 -> 0 | M107: 0 | N107: =N31+N50+N69+N88 -> 0 | P107: 0
B108: September | D108: 68321 | E108: 5.46 | F108: 373032.66 | H108: =H32+H51+H70+H89 -> 0 | I108: 0 | J108: =J32+J51+J70+J89 -> 0 | L108: =L32+L51+L70+L89 -> 0 | M108: 0 | N108: =N32+N51+N70+N89 -> 0 | P108: 0
B109: October | D109: 73309 | E109: 5.46 | F109: 400267.14 | H109: =H33+H52+H71+H90 -> 0 | I109: 0 | J109: =J33+J52+J71+J90 -> 0 | L109: =L33+L52+L71+L90 -> 0 | M109: 0 | N109: =N33+N52+N71+N90 -> 0 | P109: 0
B110: November | D110: 95200 | E110: 5.46 | F110: 519792 | H110: =H34+H53+H72+H91 -> 0 | I110: 0 | J110: =J34+J53+J72+J91 -> 0 | L110: =L34+L53+L72+L91 -> 0 | M110: 0 | N110: =N34+N53+N72+N91 -> 0 | P110: 0
B111: December | D111: 106596 | E111: 5.46 | F111: 582014.16 | H111: =H35+H54+H73+H92 -> 0 | I111: 0 | J111: =J35+J54+J73+J92 -> 0 | L111: =L35+L54+L73+L92 -> 0 | M111: 0 | N111: =N35+N54+N73+N92 -> 0 | P111: 0
B113: Total | D113: =SUM(D100:D111) -> 1032572 | E113: =IF(D113<>0,F113/D113,0) -> 5.46 | F113: =SUM(F100:F111) -> 5637843.12 | H113: =SUM(H100:H111) -> 0 | I113: =IF(H113<>0,J113/H113,0) -> 0 | J113: =SUM(J100:J111) -> 0 | L113: =SUM(L100:L111) -> 0 | M113: =IF(L113<>0,N113/L113,0) -> 0 | N113: =SUM(N100:N111) -> 0 | P113: =SUM(P100:P111) -> 0
N115: Low Voltage Switchgear Credit (if applicable) | P115: ='4. UTRs and Sub-Transmission'!L76 -> 0
N117: Total including deduction for Low Voltage Switchgear Credit | P117: =P113+P115 -> 0

Sheet 8. RTSR Rates to Forecast
A13: The purpose of this sheet is to re-align the current RTS Network Rates to recover current wholesale network costs.
A15: Rate Class | B15: Rate Description | C15: Unit | D15: Current RTSR-Network | E15: Loss Adjusted Billed kWh | F15: Billed kW | G15: Billed Amount | H15: Billed Amount % | I15: Current Wholesale Billing | J15: Adjusted RTSR Network
A17: RESIDENTIAL SERVICE CLASSIFICATION | B17: Retail Transmission Rate - Network Service Rate | C17: $/kWh | D17: 0.0086 | E17: 306561058.4 | F17: 0 | G17: =ROUND(D17*E17, 2) -> 2636425.1 | H17: =G17/5409160.58 -> 0.4874000431 | I17: =H17*total_current_wholesale_network -> 2696156.741 | J17: =IF(ISERROR(I17/E17), 0, I17/E17) -> 0.008794844179
A18: GENERAL SERVICE LESS THAN 50 KW SERVICE CLASSIFICATION | B18: Retail Transmission Rate - Network Service Rate | C18: $/kWh | D18: 0.008 | E18: 92829623.19 | F18: 0 | G18: =ROUND(D18*E18, 2) -> 742636.99 | H18: 0.1372924651 | I18: 759462.3971 | J18: =IF(ISERROR(I18/E18), 0, I18/E18) -> 0.008181250457
A19: GENERAL SERVICE 50 to 4,999 kW SERVICE CLASSIFICATION | B19: Retail Transmission Rate - Network Service Rate | C19: $/kW | D19: 3.233 | E19: 92113557.95 | F19: 214683 | G19: =ROUND(D19*F19, 2) -> 694070.14 | H19: 0.1283138353 | I19: 709795.202 | J19: =IF(ISERROR(I19/F19), 0, I19/F19) -> 3.306247826
A20: GENERAL SERVICE 50 to 4,999 kW SERVICE CLASSIFICATION | B20: Retail Transmission Rate - Network Service Rate - Interval Metered | C20: $/kW | D20: 4.0669 | E20: 138170122.4 | F20: 322024 | G20: =ROUND(D20*F20, 2) -> 1309639.41 | H20: 0.2421150917 | I20: 1339310.995 | J20: =IF(ISERROR(I20/F20), 0, I20/F20) -> 4.159040924 | K20: For this line item, please ensure that the consumption and demand values have been adjusted to account for non-interval/interval customers.
A21: UNMETERED SCATTERED LOAD SERVICE CLASSIFICATION | B21: Retail Transmission Rate - Network Service Rate | C21: $/kWh | D21: 0.008 | E21: 920145.8453 | F21: 0 | G21: =ROUND(D21*E21, 2) -> 7361.17 | H21: 0.001360871043 | I21: 7527.946883 | J21: =IF(ISERROR(I21/E21), 0, I21/E21) -> 0.008181254006
A22: SENTINEL LIGHTING SERVICE CLASSIFICATION | B22: Retail Transmission Rate - Network Service Rate | C22: $/kW | D22: 2.4511 | E22: 213404.469 | F22: 596.41 | G22: =ROUND(D22*F22, 2) -> 1461.86 | H22: 0.0002702563509 | I22: 1494.98034 | J22: =IF(ISERROR(I22/F22), 0, I22/F22) -> 2.506631914
A23: STREET LIGHTING SERVICE CLASSIFICATION | B23: Retail Transmission Rate - Network Service Rate | C23: $/kW | D23: 2.4391 | E23: 2578320.214 | F23: 7201.8 | G23: =ROUND(D23*F23, 2) -> 17565.91 | H23: 0.003247437332 | I23: 17963.88854 | J23: =IF(ISERROR(I23/F23), 0, I23/F23) -> 2.49436093
A25: The purpose of this table is to re-align the current RTS Connection Rates to recover current wholesale connection costs.
A26: Rate Class | B26: Rate Description | C26: Unit | D26: Current RTSR-Connection | E26: Loss Adjusted Billed kWh | F26: Billed kW | G26: Billed Amount | H26: Billed Amount % | I26: Current Wholesale Billing | J26: Adjusted RTSR-Connection
A28: RESIDENTIAL SERVICE CLASSIFICATION | B28: Retail Transmission Rate - Network Service Rate | C28: $/kWh | D28: 0.0086 | E28: 306561058.4 | F28: 0 | G28: =ROUND(D28*E28, 2) -> 2636425.1 | H28: =G28/5409160.58 -> 0.4874000431 | I28: =H28*Total_Current_Wholesale_Lineplus -> 0 | J28: =IF(ISERROR(I28/E28), 0, I28/E28) -> 0
A29: GENERAL SERVICE LESS THAN 50 KW SERVICE CLASSIFICATION | B29: Retail Transmission Rate - Network Service Rate | C29: $/kWh | D29: 0.008 | E29: 92829623.19 | F29: 0 | G29: =ROUND(D29*E29, 2) -> 742636.99 | H29: 0.1372924651 | I29: 0 | J29: =IF(ISERROR(I29/E29), 0, I29/E29) -> 0
A30: GENERAL SERVICE 50 to 4,999 kW SERVICE CLASSIFICATION | B30: Retail Transmission Rate - Network Service Rate | C30: $/kW | D30: 3.233 | E30: 92113557.95 | F30: 214683 | G30: =ROUND(D30*F30, 2) -> 694070.14 | H30: 0.1283138353 | I30: 0 | J30: =IF(ISERROR(I30/F30), 0, I30/F30) -> 0
A31: GENERAL SERVICE 50 to 4,999 kW SERVICE CLASSIFICATION | B31: Retail Transmission Rate - Network Service Rate - Interval Metered | C31: $/kW | D31: 4.0669 | E31: 138170122.4 | F31: 322024 | G31: =ROUND(D31*F31, 2) -> 1309639.41 | H31: 0.2421150917 | I31: 0 | J31: =IF(ISERROR(I31/F31), 0, I31/F31) -> 0 | K31: For this line item, please ensure that the consumption and demand values have been adjusted to account for non-interval/interval customers.
A32: UNMETERED SCATTERED LOAD SERVICE CLASSIFICATION | B32: Retail Transmission Rate - Network Service Rate | C32: $/kWh | D32: 0.008 | E32: 920145.8453 | F32: 0 | G32: =ROUND(D32*E32, 2) -> 7361.17 | H32: 0.001360871043 | I32: 0 | J32: =IF(ISERROR(I32/E32), 0, I32/E32) -> 0
A33: SENTINEL LIGHTING SERVICE CLASSIFICATION | B33: Retail Transmission Rate - Network Service Rate | C33: $/kW | D33: 2.4511 | E33: 213404.469 | F33: 596.41 | G33: =ROUND(D33*F33, 2) -> 1461.86 | H33: 0.0002702563509 | I33: 0 | J33: =IF(ISERROR(I33/F33), 0, I33/F33) -> 0
A34: STREET LIGHTING SERVICE CLASSIFICATION | B34: Retail Transmission Rate - Network Service Rate | C34: $/kW | D34: 2.4391 | E34: 2578320.214 | F34: 7201.8 | G34: =ROUND(D34*F34, 2) -> 17565.91 | H34: 0.003247437332 | I34: 0 | J34: =IF(ISERROR(I34/F34), 0, I34/F34) -> 0
A36: The purpose of this table is to update the re-aligned RTS Network Rates to recover future wholesale network costs.
A37: Rate Class | B37: Rate Description | C37: Unit | D37: Adjusted RTSR-Network | E37: Loss Adjusted Billed kWh | F37: Billed kW | G37: Billed Amount | H37: Billed Amount % | I37: Forecast Wholesale Billing | J37: Proposed RTSR-Network
A39: RESIDENTIAL SERVICE CLASSIFICATION | B39: Retail Transmission Rate - Network Service Rate | C39: $/kWh | D39: 0.008794844179 | E39: 306561058.4 | F39: 0 | G39: =IF(ISERROR(D39*E39), 0, ROUND(D39*E39, 2)) -> 2696156.74 | H39: =G39/5531712.15 -> 0.487400043 | I39: =H39*forecast_wholesale_network -> 2747884.979 | J39: =IF(ISERROR(I39/E39), 0, I39/E39) -> 0.008963581328
A40: GENERAL SERVICE LESS THAN 50 KW SERVICE CLASSIFICATION | B40: Retail Transmission Rate - Network Service Rate | C40: $/kWh | D40: 0.008181250457 | E40: 92829623.19 | F40: 0 | G40: =IF(ISERROR(D40*E40), 0, ROUND(D40*E40, 2)) -> 759462.4 | H40: 0.1372924656 | I40: 774033.3825 | J40: =IF(ISERROR(I40/E40), 0, I40/E40) -> 0.00833821528
A41: GENERAL SERVICE 50 to 4,999 kW SERVICE CLASSIFICATION | B41: Retail Transmission Rate - Network Service Rate | C41: $/kW | D41: 3.306247826 | E41: 92113557.95 | F41: 214683 | G41: =ROUND(D41*F41, 2) -> 709795.2 | H41: 0.128313835 | I41: 723413.2718 | J41: =IF(ISERROR(I41/F41), 0, I41/F41) -> 3.369681213
A42: GENERAL SERVICE 50 to 4,999 kW SERVICE CLASSIFICATION | B42: Retail Transmission Rate - Network Service Rate - Interval Metered | C42: $/kW | D42: 4.159040924 | E42: 138170122.4 | F42: 322024 | G42: =ROUND(D42*F42, 2) -> 1339310.99 | H42: 0.2421150909 | I42: 1365006.899 | J42: =IF(ISERROR(I42/F42), 0, I42/F42) -> 4.238835924 | K42: For this line item, please ensure that the consumption and demand values have been adjusted to account for non-interval/interval customers.
A43: UNMETERED SCATTERED LOAD SERVICE CLASSIFICATION | B43: Retail Transmission Rate - Network Service Rate | C43: $/kWh | D43: 0.008181254006 | E43: 920145.8453 | F43: 0 | G43: =IF(ISERROR(D43*E43), 0, ROUND(D43*E43, 2)) -> 7527.95 | H43: 0.001360871606 | I43: 7672.380624 | J43: =IF(ISERROR(I43/E43), 0, I43/E43) -> 0.008338222318
A44: SENTINEL LIGHTING SERVICE CLASSIFICATION | B44: Retail Transmission Rate - Network Service Rate | C44: $/kW | D44: 2.506631914 | E44: 213404.469 | F44: 596.41 | G44: =ROUND(D44*F44, 2) -> 1494.98 | H44: 0.0002702562895 | I44: 1523.662562 | J44: =IF(ISERROR(I44/F44), 0, I44/F44) -> 2.554723365
A45: STREET LIGHTING SERVICE CLASSIFICATION | B45: Retail Transmission Rate - Network Service Rate | C45: $/kW | D45: 2.49436093 | E45: 2578320.214 | F45: 7201.8 | G45: =ROUND(D45*F45, 2) -> 17963.89 | H45: 0.003247437595 | I45: 18308.5437 | J45: =IF(ISERROR(I45/F45), 0, I45/F45) -> 2.542217738
A47: The purpose of this table is to update the re-aligned RTS Connection Rates to recover future wholesale connection costs.
A48: Rate Class | B48: Rate Description | C48: Unit | D48: Adjusted RTSR-Connection | E48: Loss Adjusted Billed kWh | F48: Billed kW | G48: Billed Amount | H48: Billed Amount % | I48: Forecast Wholesale Billing | J48: Proposed RTSR-Connection
A50: RESIDENTIAL SERVICE CLASSIFICATION | B50: Retail Transmission Rate - Network Service Rate | C50: $/kWh | D50: 0 | E50: 306561058.4 | F50: 0 | G50: =ROUND(D50*E50, 2) -> 0 | H50: 0 | I50: =H50*forecast_wholesale_lineplus -> 0 | J50: =IF(ISERROR(I50/E50), 0, I50/E50) -> 0 | K50: Confirm that the correct value is shown in the highlighted cell
A51: GENERAL SERVICE LESS THAN 50 KW SERVICE CLASSIFICATION | B51: Retail Transmission Rate - Network Service Rate | C51: $/kWh | D51: 0 | E51: 92829623.19 | F51: 0 | G51: =ROUND(D51*E51, 2) -> 0 | H51: 0 | I51: 0 | J51: =IF(ISERROR(I51/E51), 0, I51/E51) -> 0 | K51: Confirm that the correct value is shown in the highlighted cell
A52: GENERAL SERVICE 50 to 4,999 kW SERVICE CLASSIFICATION | B52: Retail Transmission Rate - Network Service Rate | C52: $/kW | D52: 0 | E52: 92113557.95 | F52: 214683 | G52: =ROUND(D52*F52, 2) -> 0 | H52: 0 | I52: 0 | J52: =IF(ISERROR(I52/F52), 0, I52/F52) -> 0 | K52: Confirm that the correct value is shown in the highlighted cell
A53: GENERAL SERVICE 50 to 4,999 kW SERVICE CLASSIFICATION | B53: Retail Transmission Rate - Network Service Rate - Interval Metered | C53: $/kW | D53: 0 | E53: 138170122.4 | F53: 322024 | G53: =ROUND(D53*F53, 2) -> 0 | H53: 0 | I53: 0 | J53: =IF(ISERROR(I53/F53), 0, I53/F53) -> 0 | K53: Confirm that the correct value is shown in the highlighted cell
A54: UNMETERED SCATTERED LOAD SERVICE CLASSIFICATION | B54: Retail Transmission Rate - Network Service Rate | C54: $/kWh | D54: 0 | E54: 920145.8453 | F54: 0 | G54: =ROUND(D54*E54, 2) -> 0 | H54: 0 | I54: 0 | J54: =IF(ISERROR(I54/E54), 0, I54/E54) -> 0 | K54: Confirm that the correct value is shown in the highlighted cell
A55: SENTINEL LIGHTING SERVICE CLASSIFICATION | B55: Retail Transmission Rate - Network Service Rate | C55: $/kW | D55: 0 | E55: 213404.469 | F55: 596.41 | G55: =ROUND(D55*F55, 2) -> 0 | H55: 0 | I55: 0 | J55: =IF(ISERROR(I55/F55), 0, I55/F55) -> 0 | K55: Confirm that the correct value is shown in the highlighted cell
A56: STREET LIGHTING SERVICE CLASSIFICATION | B56: Retail Transmission Rate - Network Service Rate | C56: $/kW | D56: 0 | E56: 2578320.214 | F56: 7201.8 | G56: =ROUND(D56*F56, 2) -> 0 | H56: 0 | I56: 0 | J56: =IF(ISERROR(I56/F56), 0, I56/F56) -> 0 | K56: Confirm that the correct value is shown in the highlighted cell

Sheet 9. LV Rates
A13: The purpose of this sheet is to calculate Low Voltage service rates based on a forecasted host distribution expense.
B15: Low Voltage Charges
B17: Host I:
C18: 2017 | D18: =C18+1 -> 2018 | E18: =D18+1 -> 2019 | F18: 2020 | G18: 2021 | H18: =G18+1&" Forecast" -> 2022 Forecast | I18: =G18+2&" Forecast" -> 2023 Forecast | J18: Forecast Methodology
B19: Host Volume
B20: Host Charges
B22: Host II:
C23: =C18 -> 2017 | D23: 2018 | E23: 2019 | F23: 2020 | G23: 2021 | H23: 2022 Forecast | I23: 2023 Forecast | J23: Forecast Methodology
B24: Host Volume
B25: Host Charges
B27: Instructions: The methodology of the test year forecast for host charges is at the distributor's discretion. Please provide a brief descriptor of the methodology used here, and a complete description with rationale in the filed evidence.
B28: Regardless of the methodology chosen, please ensure that the Host Charges for the test year is completed for each host distributor.
B30: Low Voltage Rates
B32: Proposed Loss Factor
B34: Instructions: Please enter the rate class volumes consistent with the proposed load forecast, and proposed loss factor.
B35: If Low Voltage charges are applied based on volumes uplifted for losses, please select Loss Adjusted Volume in cell J34
B37: Rate Class | C37: Unit | D37: =C18+6&" Forecasted Volume" -> 2023 Forecasted Volume | E37: RTSR Connection Rate | F37: Loss Adjusted Volume | G37: RTSR Connection Revenue | H37: Allocation | I37: Allocated Low Voltage Charges | J37: Loss Adjusted Volume | K37: Low Voltage Rates

Sheet RateClasses (hidden)
A2: Alectra Utilities Corporation-Brampton Rate Zone | B2: RESIDENTIAL SERVICE CLASSIFICATION~Retail Transmission Rate - Network Service Rate | C2: RESIDENTIAL SERVICE CLASSIFICATION~Retail Transmission Rate - Line and Transformation Connection Service Rate | D2: GENERAL SERVICE LESS THAN 50 KW SERVICE CLASSIFICATION~Retail Transmission Rate - Network Service Rate | E2: GENERAL SERVICE LESS THAN 50 KW SERVICE CLASSIFICATION~Retail Transmission Rate - Line and Transformation Connection Service Rate | F2: GENERAL SERVICE 50 TO 699 KW SERVICE CLASSIFICATION~Retail Transmission Rate - Network Service Rate | G2: GENERAL SERVICE 50 TO 699 KW SERVICE CLASSIFICATION~Retail Transmission Rate - Line and Transformation Connection Service Rate | H2: GENERAL SERVICE 700 TO 4,999 KW SERVICE CLASSIFICATION~Retail Transmission Rate - Network Service Rate | I2: GENERAL SERVICE 700 TO 4,999 KW SERVICE CLASSIFICATION~Retail Transmission Rate - Line and Transformation Connection Service Rate | J2: LARGE USE SERVICE CLASSIFICATION~Retail Transmission Rate - Network Service Rate | K2: LARGE USE SERVICE CLASSIFICATION~Retail Transmission Rate - Line and Transformation Connection Service Rate | L2: UNMETERED SCATTERED LOAD SERVICE CLASSIFICATION~Retail Transmission Rate - Network Service Rate | M2: UNMETERED SCATTERED LOAD SERVICE CLASSIFICATION~Retail Transmission Rate - Line and Transformation Connection Service Rate | N2: STREET LIGHTING SERVICE CLASSIFICATION~Retail Transmission Rate - Network Service Rate | O2: STREET LIGHTING SERVICE CLASSIFICATION~Retail Transmission Rate - Line and Transformation Connection Service Rate | P2: EMBEDDED DISTRIBUTOR SERVICE CLASSIFICATION~Retail Transmission Rate - Network Service Rate | Q2: EMBEDDED DISTRIBUTOR SERVICE CLASSIFICATION~Retail Transmission Rate - Line and Transformation Connection Service Rate | R2: DISTRIBUTED GENERATION [DGEN] SERVICE CLASSIFICATION~Retail Transmission Rate - Network Service Rate | S2: DISTRIBUTED GENERATION [DGEN] SERVICE CLASSIFICATION~Retail Transmission Rate - Line and Transformation Connection Service Rate
A3: Alectra Utilities Corporation-Enersource Rate Zone | B3: RESIDENTIAL SERVICE CLASSIFICATION~Retail Transmission Rate - Network Service Rate | C3: RESIDENTIAL SERVICE CLASSIFICATION~Retail Transmission Rate - Line and Transformation Connection Service Rate | D3: GENERAL SERVICE LESS THAN 50 KW SERVICE CLASSIFICATION~Retail Transmission Rate - Network Service Rate | E3: GENERAL SERVICE LESS THAN 50 KW SERVICE CLASSIFICATION~Retail Transmission Rate - Line and Transformation Connection Service Rate | F3: GENERAL SERVICE 50 TO 499 KW SERVICE CLASSIFICATION~Retail Transmission Rate - Network Service Rate | G3: GENERAL SERVICE 50 TO 499 KW SERVICE CLASSIFICATION~Retail Transmission Rate - Line and Transformation Connection Service Rate | H3: GENERAL SERVICE 500 TO 4,999 KW SERVICE CLASSIFICATION~Retail Transmission Rate - Network Service Rate | I3: GENERAL SERVICE 500 TO 4,999 KW SERVICE CLASSIFICATION~Retail Transmission Rate - Line and Transformation Connection Service Rate | J3: LARGE USE SERVICE CLASSIFICATION~Retail Transmission Rate - Network Service Rate – Interval Metered | K3: LARGE USE SERVICE CLASSIFICATION~Retail Transmission Rate - Line and Transformation Connection Service Rate – Interval Metered | L3: UNMETERED SCATTERED LOAD SERVICE CLASSIFICATION~Retail Transmission Rate - Network Service Rate | M3: UNMETERED SCATTERED LOAD SERVICE CLASSIFICATION~Retail Transmission Rate - Line and Transformation Connection Service Rate | N3: STREET LIGHTING SERVICE CLASSIFICATION~Retail Transmission Rate - Network Service Rate | O3: STREET LIGHTING SERVICE CLASSIFICATION~Retail Transmission Rate - Line and Transformation Connection Service Rate
A4: Alectra Utilities Corporation-Horizon Utilities Rate Zone | B4: RESIDENTIAL SERVICE CLASSIFICATION~Retail Transmission Rate - Network Service Rate | C4: RESIDENTIAL SERVICE CLASSIFICATION~Retail Transmission Rate - Line and Transformation Connection Service Rate | D4: GENERAL SERVICE LESS THAN 50 KW SERVICE CLASSIFICATION~Retail Transmission Rate - Network Service Rate | E4: GENERAL SERVICE LESS THAN 50 KW SERVICE CLASSIFICATION~Retail Transmission Rate - Line and Transformation Connection Service Rate | F4: GENERAL SERVICE 50 to 4,999 kW SERVICE CLASSIFICATION~Retail Transmission Rate - Network Service Rate | G4: GENERAL SERVICE 50 to 4,999 kW SERVICE CLASSIFICATION~Retail Transmission Rate - Line and Transformation Connection Service Rate | H4: LARGE USE SERVICE CLASSIFICATION~Retail Transmission Rate - Network Service Rate | I4: LARGE USE SERVICE CLASSIFICATION~Retail Transmission Rate - Line and Transformation Connection Service Rate | J4: LARGE USE WITH DEDICATED ASSETS SERVICE CLASSIFICATION~Retail Transmission Rate - Network Service Rate | K4: LARGE USE WITH DEDICATED ASSETS SERVICE CLASSIFICATION~Retail Transmission Rate - Line and Transformation Connection Service Rate | L4: UNMETERED SCATTERED LOAD SERVICE CLASSIFICATION~Retail Transmission Rate - Network Service Rate | M4: UNMETERED SCATTERED LOAD SERVICE CLASSIFICATION~Retail Transmission Rate - Line and Transformation Connection Service Rate | N4: SENTINEL LIGHTING SERVICE CLASSIFICATION~Retail Transmission Rate - Network Service Rate | O4: SENTINEL LIGHTING SERVICE CLASSIFICATION~Retail Transmission Rate - Line and Transformation Connection Service Rate | P4: STREET LIGHTING SERVICE CLASSIFICATION~Retail Transmission Rate - Network Service Rate | Q4: STREET LIGHTING SERVICE CLASSIFICATION~Retail Transmission Rate - Line and Transformation Connection Service Rate
A5: Alectra Utilities Corporation-PowerStream Rate Zone | B5: RESIDENTIAL SERVICE CLASSIFICATION~Retail Transmission Rate - Network Service Rate | C5: RESIDENTIAL SERVICE CLASSIFICATION~Retail Transmission Rate - Line and Transformation Connection Service Rate | D5: GENERAL SERVICE LESS THAN 50 KW SERVICE CLASSIFICATION~Retail Transmission Rate - Network Service Rate | E5: GENERAL SERVICE LESS THAN 50 KW SERVICE CLASSIFICATION~Retail Transmission Rate - Line and Transformation Connection Service Rate | F5: GENERAL SERVICE 50 to 4,999 kW SERVICE CLASSIFICATION~Retail Transmission Rate - Network Service Rate | G5: GENERAL SERVICE 50 to 4,999 kW SERVICE CLASSIFICATION~Retail Transmission Rate - Line and Transformation Connection Service Rate | H5: GENERAL SERVICE 50 to 4,999 kW SERVICE CLASSIFICATION~Retail Transmission Rate - Network Service Rate – Interval Metered | I5: GENERAL SERVICE 50 to 4,999 kW SERVICE CLASSIFICATION~Retail Transmission Rate - Line and Transformation Connection Service Rate – Interval Metered | J5: LARGE USE SERVICE CLASSIFICATION~Retail Transmission Rate - Network Service Rate | K5: LARGE USE SERVICE CLASSIFICATION~Retail Transmission Rate - Line and Transformation Connection Service Rate | L5: UNMETERED SCATTERED LOAD SERVICE CLASSIFICATION~Retail Transmission Rate - Network Service Rate | M5: UNMETERED SCATTERED LOAD SERVICE CLASSIFICATION~Retail Transmission Rate - Line and Transformation Connection Service Rate | N5: SENTINEL LIGHTING SERVICE CLASSIFICATION~Retail Transmission Rate - Network Service Rate | O5: SENTINEL LIGHTING SERVICE CLASSIFICATION~Retail Transmission Rate - Line and Transformation Connection Service Rate | P5: STREET LIGHTING SERVICE CLASSIFICATION~Retail Transmission Rate - Network Service Rate | Q5: STREET LIGHTING SERVICE CLASSIFICATION~Retail Transmission Rate - Line and Transformation Connection Service Rate
A6: Algoma Power Inc. | B6: RESIDENTIAL R1 SERVICE CLASSIFICATION~Retail Transmission Rate - Network Service Rate | C6: RESIDENTIAL R1 SERVICE CLASSIFICATION~Retail Transmission Rate - Line and Transformation Connection Service Rate | D6: RESIDENTIAL R2 SERVICE CLASSIFICATION~Retail Transmission Rate - Network Service Rate | E6: RESIDENTIAL R2 SERVICE CLASSIFICATION~Retail Transmission Rate - Line and Transformation Connection Service Rate | F6: SEASONAL CUSTOMERS SERVICE CLASSIFICATION~Retail Transmission Rate - Network Service Rate | G6: SEASONAL CUSTOMERS SERVICE CLASSIFICATION~Retail Transmission Rate - Line and Transformation Connection Service Rate | H6: STREET LIGHTING SERVICE CLASSIFICATION~Retail Transmission Rate - Network Service Rate | I6: STREET LIGHTING SERVICE CLASSIFICATION~Retail Transmission Rate - Line and Transformation Connection Service Rate
A7: Centre Wellington Hydro Ltd. | B7: RESIDENTIAL SERVICE CLASSIFICATION~Retail Transmission Rate - Network Service Rate | C7: RESIDENTIAL SERVICE CLASSIFICATION~Retail Transmission Rate - Line and Transformation Connection Service Rate | D7: GENERAL SERVICE LESS THAN 50 KW SERVICE CLASSIFICATION~Retail Transmission Rate - Network Service Rate | E7: GENERAL SERVICE LESS THAN 50 KW SERVICE CLASSIFICATION~Retail Transmission Rate - Line and Transformation Connection Service Rate | F7: GENERAL SERVICE 50 TO 2,999 KW SERVICE CLASSIFICATION~Retail Transmission Rate - Network Service Rate | G7: GENERAL SERVICE 50 TO 2,999 KW SERVICE CLASSIFICATION~Retail Transmission Rate - Line and Transformation Connection Service Rate | H7: GENERAL SERVICE 3,000 TO 4,999 KW SERVICE CLASSIFICATION~Retail Transmission Rate - Network Service Rate | I7: GENERAL SERVICE 3,000 TO 4,999 KW SERVICE CLASSIFICATION~Retail Transmission Rate - Line and Transformation Connection Service Rate | J7: UNMETERED SCATTERED LOAD SERVICE CLASSIFICATION~Retail Transmission Rate - Network Service Rate | K7: UNMETERED SCATTERED LOAD SERVICE CLASSIFICATION~Retail Transmission Rate - Line and Transformation Connection Service Rate | L7: SENTINEL LIGHTING SERVICE CLASSIFICATION~Retail Transmission Rate - Network Service Rate | M7: SENTINEL LIGHTING SERVICE CLASSIFICATION~Retail Transmission Rate - Line and Transformation Connection Service Rate | N7: STREET LIGHTING SERVICE CLASSIFICATION~Retail Transmission Rate - Network Service Rate | O7: STREET LIGHTING SERVICE CLASSIFICATION~Retail Transmission Rate - Line and Transformation Connection Service Rate
A8: Canadian Niagara Power Inc. | B8: RESIDENTIAL SERVICE CLASSIFICATION~Retail Transmission Rate - Network Service Rate | C8: RESIDENTIAL SERVICE CLASSIFICATION~Retail Transmission Rate - Line and Transformation Connection Service Rate | D8: GENERAL SERVICE LESS THAN 50 KW SERVICE CLASSIFICATION~Retail Transmission Rate - Network Service Rate | E8: GENERAL SERVICE LESS THAN 50 KW SERVICE CLASSIFICATION~Retail Transmission Rate - Line and Transformation Connection Service Rate | F8: GENERAL SERVICE 50 to 4,999 kW SERVICE CLASSIFICATION~Retail Transmission Rate - Network Service Rate | G8: GENERAL SERVICE 50 to 4,999 kW SERVICE CLASSIFICATION~Retail Transmission Rate - Line and Transformation Connection Service Rate | H8: EMBEDDED DISTRIBUTOR SERVICE CLASSIFICATION~Retail Transmission Rate - Network Service Rate | I8: EMBEDDED DISTRIBUTOR SERVICE CLASSIFICATION~Retail Transmission Rate - Line and Transformation Connection Service Rate | J8: UNMETERED SCATTERED LOAD SERVICE CLASSIFICATION~Retail Transmission Rate - Network Service Rate | K8: UNMETERED SCATTERED LOAD SERVICE CLASSIFICATION~Retail Transmission Rate - Line and Transformation Connection Service Rate | L8: SENTINEL LIGHTING SERVICE CLASSIFICATION~Retail Transmission Rate - Network Service Rate | M8: SENTINEL LIGHTING SERVICE CLASSIFICATION~Retail Transmission Rate - Line and Transformation Connection Service Rate | N8: STREET LIGHTING SERVICE CLASSIFICATION~Retail Transmission Rate - Network Service Rate | O8: STREET LIGHTING SERVICE CLASSIFICATION~Retail Transmission Rate - Line and Transformation Connection Service Rate
A9: Entegrus Powerlines Inc. | B9: RESIDENTIAL SERVICE CLASSIFICATION~Retail Transmission Rate - Network Service Rate | C9: RESIDENTIAL SERVICE CLASSIFICATION~Retail Transmission Rate - Line and Transformation Connection Service Rate | D9: GENERAL SERVICE LESS THAN 50 KW SERVICE CLASSIFICATION~Retail Transmission Rate - Network Service Rate | E9: GENERAL SERVICE LESS THAN 50 KW SERVICE CLASSIFICATION~Retail Transmission Rate - Line and Transformation Connection Service Rate | F9: GENERAL SERVICE 50 to 4,999 kW SERVICE CLASSIFICATION~Retail Transmission Rate - Network Service Rate | G9: GENERAL SERVICE 50 to 4,999 kW SERVICE CLASSIFICATION~Retail Transmission Rate - Line and Transformation Connection Service Rate (see Note 1) | H9: LARGE USE SERVICE CLASSIFICATION~Retail Transmission Rate - Network Service Rate | I9: LARGE USE SERVICE CLASSIFICATION~Retail Transmission Rate - Line and Transformation Connection Service Rate (see Note 1) | J9: UNMETERED SCATTERED LOAD SERVICE CLASSIFICATION~Retail Transmission Rate - Network Service Rate | K9: UNMETERED SCATTERED LOAD SERVICE CLASSIFICATION~Retail Transmission Rate - Line and Transformation Connection Service Rate | L9: SENTINEL LIGHTING SERVICE CLASSIFICATION~Retail Transmission Rate - Network Service Rate | M9: SENTINEL LIGHTING SERVICE CLASSIFICATION~Retail Transmission Rate - Line and Transformation Connection Service Rate | N9: STREET LIGHTING SERVICE CLASSIFICATION~Retail Transmission Rate - Network Service Rate | O9: STREET LIGHTING SERVICE CLASSIFICATION~Retail Transmission Rate - Line and Transformation Connection Service Rate | P9: EMBEDDED DISTRIBUTOR SERVICE CLASSIFICATION~Retail Transmission Rate - Network Service Rate | Q9: EMBEDDED DISTRIBUTOR SERVICE CLASSIFICATION~Retail Transmission Rate - Line and Transformation Connection Service Rate
A10: Entegrus Powerlines Inc.-For Former St. Thomas Energy Rate Zone | B10: RESIDENTIAL SERVICE CLASSIFICATION~Retail Transmission Rate - Network Service Rate | C10: RESIDENTIAL SERVICE CLASSIFICATION~Retail Transmission Rate - Line and Transformation Connection Service Rate | D10: GENERAL SERVICE LESS THAN 50 KW SERVICE CLASSIFICATION~Retail Transmission Rate - Network Service Rate | E10: GENERAL SERVICE LESS THAN 50 KW SERVICE CLASSIFICATION~Retail Transmission Rate - Line and Transformation Connection Service Rate | F10: GENERAL SERVICE 50 to 4,999 kW SERVICE CLASSIFICATION~Retail Transmission Rate - Network Service Rate | G10: GENERAL SERVICE 50 to 4,999 kW SERVICE CLASSIFICATION~Retail Transmission Rate - Line and Transformation Connection Service Rate | H10: SENTINEL LIGHTING SERVICE CLASSIFICATION~Retail Transmission Rate - Network Service Rate | I10: SENTINEL LIGHTING SERVICE CLASSIFICATION~Retail Transmission Rate - Line and Transformation Connection Service Rate | J10: STREET LIGHTING SERVICE CLASSIFICATION~Retail Transmission Rate - Network Service Rate | K10: STREET LIGHTING SERVICE CLASSIFICATION~Retail Transmission Rate - Line and Transformation Connection Service Rate
A11: Festival Hydro Inc. | B11: RESIDENTIAL SERVICE CLASSIFICATION~Retail Transmission Rate - Network Service Rate | C11: RESIDENTIAL SERVICE CLASSIFICATION~Retail Transmission Rate - Line and Transformation Connection Service Rate | D11: GENERAL SERVICE LESS THAN 50 KW SERVICE CLASSIFICATION~Retail Transmission Rate - Network Service Rate | E11: GENERAL SERVICE LESS THAN 50 KW SERVICE CLASSIFICATION~Retail Transmission Rate - Line and Transformation Connection Service Rate | F11: GENERAL SERVICE 50 to 4,999 kW SERVICE CLASSIFICATION~Retail Transmission Rate - Network Service Rate | G11: GENERAL SERVICE 50 to 4,999 kW SERVICE CLASSIFICATION~Retail Transmission Rate - Line and Transformation Connection Service Rate | H11: GENERAL SERVICE 50 to 4,999 kW SERVICE CLASSIFICATION~Retail Transmission Rate - Network Service Rate - Interval Metered | I11: GENERAL SERVICE 50 to 4,999 kW SERVICE CLASSIFICATION~Retail Transmission Rate - Line and Transformation Connection Service Rate - Interval Metered | J11: LARGE USE SERVICE CLASSIFICATION~Retail Transmission Rate - Network Service Rate - Interval Metered | K11: LARGE USE SERVICE CLASSIFICATION~Retail Transmission Rate - Line and Transformation Connection Service Rate - Interval Metered | L11: UNMETERED SCATTERED LOAD SERVICE CLASSIFICATION~Retail Transmission Rate - Network Service Rate | M11: UNMETERED SCATTERED LOAD SERVICE CLASSIFICATION~Retail Transmission Rate - Line and Transformation Connection Service Rate | N11: SENTINEL LIGHTING SERVICE CLASSIFICATION~Retail Transmission Rate - Network Service Rate | O11: SENTINEL LIGHTING SERVICE CLASSIFICATION~Retail Transmission Rate - Line and Transformation Connection Service Rate | P11: STREET LIGHTING SERVICE CLASSIFICATION~Retail Transmission Rate - Network Service Rate | Q11: STREET LIGHTING SERVICE CLASSIFICATION~Retail Transmission Rate - Line and Transformation Connection Service Rate
A12: Grimsby Power Incorporated | B12: RESIDENTIAL SERVICE CLASSIFICATION~Retail Transmission Rate - Network Service Rate | C12: RESIDENTIAL SERVICE CLASSIFICATION~Retail Transmission Rate - Line and Transformation Connection Service Rate | D12: GENERAL SERVICE LESS THAN 50 KW SERVICE CLASSIFICATION~Retail Transmission Rate - Network Service Rate | E12: GENERAL SERVICE LESS THAN 50 KW SERVICE CLASSIFICATION~Retail Transmission Rate - Line and Transformation Connection Service Rate | F12: GENERAL SERVICE 50 to 4,999 kW SERVICE CLASSIFICATION~Retail Transmission Rate - Network Service Rate | G12: GENERAL SERVICE 50 to 4,999 kW SERVICE CLASSIFICATION~Retail Transmission Rate - Line and Transformation Connection Service Rate | H12: GENERAL SERVICE 50 to 4,999 kW SERVICE CLASSIFICATION~Retail Transmission Rate - Network Service Rate - Interval Metered | I12: GENERAL SERVICE 50 to 4,999 kW SERVICE CLASSIFICATION~Retail Transmission Rate - Line and Transformation Connection Service Rate - Interval Metered | J12: UNMETERED SCATTERED LOAD SERVICE CLASSIFICATION~Retail Transmission Rate - Network Service Rate | K12: UNMETERED SCATTERED LOAD SERVICE CLASSIFICATION~Retail Transmission Rate - Line and Transformation Connection Service Rate | L12: STREET LIGHTING SERVICE CLASSIFICATION~Retail Transmission Rate - Network Service Rate | M12: STREET LIGHTING SERVICE CLASSIFICATION~Retail Transmission Rate - Line and Transformation Connection Service Rate | N12: EMBEDDED DISTRIBUTOR SERVICE CLASSIFICATION~Retail Transmission Rate - Network Service Rate | O12: EMBEDDED DISTRIBUTOR SERVICE CLASSIFICATION~Retail Transmission Rate - Line and Transformation Connection Service Rate
A13: Alectra Utilities Corporation-Guelph Rate Zone | B13: RESIDENTIAL SERVICE CLASSIFICATION~Retail Transmission Rate - Network Service Rate | C13: RESIDENTIAL SERVICE CLASSIFICATION~Retail Transmission Rate - Line and Transformation Connection Service Rate | D13: GENERAL SERVICE LESS THAN 50 KW SERVICE CLASSIFICATION~Retail Transmission Rate - Network Service Rate | E13: GENERAL SERVICE LESS THAN 50 KW SERVICE CLASSIFICATION~Retail Transmission Rate - Line and Transformation Connection Service Rate | F13: GENERAL SERVICE 50 TO 999 KW SERVICE CLASSIFICATION~Retail Transmission Rate - Network Service Rate | G13: GENERAL SERVICE 50 TO 999 KW SERVICE CLASSIFICATION~Retail Transmission Rate - Network Service Rate - Interval Metered | H13: GENERAL SERVICE 50 TO 999 KW SERVICE CLASSIFICATION~Retail Transmission Rate - Line and Transformation Connection Service Rate | I13: GENERAL SERVICE 50 TO 999 KW SERVICE CLASSIFICATION~Retail Transmission Rate - Line and Transformation Connection Service Rate - Interval Metered | J13: GENERAL SERVICE 1,000 TO 4,999 KW SERVICE CLASSIFICATION~Retail Transmission Rate - Network Service Rate - Interval Metered | K13: GENERAL SERVICE 1,000 TO 4,999 KW SERVICE CLASSIFICATION~Retail Transmission Rate - Line and Transformation Connection Service Rate - Interval Metered | L13: LARGE USE SERVICE CLASSIFICATION~Retail Transmission Rate - Network Service Rate - Interval Metered | M13: LARGE USE SERVICE CLASSIFICATION~Retail Transmission Rate - Line and Transformation Connection Service Rate - Interval Metered | N13: UNMETERED SCATTERED LOAD SERVICE CLASSIFICATION~Retail Transmission Rate - Network Service Rate | O13: UNMETERED SCATTERED LOAD SERVICE CLASSIFICATION~Retail Transmission Rate - Line and Transformation Connection Service Rate | P13: SENTINEL LIGHTING SERVICE CLASSIFICATION~Retail Transmission Rate - Network Service Rate | Q13: SENTINEL LIGHTING SERVICE CLASSIFICATION~Retail Transmission Rate - Line and Transformation Connection Service Rate | R13: STREET LIGHTING SERVICE CLASSIFICATION~Retail Transmission Rate - Network Service Rate | S13: STREET LIGHTING SERVICE CLASSIFICATION~Retail Transmission Rate - Line and Transformation Connection Service Rate
A14: Hydro Hawkesbury Inc. | B14: RESIDENTIAL SERVICE CLASSIFICATION~Retail Transmission Rate - Network Service Rate | C14: RESIDENTIAL SERVICE CLASSIFICATION~Retail Transmission Rate - Line and Transformation Connection Service Rate | D14: GENERAL SERVICE LESS THAN 50 KW SERVICE CLASSIFICATION~Retail Transmission Rate - Network Service Rate | E14: GENERAL SERVICE LESS THAN 50 KW SERVICE CLASSIFICATION~Retail Transmission Rate - Line and Transformation Connection Service Rate | F14: GENERAL SERVICE 50 to 4,999 kW SERVICE CLASSIFICATION~Retail Transmission Rate - Network Service Rate | G14: GENERAL SERVICE 50 to 4,999 kW SERVICE CLASSIFICATION~Retail Transmission Rate - Line and Transformation Connection Service Rate | H14: UNMETERED SCATTERED LOAD SERVICE CLASSIFICATION~Retail Transmission Rate - Network Service Rate | I14: UNMETERED SCATTERED LOAD SERVICE CLASSIFICATION~Retail Transmission Rate - Line and Transformation Connection Service Rate | J14: SENTINEL LIGHTING SERVICE CLASSIFICATION~Retail Transmission Rate - Network Service Rate | K14: SENTINEL LIGHTING SERVICE CLASSIFICATION~Retail Transmission Rate - Line and Transformation Connection Service Rate | L14: STREET LIGHTING SERVICE CLASSIFICATION~Retail Transmission Rate - Network Service Rate | M14: STREET LIGHTING SERVICE CLASSIFICATION~Retail Transmission Rate - Line and Transformation Connection Service Rate
A15: Hydro Ottawa Limited | B15: RESIDENTIAL SERVICE CLASSIFICATION~Retail Transmission Rate - Network Service Rate | C15: RESIDENTIAL SERVICE CLASSIFICATION~Retail Transmission Rate - Line and Transformation Connection Service Rate | D15: GENERAL SERVICE LESS THAN 50 KW SERVICE CLASSIFICATION~Retail Transmission Rate - Network Service Rate | E15: GENERAL SERVICE LESS THAN 50 KW SERVICE CLASSIFICATION~Retail Transmission Rate - Line and Transformation Connection Service Rate | F15: GENERAL SERVICE 50 TO 1,499 KW SERVICE CLASSIFICATION~Retail Transmission Rate - Network Service Rate | G15: GENERAL SERVICE 50 TO 1,499 KW SERVICE CLASSIFICATION~Retail Transmission Rate - Line and Transformation Connection Service Rate | H15: GENERAL SERVICE 1,500 TO 4,999 KW SERVICE CLASSIFICATION~Retail Transmission Rate - Network Service Rate | I15: GENERAL SERVICE 1,500 TO 4,999 KW SERVICE CLASSIFICATION~Retail Transmission Rate - Line and Transformation Connection Service Rate | J15: LARGE USE SERVICE CLASSIFICATION~Retail Transmission Rate - Network Service Rate | K15: LARGE USE SERVICE CLASSIFICATION~Retail Transmission Rate - Line and Transformation Connection Service Rate | L15: UNMETERED SCATTERED LOAD SERVICE CLASSIFICATION~Retail Transmission Rate - Network Service Rate | M15: UNMETERED SCATTERED LOAD SERVICE CLASSIFICATION~Retail Transmission Rate - Line and Transformation Connection Service Rate | N15: SENTINEL LIGHTING SERVICE CLASSIFICATION~Retail Transmission Rate - Network Service Rate | O15: SENTINEL LIGHTING SERVICE CLASSIFICATION~Retail Transmission Rate - Line and Transformation Connection Service Rate | P15: STREET LIGHTING SERVICE CLASSIFICATION~Retail Transmission Rate - Network Service Rate | Q15: STREET LIGHTING SERVICE CLASSIFICATION~Retail Transmission Rate - Line and Transformation Connection Service Rate
A16: InnPower Corporation | B16: RESIDENTIAL SERVICE CLASSIFICATION~Retail Transmission Rate - Network Service Rate | C16: RESIDENTIAL SERVICE CLASSIFICATION~Retail Transmission Rate - Line and Transformation Connection Service Rate | D16: GENERAL SERVICE LESS THAN 50 KW SERVICE CLASSIFICATION~Retail Transmission Rate - Network Service Rate | E16: GENERAL SERVICE LESS THAN 50 KW SERVICE CLASSIFICATION~Retail Transmission Rate - Line and Transformation Connection Service Rate | F16: GENERAL SERVICE 50 to 4,999 kW SERVICE CLASSIFICATION~Retail Transmission Rate - Network Service Rate | G16: GENERAL SERVICE 50 to 4,999 kW SERVICE CLASSIFICATION~Retail Transmission Rate - Line and Transformation Connection Service Rate | H16: GENERAL SERVICE 50 to 4,999 kW SERVICE CLASSIFICATION~Retail Transmission Rate - Network Service Rate - Interval Metered | I16: GENERAL SERVICE 50 to 4,999 kW SERVICE CLASSIFICATION~Retail Transmission Rate - Line and Transformation Connection Service Rate - Interval Metered | J16: UNMETERED SCATTERED LOAD SERVICE CLASSIFICATION~Retail Transmission Rate - Network Service Rate | K16: UNMETERED SCATTERED LOAD SERVICE CLASSIFICATION~Retail Transmission Rate - Line and Transformation Connection Service Rate | L16: SENTINEL LIGHTING SERVICE CLASSIFICATION~Retail Transmission Rate - Network Service Rate | M16: SENTINEL LIGHTING SERVICE CLASSIFICATION~Retail Transmission Rate - Line and Transformation Connection Service Rate | N16: STREET LIGHTING SERVICE CLASSIFICATION~Retail Transmission Rate - Network Service Rate | O16: STREET LIGHTING SERVICE CLASSIFICATION~Retail Transmission Rate - Line and Transformation Connection Service Rate
A17: Kingston Hydro Corporation | B17: RESIDENTIAL SERVICE CLASSIFICATION~Retail Transmission Rate - Network Service Rate | C17: RESIDENTIAL SERVICE CLASSIFICATION~Retail Transmission Rate - Line and Transformation Connection Service Rate | D17: GENERAL SERVICE LESS THAN 50 KW SERVICE CLASSIFICATION~Retail Transmission Rate - Network Service Rate | E17: GENERAL SERVICE LESS THAN 50 KW SERVICE CLASSIFICATION~Retail Transmission Rate - Line and Transformation Connection Service Rate | F17: GENERAL SERVICE 50 to 4,999 kW SERVICE CLASSIFICATION~Retail Transmission Rate - Network Service Rate | G17: GENERAL SERVICE 50 to 4,999 kW SERVICE CLASSIFICATION~Retail Transmission Rate - Line and Transformation Connection Service Rate | H17: LARGE USE SERVICE CLASSIFICATION~Retail Transmission Rate - Network Service Rate | I17: LARGE USE SERVICE CLASSIFICATION~Retail Transmission Rate - Line and Transformation Connection Service Rate | J17: UNMETERED SCATTERED LOAD SERVICE CLASSIFICATION~Retail Transmission Rate - Network Service Rate | K17: UNMETERED SCATTERED LOAD SERVICE CLASSIFICATION~Retail Transmission Rate - Line and Transformation Connection Service Rate | L17: STREET LIGHTING SERVICE CLASSIFICATION~Retail Transmission Rate - Network Service Rate | M17: STREET LIGHTING SERVICE CLASSIFICATION~Retail Transmission Rate - Line and Transformation Connection Service Rate
A18: Kitchener-Wilmot Hydro Inc. | B18: RESIDENTIAL SERVICE CLASSIFICATION~Retail Transmission Rate - Network Service Rate | C18: RESIDENTIAL SERVICE CLASSIFICATION~Retail Transmission Rate - Line and Transformation Connection Service Rate | D18: GENERAL SERVICE LESS THAN 50 KW SERVICE CLASSIFICATION~Retail Transmission Rate - Network Service Rate | E18: GENERAL SERVICE LESS THAN 50 KW SERVICE CLASSIFICATION~Retail Transmission Rate - Line and Transformation Connection Service Rate | F18: GENERAL SERVICE 50 to 4,999 kW SERVICE CLASSIFICATION~Retail Transmission Rate - Network Service Rate | G18: GENERAL SERVICE 50 to 4,999 kW SERVICE CLASSIFICATION~Retail Transmission Rate - Line and Transformation Connection Service Rate | H18: LARGE USE SERVICE CLASSIFICATION~Retail Transmission Rate - Network Service Rate - Interval Metered | I18: LARGE USE SERVICE CLASSIFICATION~Retail Transmission Rate - Line and Transformation Connection Service Rate - Interval Metered | J18: UNMETERED SCATTERED LOAD SERVICE CLASSIFICATION~Retail Transmission Rate - Network Service Rate | K18: UNMETERED SCATTERED LOAD SERVICE CLASSIFICATION~Retail Transmission Rate - Line and Transformation Connection Service Rate | L18: STREET LIGHTING SERVICE CLASSIFICATION~Retail Transmission Rate - Network Service Rate | M18: STREET LIGHTING SERVICE CLASSIFICATION~Retail Transmission Rate - Line and Transformation Connection Service Rate | N18: EMBEDDED DISTRIBUTOR SERVICE CLASSIFICATION~Retail Transmission Rate - Network Service Rate | O18: EMBEDDED DISTRIBUTOR SERVICE CLASSIFICATION~Retail Transmission Rate - Line and Transformation Connection Service Rate
A19: Renfrew Hydro Inc. | B19: RESIDENTIAL SERVICE CLASSIFICATION~Retail Transmission Rate - Network Service Rate | C19: RESIDENTIAL SERVICE CLASSIFICATION~Retail Transmission Rate - Line and Transformation Connection Service Rate | D19: GENERAL SERVICE LESS THAN 50 KW SERVICE CLASSIFICATION~Retail Transmission Rate - Network Service Rate | E19: GENERAL SERVICE LESS THAN 50 KW SERVICE CLASSIFICATION~Retail Transmission Rate - Line and Transformation Connection Service Rate | F19: GENERAL SERVICE 50 to 4,999 kW SERVICE CLASSIFICATION~Retail Transmission Rate - Network Service Rate | G19: GENERAL SERVICE 50 to 4,999 kW SERVICE CLASSIFICATION~Retail Transmission Rate - Line and Transformation Connection Service Rate | H19: UNMETERED SCATTERED LOAD SERVICE CLASSIFICATION~Retail Transmission Rate - Network Service Rate | I19: UNMETERED SCATTERED LOAD SERVICE CLASSIFICATION~Retail Transmission Rate - Line and Transformation Connection Service Rate | J19: STREET LIGHTING SERVICE CLASSIFICATION~Retail Transmission Rate - Network Service Rate | K19: STREET LIGHTING SERVICE CLASSIFICATION~Retail Transmission Rate - Line and Transformation Connection Service Rate
A20: Cooperative Hydro Embrun Inc. | B20: RESIDENTIAL SERVICE CLASSIFICATION~Retail Transmission Rate - Network Service Rate | C20: RESIDENTIAL SERVICE CLASSIFICATION~Retail Transmission Rate - Line and Transformation Connection Service Rate | D20: GENERAL SERVICE LESS THAN 50 KW SERVICE CLASSIFICATION~Retail Transmission Rate - Network Service Rate | E20: GENERAL SERVICE LESS THAN 50 KW SERVICE CLASSIFICATION~Retail Transmission Rate - Line and Transformation Connection Service Rate | F20: GENERAL SERVICE 50 to 4,999 kW SERVICE CLASSIFICATION~Retail Transmission Rate - Network Service Rate | G20: GENERAL SERVICE 50 to 4,999 kW SERVICE CLASSIFICATION~Retail Transmission Rate - Line and Transformation Connection Service Rate | H20: UNMETERED SCATTERED LOAD SERVICE CLASSIFICATION~Retail Transmission Rate - Network Service Rate | I20: UNMETERED SCATTERED LOAD SERVICE CLASSIFICATION~Retail Transmission Rate - Line and Transformation Connection Service Rate | J20: STREET LIGHTING SERVICE CLASSIFICATION~Retail Transmission Rate - Network Service Rate | K20: STREET LIGHTING SERVICE CLASSIFICATION~Retail Transmission Rate - Line and Transformation Connection Service Rate
A21: Lakefront Utilities Inc. | B21: RESIDENTIAL SERVICE CLASSIFICATION~Retail Transmission Rate - Network Service Rate | C21: RESIDENTIAL SERVICE CLASSIFICATION~Retail Transmission Rate - Line and Transformation Connection Service Rate | D21: GENERAL SERVICE LESS THAN 50 KW SERVICE CLASSIFICATION~Retail Transmission Rate - Network Service Rate | E21: GENERAL SERVICE LESS THAN 50 KW SERVICE CLASSIFICATION~Retail Transmission Rate - Line and Transformation Connection Service Rate | F21: GENERAL SERVICE 50 TO 2,999 KW SERVICE CLASSIFICATION~Retail Transmission Rate - Network Service Rate | G21: GENERAL SERVICE 50 TO 2,999 KW SERVICE CLASSIFICATION~Retail Transmission Rate - Line and Transformation Connection Service Rate | H21: GENERAL SERVICE 3,000 TO 4,999 KW SERVICE CLASSIFICATION~Retail Transmission Rate - Network Service Rate | I21: GENERAL SERVICE 3,000 TO 4,999 KW SERVICE CLASSIFICATION~Retail Transmission Rate - Line and Transformation Connection Service Rate | J21: UNMETERED SCATTERED LOAD SERVICE CLASSIFICATION~Retail Transmission Rate - Network Service Rate | K21: UNMETERED SCATTERED LOAD SERVICE CLASSIFICATION~Retail Transmission Rate - Line and Transformation Connection Service Rate | L21: SENTINEL LIGHTING SERVICE CLASSIFICATION~Retail Transmission Rate - Network Service Rate | M21: SENTINEL LIGHTING SERVICE CLASSIFICATION~Retail Transmission Rate - Line and Transformation Connection Service Rate | N21: STREET LIGHTING SERVICE CLASSIFICATION~Retail Transmission Rate - Network Service Rate | O21: STREET LIGHTING SERVICE CLASSIFICATION~Retail Transmission Rate - Line and Transformation Connection Service Rate
A22: Toronto Hydro-Electric System Limited | B22: RESIDENTIAL SERVICE CLASSIFICATION~Retail Transmission Rate - Network Service Rate | C22: RESIDENTIAL SERVICE CLASSIFICATION~Retail Transmission Rate - Line and Transformation Connection Service Rate | D22: COMPETITIVE SECTOR MULTI-UNIT RESIDENTIAL SERVICE CLASSIFICATION~Retail Transmission Rate - Network Service Rate | E22: COMPETITIVE SECTOR MULTI-UNIT RESIDENTIAL SERVICE CLASSIFICATION~Retail Transmission Rate - Line and Transformation Connection Service Rate | F22: GENERAL SERVICE LESS THAN 50 KW SERVICE CLASSIFICATION~Retail Transmission Rate - Network Service Rate | G22: GENERAL SERVICE LESS THAN 50 KW SERVICE CLASSIFICATION~Retail Transmission Rate - Line and Transformation Connection Service Rate | H22: GENERAL SERVICE 50 TO 999 KW SERVICE CLASSIFICATION~Retail Transmission Rate - Network Service Rate | I22: GENERAL SERVICE 50 TO 999 KW SERVICE CLASSIFICATION~Retail Transmission Rate - Line and Transformation Connection Service Rate | J22: GENERAL SERVICE 1,000 TO 4,999 KW SERVICE CLASSIFICATION~Retail Transmission Rate - Network Service Rate | K22: GENERAL SERVICE 1,000 TO 4,999 KW SERVICE CLASSIFICATION~Retail Transmission Rate - Line and Transformation Connection Service Rate | L22: LARGE USE SERVICE CLASSIFICATION~Retail Transmission Rate - Network Service Rate | M22: LARGE USE SERVICE CLASSIFICATION~Retail Transmission Rate - Line and Transformation Connection Service Rate | N22: UNMETERED SCATTERED LOAD SERVICE CLASSIFICATION~Retail Transmission Rate - Network Service Rate | O22: UNMETERED SCATTERED LOAD SERVICE CLASSIFICATION~Retail Transmission Rate - Line and Transformation Connection Service Rate | P22: STREET LIGHTING SERVICE CLASSIFICATION~Retail Transmission Rate - Network Service Rate | Q22: STREET LIGHTING SERVICE CLASSIFICATION~Retail Transmission Rate - Line and Transformation Connection Service Rate
A23: Waterloo North Hydro Inc. | B23: RESIDENTIAL SERVICE CLASSIFICATION~Retail Transmission Rate - Network Service Rate | C23: RESIDENTIAL SERVICE CLASSIFICATION~Retail Transmission Rate - Line and Transformation Connection Service Rate | D23: GENERAL SERVICE LESS THAN 50 KW SERVICE CLASSIFICATION~Retail Transmission Rate - Network Service Rate | E23: GENERAL SERVICE LESS THAN 50 KW SERVICE CLASSIFICATION~Retail Transmission Rate - Line and Transformation Connection Service Rate | F23: GENERAL SERVICE 50 to 4,999 kW SERVICE CLASSIFICATION~Retail Transmission Rate - Network Service Rate - (less than 1,000 kW) | G23: GENERAL SERVICE 50 to 4,999 kW SERVICE CLASSIFICATION~Retail Transmission Rate - Network Service Rate - Interval Metered (less than 1,000 kW) | H23: GENERAL SERVICE 50 to 4,999 kW SERVICE CLASSIFICATION~Retail Transmission Rate - Network Service Rate - Interval Metered (1,000 to 4,999 kW) | I23: GENERAL SERVICE 50 to 4,999 kW SERVICE CLASSIFICATION~Retail Transmission Rate - Line and Transformation Connection Service Rate - (less than 1,000 kW) | J23: GENERAL SERVICE 50 to 4,999 kW SERVICE CLASSIFICATION~Retail Transmission Rate - Line and Trans. Connection Service Rate - Interval Metered (less than 1,000 kW) | K23: GENERAL SERVICE 50 to 4,999 kW SERVICE CLASSIFICATION~Retail Transmission Rate - Line and Trans. Connection Service Rate - Interval Metered (1,000 to 4,999 kW) | L23: LARGE USE SERVICE CLASSIFICATION~Retail Transmission Rate - Network Service Rate - Interval Metered | M23: LARGE USE SERVICE CLASSIFICATION~Retail Transmission Rate - Line and Transformation Connection Service Rate - Interval Metered | N23: UNMETERED SCATTERED LOAD SERVICE CLASSIFICATION~Retail Transmission Rate - Network Service Rate | O23: UNMETERED SCATTERED LOAD SERVICE CLASSIFICATION~Retail Transmission Rate - Line and Transformation Connection Service Rate | P23: STREET LIGHTING SERVICE CLASSIFICATION~Retail Transmission Rate - Network Service Rate | Q23: STREET LIGHTING SERVICE CLASSIFICATION~Retail Transmission Rate - Line and Transformation Connection Service Rate
A24: Westario Power Inc. | B24: RESIDENTIAL SERVICE CLASSIFICATION~Retail Transmission Rate - Network Service Rate | C24: RESIDENTIAL SERVICE CLASSIFICATION~Retail Transmission Rate - Line and Transformation Connection Service Rate | D24: GENERAL SERVICE LESS THAN 50 KW SERVICE CLASSIFICATION~Retail Transmission Rate - Network Service Rate | E24: GENERAL SERVICE LESS THAN 50 KW SERVICE CLASSIFICATION~Retail Transmission Rate - Line and Transformation Connection Service Rate | F24: GENERAL SERVICE 50 to 4,999 kW SERVICE CLASSIFICATION~Retail Transmission Rate - Network Service Rate | G24: GENERAL SERVICE 50 to 4,999 kW SERVICE CLASSIFICATION~Retail Transmission Rate - Line and Transformation Connection Service Rate | H24: UNMETERED SCATTERED LOAD SERVICE CLASSIFICATION~Retail Transmission Rate - Network Service Rate | I24: UNMETERED SCATTERED LOAD SERVICE CLASSIFICATION~Retail Transmission Rate - Line and Transformation Connection Service Rate | J24: SENTINEL LIGHTING SERVICE CLASSIFICATION~Retail Transmission Rate - Network Service Rate | K24: SENTINEL LIGHTING SERVICE CLASSIFICATION~Retail Transmission Rate - Line and Transformation Connection Service Rate | L24: STREET LIGHTING SERVICE CLASSIFICATION~Retail Transmission Rate - Network Service Rate | M24: STREET LIGHTING SERVICE CLASSIFICATION~Retail Transmission Rate - Line and Transformation Connection Service Rate
A25: Elexicon Energy Inc.-Whitby Rate Zone | B25: RESIDENTIAL SERVICE CLASSIFICATION~Retail Transmission Rate - Network Service Rate | C25: RESIDENTIAL SERVICE CLASSIFICATION~Retail Transmission Rate - Line and Transformation Connection Service Rate | D25: GENERAL SERVICE LESS THAN 50 KW SERVICE CLASSIFICATION~Retail Transmission Rate - Network Service Rate | E25: GENERAL SERVICE LESS THAN 50 KW SERVICE CLASSIFICATION~Retail Transmission Rate - Line and Transformation Connection Service Rate | F25: GENERAL SERVICE 50 to 4,999 kW SERVICE CLASSIFICATION~Retail Transmission Rate - Network Service Rate | G25: GENERAL SERVICE 50 to 4,999 kW SERVICE CLASSIFICATION~Retail Transmission Rate - Line and Transformation Connection Service Rate | H25: UNMETERED SCATTERED LOAD SERVICE CLASSIFICATION~Retail Transmission Rate - Network Service Rate | I25: UNMETERED SCATTERED LOAD SERVICE CLASSIFICATION~Retail Transmission Rate - Line and Transformation Connection Service Rate | J25: SENTINEL LIGHTING SERVICE CLASSIFICATION~Retail Transmission Rate - Network Service Rate | K25: SENTINEL LIGHTING SERVICE CLASSIFICATION~Retail Transmission Rate - Line and Transformation Connection Service Rate | L25: STREET LIGHTING SERVICE CLASSIFICATION~Retail Transmission Rate - Network Service Rate | M25: STREET LIGHTING SERVICE CLASSIFICATION~Retail Transmission Rate - Line and Transformation Connection Service Rate
A26: Erie Thames Powerlines Corporation | B26: RESIDENTIAL SERVICE CLASSIFICATION~Retail Transmission Rate - Network Service Rate | C26: RESIDENTIAL SERVICE CLASSIFICATION~Retail Transmission Rate - Line and Transformation Connection Service Rate | D26: GENERAL SERVICE LESS THAN 50 KW SERVICE CLASSIFICATION~Retail Transmission Rate - Network Service Rate | E26: GENERAL SERVICE LESS THAN 50 KW SERVICE CLASSIFICATION~Retail Transmission Rate - Line and Transformation Connection Service Rate | F26: GENERAL SERVICE 50 TO 999 KW SERVICE CLASSIFICATION~Retail Transmission Rate - Network Service Rate | G26: GENERAL SERVICE 50 TO 999 KW SERVICE CLASSIFICATION~Retail Transmission Rate - Line and Transformation Connection Service Rate | H26: GENERAL SERVICE 1,000 TO 4,999 KW SERVICE CLASSIFICATION~Retail Transmission Rate - Network Service Rate | I26: GENERAL SERVICE 1,000 TO 4,999 KW SERVICE CLASSIFICATION~Retail Transmission Rate - Line and Transformation Connection Service Rate | J26: LARGE USE SERVICE CLASSIFICATION~Retail Transmission Rate - Network Service Rate | K26: LARGE USE SERVICE CLASSIFICATION~Retail Transmission Rate - Line and Transformation Connection Service Rate | L26: UNMETERED SCATTERED LOAD SERVICE CLASSIFICATION~Retail Transmission Rate - Network Service Rate | M26: UNMETERED SCATTERED LOAD SERVICE CLASSIFICATION~Retail Transmission Rate - Line and Transformation Connection Service Rate | N26: SENTINEL LIGHTING SERVICE CLASSIFICATION~Retail Transmission Rate - Network Service Rate | O26: SENTINEL LIGHTING SERVICE CLASSIFICATION~Retail Transmission Rate - Line and Transformation Connection Service Rate | P26: STREET LIGHTING SERVICE CLASSIFICATION~Retail Transmission Rate - Network Service Rate | Q26: STREET LIGHTING SERVICE CLASSIFICATION~Retail Transmission Rate - Line and Transformation Connection Service Rate | R26: EMBEDDED DISTRIBUTOR SERVICE CLASSIFICATION~Retail Transmission Rate - Network Service Rate | S26: EMBEDDED DISTRIBUTOR SERVICE CLASSIFICATION~Retail Transmission Rate - Line and Transformation Connection Service Rate
A27: Entegrus Powerlines Inc.-For Entegrus-Main Rate Zone | B27: RESIDENTIAL SERVICE CLASSIFICATION~Retail Transmission Rate - Network Service Rate | C27: RESIDENTIAL SERVICE CLASSIFICATION~Retail Transmission Rate - Line and Transformation Connection Service Rate | D27: GENERAL SERVICE LESS THAN 50 KW SERVICE CLASSIFICATION~Retail Transmission Rate - Network Service Rate | E27: GENERAL SERVICE LESS THAN 50 KW SERVICE CLASSIFICATION~Retail Transmission Rate - Line and Transformation Connection Service Rate | F27: GENERAL SERVICE 50 to 4,999 kW SERVICE CLASSIFICATION~Retail Transmission Rate - Network Service Rate | G27: GENERAL SERVICE 50 to 4,999 kW SERVICE CLASSIFICATION~Retail Transmission Rate - Line and Transformation Connection Service Rate (see Note 1) | H27: LARGE USE SERVICE CLASSIFICATION~Retail Transmission Rate - Network Service Rate | I27: LARGE USE SERVICE CLASSIFICATION~Retail Transmission Rate - Line and Transformation Connection Service Rate (see Note 1) | J27: UNMETERED SCATTERED LOAD SERVICE CLASSIFICATION~Retail Transmission Rate - Network Service Rate | K27: UNMETERED SCATTERED LOAD SERVICE CLASSIFICATION~Retail Transmission Rate - Line and Transformation Connection Service Rate | L27: SENTINEL LIGHTING SERVICE CLASSIFICATION~Retail Transmission Rate - Network Service Rate | M27: SENTINEL LIGHTING SERVICE CLASSIFICATION~Retail Transmission Rate - Line and Transformation Connection Service Rate | N27: STREET LIGHTING SERVICE CLASSIFICATION~Retail Transmission Rate - Network Service Rate | O27: STREET LIGHTING SERVICE CLASSIFICATION~Retail Transmission Rate - Line and Transformation Connection Service Rate | P27: EMBEDDED DISTRIBUTOR SERVICE CLASSIFICATION~Retail Transmission Rate - Network Service Rate | Q27: EMBEDDED DISTRIBUTOR SERVICE CLASSIFICATION~Retail Transmission Rate - Line and Transformation Connection Service Rate
A28: Lakeland Power Distribution Ltd.-Parry Sound Service Area | B28: RESIDENTIAL SERVICE CLASSIFICATION~Retail Transmission Rate - Network Service Rate | C28: RESIDENTIAL SERVICE CLASSIFICATION~Retail Transmission Rate - Line and Transformation Connection Service Rate | D28: GENERAL SERVICE LESS THAN 50 KW SERVICE CLASSIFICATION~Retail Transmission Rate - Network Service Rate | E28: GENERAL SERVICE LESS THAN 50 KW SERVICE CLASSIFICATION~Retail Transmission Rate - Line and Transformation Connection Service Rate | F28: GENERAL SERVICE 50 to 4,999 kW SERVICE CLASSIFICATION~Retail Transmission Rate - Network Service Rate | G28: GENERAL SERVICE 50 to 4,999 kW SERVICE CLASSIFICATION~Retail Transmission Rate - Line and Transformation Connection Service Rate | H28: UNMETERED SCATTERED LOAD SERVICE CLASSIFICATION~Retail Transmission Rate - Network Service Rate | I28: UNMETERED SCATTERED LOAD SERVICE CLASSIFICATION~Retail Transmission Rate - Line and Transformation Connection Service Rate | J28: SENTINEL LIGHTING SERVICE CLASSIFICATION~Retail Transmission Rate - Network Service Rate | K28: SENTINEL LIGHTING SERVICE CLASSIFICATION~Retail Transmission Rate - Line and Transformation Connection Service Rate | L28: STREET LIGHTING SERVICE CLASSIFICATION~Retail Transmission Rate - Network Service Rate | M28: STREET LIGHTING SERVICE CLASSIFICATION~Retail Transmission Rate - Line and Transformation Connection Service Rate
A29: Lakeland Power Distribution Ltd. | B29: RESIDENTIAL SERVICE CLASSIFICATION~Retail Transmission Rate - Network Service Rate | C29: RESIDENTIAL SERVICE CLASSIFICATION~Retail Transmission Rate - Line and Transformation Connection Service Rate | D29: GENERAL SERVICE LESS THAN 50 KW SERVICE CLASSIFICATION~Retail Transmission Rate - Network Service Rate | E29: GENERAL SERVICE LESS THAN 50 KW SERVICE CLASSIFICATION~Retail Transmission Rate - Line and Transformation Connection Service Rate | F29: GENERAL SERVICE 50 to 4,999 kW SERVICE CLASSIFICATION~Retail Transmission Rate - Network Service Rate | G29: GENERAL SERVICE 50 to 4,999 kW SERVICE CLASSIFICATION~Retail Transmission Rate - Line and Transformation Connection Service Rate | H29: UNMETERED SCATTERED LOAD SERVICE CLASSIFICATION~Retail Transmission Rate - Network Service Rate | I29: UNMETERED SCATTERED LOAD SERVICE CLASSIFICATION~Retail Transmission Rate - Line and Transformation Connection Service Rate | J29: SENTINEL LIGHTING SERVICE CLASSIFICATION~Retail Transmission Rate - Network Service Rate | K29: SENTINEL LIGHTING SERVICE CLASSIFICATION~Retail Transmission Rate - Line and Transformation Connection Service Rate | L29: STREET LIGHTING SERVICE CLASSIFICATION~Retail Transmission Rate - Network Service Rate | M29: STREET LIGHTING SERVICE CLASSIFICATION~Retail Transmission Rate - Line and Transformation Connection Service Rate
A30: Newmarket-Tay Power Distribution Ltd.-For Former Midland Power Utility Rate Zone | B30: RESIDENTIAL SERVICE CLASSIFICATION~Retail Transmission Rate - Network Service Rate | C30: RESIDENTIAL SERVICE CLASSIFICATION~Retail Transmission Rate - Line and Transformation Connection Service Rate | D30: GENERAL SERVICE LESS THAN 50 KW SERVICE CLASSIFICATION~Retail Transmission Rate - Network Service Rate | E30: GENERAL SERVICE LESS THAN 50 KW SERVICE CLASSIFICATION~Retail Transmission Rate - Line and Transformation Connection Service Rate | F30: GENERAL SERVICE 50 to 4,999 kW SERVICE CLASSIFICATION~Retail Transmission Rate - Network Service Rate | G30: GENERAL SERVICE 50 to 4,999 kW SERVICE CLASSIFICATION~Retail Transmission Rate - Line and Transformation Connection Service Rate | H30: UNMETERED SCATTERED LOAD SERVICE CLASSIFICATION~Retail Transmission Rate - Network Service Rate | I30: UNMETERED SCATTERED LOAD SERVICE CLASSIFICATION~Retail Transmission Rate - Line and Transformation Connection Service Rate | J30: STREET LIGHTING SERVICE CLASSIFICATION~Retail Transmission Rate - Network Service Rate | K30: STREET LIGHTING SERVICE CLASSIFICATION~Retail Transmission Rate - Line and Transformation Connection Service Rate
A31: Newmarket-Tay Power Distribution Ltd.-For Newmarket-Tay Power Main Rate Zone | B31: RESIDENTIAL SERVICE CLASSIFICATION~Retail Transmission Rate - Network Service Rate | C31: RESIDENTIAL SERVICE CLASSIFICATION~Retail Transmission Rate - Line and Transformation Connection Service Rate | D31: GENERAL SERVICE LESS THAN 50 KW SERVICE CLASSIFICATION~Retail Transmission Rate - Network Service Rate | E31: GENERAL SERVICE LESS THAN 50 KW SERVICE CLASSIFICATION~Retail Transmission Rate - Line and Transformation Connection Service Rate | F31: GENERAL SERVICE 50 to 4,999 kW SERVICE CLASSIFICATION~Retail Transmission Rate - Network Service Rate | G31: GENERAL SERVICE 50 to 4,999 kW SERVICE CLASSIFICATION~Retail Transmission Rate - Line and Transformation Connection Service Rate | H31: UNMETERED SCATTERED LOAD SERVICE CLASSIFICATION~Retail Transmission Rate - Network Service Rate | I31: UNMETERED SCATTERED LOAD SERVICE CLASSIFICATION~Retail Transmission Rate - Line and Transformation Connection Service Rate | J31: SENTINEL LIGHTING SERVICE CLASSIFICATION~Retail Transmission Rate - Network Service Rate | K31: SENTINEL LIGHTING SERVICE CLASSIFICATION~Retail Transmission Rate - Line and Transformation Connection Service Rate | L31: STREET LIGHTING SERVICE CLASSIFICATION~Retail Transmission Rate - Network Service Rate | M31: STREET LIGHTING SERVICE CLASSIFICATION~Retail Transmission Rate - Line and Transformation Connection Service Rate
A32: Bluewater Power Distribution Corporation | B32: RESIDENTIAL SERVICE CLASSIFICATION~Retail Transmission Rate - Network Service Rate | C32: RESIDENTIAL SERVICE CLASSIFICATION~Retail Transmission Rate - Line and Transformation Connection Service Rate | D32: GENERAL SERVICE LESS THAN 50 KW SERVICE CLASSIFICATION~Retail Transmission Rate - Network Service Rate | E32: GENERAL SERVICE LESS THAN 50 KW SERVICE CLASSIFICATION~Retail Transmission Rate - Line and Transformation Connection Service Rate | F32: GENERAL SERVICE 50 TO 999 KW SERVICE CLASSIFICATION~Retail Transmission Rate - Network Service Rate | G32: GENERAL SERVICE 50 TO 999 KW SERVICE CLASSIFICATION~Retail Transmission Rate - Line and Transformation Connection Service Rate | H32: GENERAL SERVICE 1,000 TO 4,999 KW SERVICE CLASSIFICATION~Retail Transmission Rate - Network Service Rate | I32: GENERAL SERVICE 1,000 TO 4,999 KW SERVICE CLASSIFICATION~Retail Transmission Rate - Line and Transformation Connection Service Rate | J32: LARGE USE SERVICE CLASSIFICATION~Retail Transmission Rate - Network Service Rate - Interval Metered | K32: LARGE USE SERVICE CLASSIFICATION~Retail Transmission Rate - Line and Transformation Connection Service Rate - Interval Metered | L32: UNMETERED SCATTERED LOAD SERVICE CLASSIFICATION~Retail Transmission Rate - Network Service Rate | M32: UNMETERED SCATTERED LOAD SERVICE CLASSIFICATION~Retail Transmission Rate - Line and Transformation Connection Service Rate | N32: SENTINEL LIGHTING SERVICE CLASSIFICATION~Retail Transmission Rate - Network Service Rate | O32: SENTINEL LIGHTING SERVICE CLASSIFICATION~Retail Transmission Rate - Line and Transformation Connection Service Rate | P32: STREET LIGHTING SERVICE CLASSIFICATION~Retail Transmission Rate - Network Service Rate | Q32: STREET LIGHTING SERVICE CLASSIFICATION~Retail Transmission Rate - Line and Transformation Connection Service Rate
A33: Atikokan Hydro Inc. | B33: RESIDENTIAL SERVICE CLASSIFICATION~Retail Transmission Rate - Network Service Rate | C33: RESIDENTIAL SERVICE CLASSIFICATION~Retail Transmission Rate - Transformation Connection Service Rate | D33: GENERAL SERVICE LESS THAN 50 KW SERVICE CLASSIFICATION~Retail Transmission Rate - Network Service Rate | E33: GENERAL SERVICE LESS THAN 50 KW SERVICE CLASSIFICATION~Retail Transmission Rate - Transformation Connection Service Rate | F33: GENERAL SERVICE 50 to 4,999 kW SERVICE CLASSIFICATION~Retail Transmission Rate - Network Service Rate | G33: GENERAL SERVICE 50 to 4,999 kW SERVICE CLASSIFICATION~Retail Transmission Rate - Line and Transformation Connection Service Rate | H33: GENERAL SERVICE 50 to 4,999 kW SERVICE CLASSIFICATION~Retail Transmission Rate - Network Service Rate - Interval Metered | I33: GENERAL SERVICE 50 to 4,999 kW SERVICE CLASSIFICATION~Retail Transmission Rate - Line and Transformation Connection Service Rate - Interval Metered | J33: STREET LIGHTING SERVICE CLASSIFICATION~Retail Transmission Rate - Network Service Rate | K33: STREET LIGHTING SERVICE CLASSIFICATION~Retail Transmission Rate - Line and Transformation Connection Service Rate
A34: Burlington Hydro Inc. | B34: RESIDENTIAL SERVICE CLASSIFICATION~Retail Transmission Rate - Network Service Rate | C34: RESIDENTIAL SERVICE CLASSIFICATION~Retail Transmission Rate - Line and Transformation Connection Service Rate | D34: GENERAL SERVICE LESS THAN 50 KW SERVICE CLASSIFICATION~Retail Transmission Rate - Network Service Rate | E34: GENERAL SERVICE LESS THAN 50 KW SERVICE CLASSIFICATION~Retail Transmission Rate - Line and Transformation Connection Service Rate | F34: GENERAL SERVICE 50 to 4,999 kW SERVICE CLASSIFICATION~Retail Transmission Rate - Network Service Rate - Interval Metered | G34: GENERAL SERVICE 50 to 4,999 kW SERVICE CLASSIFICATION~Retail Transmission Rate - Line and Transformation Connection Service Rate - Interval Metered | H34: UNMETERED SCATTERED LOAD SERVICE CLASSIFICATION~Retail Transmission Rate - Network Service Rate | I34: UNMETERED SCATTERED LOAD SERVICE CLASSIFICATION~Retail Transmission Rate - Line and Transformation Connection Service Rate | J34: STREET LIGHTING SERVICE CLASSIFICATION~Retail Transmission Rate - Network Service Rate | K34: STREET LIGHTING SERVICE CLASSIFICATION~Retail Transmission Rate - Line Connection Service Rate
A35: E.L.K. Energy Inc. | B35: RESIDENTIAL SERVICE CLASSIFICATION~Retail Transmission Rate - Network Service Rate | C35: RESIDENTIAL SERVICE CLASSIFICATION~Retail Transmission Rate - Line and Transformation Connection Service Rate | D35: GENERAL SERVICE LESS THAN 50 KW SERVICE CLASSIFICATION~Retail Transmission Rate - Network Service Rate | E35: GENERAL SERVICE LESS THAN 50 KW SERVICE CLASSIFICATION~Retail Transmission Rate - Line and Transformation Connection Service Rate | F35: GENERAL SERVICE 50 to 4,999 kW SERVICE CLASSIFICATION~Retail Transmission Rate - Network Service Rate | G35: GENERAL SERVICE 50 to 4,999 kW SERVICE CLASSIFICATION~Retail Transmission Rate - Line and Transformation Connection Service Rate | H35: UNMETERED SCATTERED LOAD SERVICE CLASSIFICATION~Retail Transmission Rate - Network Service Rate | I35: UNMETERED SCATTERED LOAD SERVICE CLASSIFICATION~Retail Transmission Rate - Line and Transformation Connection Service Rate | J35: SENTINEL LIGHTING SERVICE CLASSIFICATION~Retail Transmission Rate - Network Service Rate | K35: SENTINEL LIGHTING SERVICE CLASSIFICATION~Retail Transmission Rate - Line and Transformation Connection Service Rate | L35: STREET LIGHTING SERVICE CLASSIFICATION~Retail Transmission Rate - Network Service Rate | M35: STREET LIGHTING SERVICE CLASSIFICATION~Retail Transmission Rate - Line and Transformation Connection Service Rate | N35: EMBEDDED DISTRIBUTOR SERVICE CLASSIFICATION~Retail Transmission Rate - Network Service Rate | O35: EMBEDDED DISTRIBUTOR SERVICE CLASSIFICATION~Retail Transmission Rate - Line and Transformation Connection Service Rate
A36: EPCOR Electricity Distribution Ontario Inc. | B36: RESIDENTIAL SERVICE CLASSIFICATION~Retail Transmission Rate - Network Service Rate | C36: RESIDENTIAL SERVICE CLASSIFICATION~Retail Transmission Rate - Line and Transformation Connection Service Rate | D36: GENERAL SERVICE LESS THAN 50 KW SERVICE CLASSIFICATION~Retail Transmission Rate - Network Service Rate | E36: GENERAL SERVICE LESS THAN 50 KW SERVICE CLASSIFICATION~Retail Transmission Rate - Line and Transformation Connection Service Rate | F36: GENERAL SERVICE 50 to 4,999 kW SERVICE CLASSIFICATION~Retail Transmission Rate - Network Service Rate | G36: GENERAL SERVICE 50 to 4,999 kW SERVICE CLASSIFICATION~Retail Transmission Rate - Line and Transformation Connection Service Rate | H36: UNMETERED SCATTERED LOAD SERVICE CLASSIFICATION~Retail Transmission Rate - Network Service Rate | I36: UNMETERED SCATTERED LOAD SERVICE CLASSIFICATION~Retail Transmission Rate - Line and Transformation Connection Service Rate | J36: STREET LIGHTING SERVICE CLASSIFICATION~Retail Transmission Rate - Network Service Rate | K36: STREET LIGHTING SERVICE CLASSIFICATION~Retail Transmission Rate - Line and Transformation Connection Service Rate
A37: Essex Powerlines Corporation | B37: RESIDENTIAL SERVICE CLASSIFICATION~Retail Transmission Rate - Network Service Rate | C37: RESIDENTIAL SERVICE CLASSIFICATION~Retail Transmission Rate - Line and Transformation Connection Service Rate | D37: GENERAL SERVICE LESS THAN 50 KW SERVICE CLASSIFICATION~Retail Transmission Rate - Network Service Rate | E37: GENERAL SERVICE LESS THAN 50 KW SERVICE CLASSIFICATION~Retail Transmission Rate - Line and Transformation Connection Service Rate | F37: GENERAL SERVICE 50 to 4,999 kW SERVICE CLASSIFICATION~Retail Transmission Rate - Network Service Rate | G37: GENERAL SERVICE 50 to 4,999 kW SERVICE CLASSIFICATION~Retail Transmission Rate - Line and Transformation Connection Service Rate | H37: GENERAL SERVICE 50 to 4,999 kW SERVICE CLASSIFICATION~Retail Transmission Rate - Network Service Rate - Interval Metered | I37: GENERAL SERVICE 50 to 4,999 kW SERVICE CLASSIFICATION~Retail Transmission Rate - Line and Transformation Connection Service Rate - Interval Metered | J37: UNMETERED SCATTERED LOAD SERVICE CLASSIFICATION~Retail Transmission Rate - Network Service Rate | K37: UNMETERED SCATTERED LOAD SERVICE CLASSIFICATION~Retail Transmission Rate - Line and Transformation Connection Service Rate | L37: SENTINEL LIGHTING SERVICE CLASSIFICATION~Retail Transmission Rate - Network Service Rate | M37: SENTINEL LIGHTING SERVICE CLASSIFICATION~Retail Transmission Rate - Line and Transformation Connection Service Rate | N37: STREET LIGHTING SERVICE CLASSIFICATION~Retail Transmission Rate - Network Service Rate | O37: STREET LIGHTING SERVICE CLASSIFICATION~Retail Transmission Rate - Line and Transformation Connection Service Rate
A38: Fort Frances Power Corporation | B38: RESIDENTIAL SERVICE CLASSIFICATION~Retail Transmission Rate - Network Service Rate | C38: RESIDENTIAL SERVICE CLASSIFICATION~Retail Transmission Rate - Line and Transformation Connection Service Rate | D38: GENERAL SERVICE LESS THAN 50 KW SERVICE CLASSIFICATION~Retail Transmission Rate - Network Service Rate | E38: GENERAL SERVICE LESS THAN 50 KW SERVICE CLASSIFICATION~Retail Transmission Rate - Line and Transformation Connection Service Rate | F38: GENERAL SERVICE 50 to 4,999 kW SERVICE CLASSIFICATION~Retail Transmission Rate - Network Service Rate | G38: GENERAL SERVICE 50 to 4,999 kW SERVICE CLASSIFICATION~Retail Transmission Rate - Line and Transformation Connection Service Rate | H38: UNMETERED SCATTERED LOAD SERVICE CLASSIFICATION~Retail Transmission Rate - Network Service Rate | I38: UNMETERED SCATTERED LOAD SERVICE CLASSIFICATION~Retail Transmission Rate - Line and Transformation Connection Service Rate | J38: STREET LIGHTING SERVICE CLASSIFICATION~Retail Transmission Rate - Network Service Rate | K38: STREET LIGHTING SERVICE CLASSIFICATION~Retail Transmission Rate - Line and Transformation Connection Service Rate
A39: Greater Sudbury Hydro Inc. | B39: RESIDENTIAL SERVICE CLASSIFICATION~Retail Transmission Rate - Network Service Rate | C39: RESIDENTIAL SERVICE CLASSIFICATION~Retail Transmission Rate - Line and Transformation Connection Service Rate | D39: GENERAL SERVICE LESS THAN 50 KW SERVICE CLASSIFICATION~Retail Transmission Rate - Network Service Rate | E39: GENERAL SERVICE LESS THAN 50 KW SERVICE CLASSIFICATION~Retail Transmission Rate - Line and Transformation Connection Service Rate | F39: GENERAL SERVICE 50 to 4,999 kW SERVICE CLASSIFICATION~Retail Transmission Rate - Network Service Rate | G39: GENERAL SERVICE 50 to 4,999 kW SERVICE CLASSIFICATION~Retail Transmission Rate - Line and Transformation Connection Service Rate | H39: UNMETERED SCATTERED LOAD SERVICE CLASSIFICATION~Retail Transmission Rate - Network Service Rate | I39: UNMETERED SCATTERED LOAD SERVICE CLASSIFICATION~Retail Transmission Rate - Line and Transformation Connection Service Rate | J39: SENTINEL LIGHTING SERVICE CLASSIFICATION~Retail Transmission Rate - Network Service Rate | K39: SENTINEL LIGHTING SERVICE CLASSIFICATION~Retail Transmission Rate - Line and Transformation Connection Service Rate | L39: STREET LIGHTING SERVICE CLASSIFICATION~Retail Transmission Rate - Network Service Rate | M39: STREET LIGHTING SERVICE CLASSIFICATION~Retail Transmission Rate - Line and Transformation Connection Service Rate
A40: Halton Hills Hydro Inc. | B40: RESIDENTIAL SERVICE CLASSIFICATION~Retail Transmission Rate - Network Service Rate | C40: RESIDENTIAL SERVICE CLASSIFICATION~Retail Transmission Rate - Line and Transformation Connection Service Rate | D40: GENERAL SERVICE LESS THAN 50 KW SERVICE CLASSIFICATION~Retail Transmission Rate - Network Service Rate | E40: GENERAL SERVICE LESS THAN 50 KW SERVICE CLASSIFICATION~Retail Transmission Rate - Line and Transformation Connection Service Rate | F40: GENERAL SERVICE 50 TO 999 KW SERVICE CLASSIFICATION~Retail Transmission Rate - Network Service Rate | G40: GENERAL SERVICE 50 TO 999 KW SERVICE CLASSIFICATION~Retail Transmission Rate - Line and Transformation Connection Service Rate | H40: GENERAL SERVICE 1,000 TO 4,999 KW SERVICE CLASSIFICATION~Retail Transmission Rate - Network Service Rate | I40: GENERAL SERVICE 1,000 TO 4,999 KW SERVICE CLASSIFICATION~Retail Transmission Rate - Line and Transformation Connection Service Rate | J40: UNMETERED SCATTERED LOAD SERVICE CLASSIFICATION~Retail Transmission Rate - Network Service Rate | K40: UNMETERED SCATTERED LOAD SERVICE CLASSIFICATION~Retail Transmission Rate - Line and Transformation Connection Service Rate | L40: SENTINEL LIGHTING SERVICE CLASSIFICATION~Retail Transmission Rate - Network Service Rate | M40: SENTINEL LIGHTING SERVICE CLASSIFICATION~Retail Transmission Rate - Line and Transformation Connection Service Rate | N40: STREET LIGHTING SERVICE CLASSIFICATION~Retail Transmission Rate - Network Service Rate | O40: STREET LIGHTING SERVICE CLASSIFICATION~Retail Transmission Rate - Line and Transformation Connection Service Rate
A41: Hydro One Networks Inc.-Former Haldimand County Hydro Inc. Service Area | B41: RESIDENTIAL SERVICE CLASSIFICATION~Retail Transmission Rate - Network Service Rate | C41: RESIDENTIAL SERVICE CLASSIFICATION~Retail Transmission Rate - Line and Transformation Connection Service Rate | D41: GENERAL SERVICE LESS THAN 50 KW SERVICE CLASSIFICATION~Retail Transmission Rate - Network Service Rate | E41: GENERAL SERVICE LESS THAN 50 KW SERVICE CLASSIFICATION~Retail Transmission Rate - Line and Transformation Connection Service Rate | F41: GENERAL SERVICE 50 to 4,999 kW SERVICE CLASSIFICATION~Retail Transmission Rate - Network Service Rate | G41: GENERAL SERVICE 50 to 4,999 kW SERVICE CLASSIFICATION~Retail Transmission Rate - Line and Transformation Connection Service Rate | H41: UNMETERED SCATTERED LOAD SERVICE CLASSIFICATION~Retail Transmission Rate - Network Service Rate | I41: UNMETERED SCATTERED LOAD SERVICE CLASSIFICATION~Retail Transmission Rate - Line and Transformation Connection Service Rate | J41: SENTINEL LIGHTING SERVICE CLASSIFICATION~Retail Transmission Rate - Network Service Rate | K41: SENTINEL LIGHTING SERVICE CLASSIFICATION~Retail Transmission Rate - Line and Transformation Connection Service Rate | L41: STREET LIGHTING SERVICE CLASSIFICATION~Retail Transmission Rate - Network Service Rate | M41: STREET LIGHTING SERVICE CLASSIFICATION~Retail Transmission Rate - Line and Transformation Connection Service Rate | N41: EMBEDDED DISTRIBUTOR SERVICE CLASSIFICATION FOR HYDRO ONE NETWORKS INC.~Retail Transmission Rate - Network Service Rate | O41: EMBEDDED DISTRIBUTOR SERVICE CLASSIFICATION FOR HYDRO ONE NETWORKS INC.~Retail Transmission Rate - Line and Transformation Connection Service Rate
A42: Hydro One Networks Inc.-Former Norfolk Power Distribution Inc. Service Area | B42: RESIDENTIAL SERVICE CLASSIFICATION~Retail Transmission Rate - Network Service Rate | C42: RESIDENTIAL SERVICE CLASSIFICATION~Retail Transmission Rate - Line and Transformation Connection Service Rate | D42: GENERAL SERVICE LESS THAN 50 KW SERVICE CLASSIFICATION~Retail Transmission Rate - Network Service Rate | E42: GENERAL SERVICE LESS THAN 50 KW SERVICE CLASSIFICATION~Retail Transmission Rate - Line and Transformation Connection Service Rate | F42: GENERAL SERVICE 50 to 4,999 kW SERVICE CLASSIFICATION~Retail Transmission Rate - Network Service Rate | G42: GENERAL SERVICE 50 to 4,999 kW SERVICE CLASSIFICATION~Retail Transmission Rate - Line and Transformation Connection Service Rate | H42: UNMETERED SCATTERED LOAD SERVICE CLASSIFICATION~Retail Transmission Rate - Network Service Rate | I42: UNMETERED SCATTERED LOAD SERVICE CLASSIFICATION~Retail Transmission Rate - Line and Transformation Connection Service Rate | J42: SENTINEL LIGHTING SERVICE CLASSIFICATION~Retail Transmission Rate - Network Service Rate | K42: SENTINEL LIGHTING SERVICE CLASSIFICATION~Retail Transmission Rate - Line and Transformation Connection Service Rate | L42: STREET LIGHTING SERVICE CLASSIFICATION~Retail Transmission Rate - Network Service Rate | M42: STREET LIGHTING SERVICE CLASSIFICATION~Retail Transmission Rate - Line and Transformation Connection Service Rate
A43: Hydro One Networks Inc.-Former Woodstock Hydro Services Inc. Service Area | B43: RESIDENTIAL SERVICE CLASSIFICATION~Retail Transmission Rate - Network Service Rate | C43: RESIDENTIAL SERVICE CLASSIFICATION~Retail Transmission Rate - Line and Transformation Connection Service Rate | D43: GENERAL SERVICE LESS THAN 50 KW SERVICE CLASSIFICATION~Retail Transmission Rate - Network Service Rate | E43: GENERAL SERVICE LESS THAN 50 KW SERVICE CLASSIFICATION~Retail Transmission Rate - Line and Transformation Connection Service Rate | F43: GENERAL SERVICE 50 TO 999 KW SERVICE CLASSIFICATION~Retail Transmission Rate - Network Service Rate | G43: GENERAL SERVICE 50 TO 999 KW SERVICE CLASSIFICATION~Retail Transmission Rate - Line and Transformation Connection Service Rate | H43: GENERAL SERVICE GREATER THAN 1,000 KW SERVICE CLASSIFICATION~Retail Transmission Rate - Network Service Rate | I43: GENERAL SERVICE GREATER THAN 1,000 KW SERVICE CLASSIFICATION~Retail Transmission Rate - Line and Transformation Connection Service Rate | J43: UNMETERED SCATTERED LOAD SERVICE CLASSIFICATION~Retail Transmission Rate - Network Service Rate | K43: UNMETERED SCATTERED LOAD SERVICE CLASSIFICATION~Retail Transmission Rate - Line and Transformation Connection Service Rate | L43: STREET LIGHTING SERVICE CLASSIFICATION~Retail Transmission Rate - Network Service Rate | M43: STREET LIGHTING SERVICE CLASSIFICATION~Retail Transmission Rate - Line and Transformation Connection Service Rate
A44: Synergy North Corporation-Kenora Rate Zone | B44: RESIDENTIAL SERVICE CLASSIFICATION~Retail Transmission Rate - Network Service Rate | C44: RESIDENTIAL SERVICE CLASSIFICATION~Retail Transmission Rate - Line and Transformation Connection Service Rate | D44: GENERAL SERVICE LESS THAN 50 KW SERVICE CLASSIFICATION~Retail Transmission Rate - Network Service Rate | E44: GENERAL SERVICE LESS THAN 50 KW SERVICE CLASSIFICATION~Retail Transmission Rate - Line and Transformation Connection Service Rate | F44: GENERAL SERVICE 50 to 4,999 kW SERVICE CLASSIFICATION~Retail Transmission Rate - Network Service Rate | G44: GENERAL SERVICE 50 to 4,999 kW SERVICE CLASSIFICATION~Retail Transmission Rate - Line and Transformation Connection Service Rate | H44: UNMETERED SCATTERED LOAD SERVICE CLASSIFICATION~Retail Transmission Rate - Network Service Rate | I44: UNMETERED SCATTERED LOAD SERVICE CLASSIFICATION~Retail Transmission Rate - Line and Transformation Connection Service Rate | J44: STREET LIGHTING SERVICE CLASSIFICATION~Retail Transmission Rate - Network Service Rate | K44: STREET LIGHTING SERVICE CLASSIFICATION~Retail Transmission Rate - Line and Transformation Connection Service Rate
A45: London Hydro Inc. | B45: RESIDENTIAL SERVICE CLASSIFICATION~Retail Transmission Rate - Network Service Rate | C45: RESIDENTIAL SERVICE CLASSIFICATION~Retail Transmission Rate - Line and Transformation Connection Service Rate | D45: GENERAL SERVICE LESS THAN 50 KW SERVICE CLASSIFICATION~Retail Transmission Rate - Network Service Rate | E45: GENERAL SERVICE LESS THAN 50 KW SERVICE CLASSIFICATION~Retail Transmission Rate - Line and Transformation Connection Service Rate | F45: GENERAL SERVICE 50 to 4,999 kW SERVICE CLASSIFICATION~Retail Transmission Rate - Network Service Rate | G45: GENERAL SERVICE 50 to 4,999 kW SERVICE CLASSIFICATION~Retail Transmission Rate - Line and Transformation Connection Service Rate | H45: GENERAL SERVICE 50 to 4,999 kW SERVICE CLASSIFICATION~Retail Transmission Rate - Network Service Rate - Interval Metered | I45: GENERAL SERVICE 50 to 4,999 kW SERVICE CLASSIFICATION~Retail Transmission Rate - Line and Transformation Connection Service Rate - Interval Metered | J45: GENERAL SERVICE 1,000 TO 4,999 KW (CO-GENERATION) SERVICE CLASSIFICATION~Retail Transmission Rate - Network Service Rate | K45: GENERAL SERVICE 1,000 TO 4,999 KW (CO-GENERATION) SERVICE CLASSIFICATION~Retail Transmission Rate - Line and Transformation Connection Service Rate | L45: LARGE USE SERVICE CLASSIFICATION~Retail Transmission Rate - Network Service Rate - Interval Metered | M45: LARGE USE SERVICE CLASSIFICATION~Retail Transmission Rate - Line and Transformation Connection Service Rate - Interval Metered | N45: STREET LIGHTING SERVICE CLASSIFICATION~Retail Transmission Rate - Network Service Rate | O45: STREET LIGHTING SERVICE CLASSIFICATION~Retail Transmission Rate - Line and Transformation Connection Service Rate | P45: SENTINEL LIGHTING SERVICE CLASSIFICATION~Retail Transmission Rate - Network Service Rate | Q45: SENTINEL LIGHTING SERVICE CLASSIFICATION~Retail Transmission Rate - Line and Transformation Connection Service Rate | R45: UNMETERED SCATTERED LOAD SERVICE CLASSIFICATION~Retail Transmission Rate - Network Service Rate | S45: UNMETERED SCATTERED LOAD SERVICE CLASSIFICATION~Retail Transmission Rate - Line and Transformation Connection Service Rate
A46: Milton Hydro Distribution Inc. | B46: RESIDENTIAL SERVICE CLASSIFICATION~Retail Transmission Rate - Network Service Rate | C46: RESIDENTIAL SERVICE CLASSIFICATION~Retail Transmission Rate - Line and Transformation Connection Service Rate | D46: GENERAL SERVICE LESS THAN 50 KW SERVICE CLASSIFICATION~Retail Transmission Rate - Network Service Rate | E46: GENERAL SERVICE LESS THAN 50 KW SERVICE CLASSIFICATION~Retail Transmission Rate - Line and Transformation Connection Service Rate | F46: GENERAL SERVICE 50 TO 999 KW SERVICE CLASSIFICATION~Retail Transmission Rate - Network Service Rate | G46: GENERAL SERVICE 50 TO 999 KW SERVICE CLASSIFICATION~Retail Transmission Rate - Line and Transformation Connection Service Rate | H46: GENERAL SERVICE 1,000 TO 4,999 KW SERVICE CLASSIFICATION~Retail Transmission Rate - Network Service Rate | I46: GENERAL SERVICE 1,000 TO 4,999 KW SERVICE CLASSIFICATION~Retail Transmission Rate - Line and Transformation Connection Service Rate | J46: LARGE USE SERVICE CLASSIFICATION~Retail Transmission Rate - Network Service Rate - Interval Metered | K46: LARGE USE SERVICE CLASSIFICATION~Retail Transmission Rate - Line and Transformation Connection Service Rate - Interval Metered | L46: UNMETERED SCATTERED LOAD SERVICE CLASSIFICATION~Retail Transmission Rate - Network Service Rate | M46: UNMETERED SCATTERED LOAD SERVICE CLASSIFICATION~Retail Transmission Rate - Line and Transformation Connection Service Rate | N46: SENTINEL LIGHTING SERVICE CLASSIFICATION~Retail Transmission Rate - Network Service Rate | O46: SENTINEL LIGHTING SERVICE CLASSIFICATION~Retail Transmission Rate - Line and Transformation Connection Service Rate | P46: STREET LIGHTING SERVICE CLASSIFICATION~Retail Transmission Rate - Network Service Rate | Q46: STREET LIGHTING SERVICE CLASSIFICATION~Retail Transmission Rate - Line and Transformation Connection Service Rate
A47: North Bay Hydro Distribution Limited | B47: RESIDENTIAL SERVICE CLASSIFICATION~Retail Transmission Rate - Network Service Rate | C47: RESIDENTIAL SERVICE CLASSIFICATION~Retail Transmission Rate - Line and Transformation Connection Service Rate | D47: GENERAL SERVICE LESS THAN 50 KW SERVICE CLASSIFICATION~Retail Transmission Rate - Network Service Rate | E47: GENERAL SERVICE LESS THAN 50 KW SERVICE CLASSIFICATION~Retail Transmission Rate - Line and Transformation Connection Service Rate | F47: GENERAL SERVICE 50 TO 2,999 KW SERVICE CLASSIFICATION~Retail Transmission Rate - Network Service Rate | G47: GENERAL SERVICE 50 TO 2,999 KW SERVICE CLASSIFICATION~Retail Transmission Rate - Line and Transformation Connection Service Rate | H47: GENERAL SERVICE 3,000 TO 4,999 KW SERVICE CLASSIFICATION~Retail Transmission Rate - Network Service Rate - Interval Metered | I47: GENERAL SERVICE 3,000 TO 4,999 KW SERVICE CLASSIFICATION~Retail Transmission Rate - Line and Transformation Connection Service Rate - Interval Metered | J47: UNMETERED SCATTERED LOAD SERVICE CLASSIFICATION~Retail Transmission Rate - Network Service Rate | K47: UNMETERED SCATTERED LOAD SERVICE CLASSIFICATION~Retail Transmission Rate - Line and Transformation Connection Service Rate | L47: SENTINEL LIGHTING SERVICE CLASSIFICATION~Retail Transmission Rate - Network Service Rate | M47: SENTINEL LIGHTING SERVICE CLASSIFICATION~Retail Transmission Rate - Line and Transformation Connection Service Rate | N47: STREET LIGHTING SERVICE CLASSIFICATION~Retail Transmission Rate - Network Service Rate | O47: STREET LIGHTING SERVICE CLASSIFICATION~Retail Transmission Rate - Line and Transformation Connection Service Rate
A48: Northern Ontario Wires Inc. | B48: RESIDENTIAL SERVICE CLASSIFICATION~Retail Transmission Rate - Network Service Rate | C48: RESIDENTIAL SERVICE CLASSIFICATION~Retail Transmission Rate - Line and Transformation Connection Service Rate | D48: GENERAL SERVICE LESS THAN 50 KW SERVICE CLASSIFICATION~Retail Transmission Rate - Network Service Rate | E48: GENERAL SERVICE LESS THAN 50 KW SERVICE CLASSIFICATION~Retail Transmission Rate - Line and Transformation Connection Service Rate | F48: GENERAL SERVICE 50 to 4,999 kW SERVICE CLASSIFICATION~Retail Transmission Rate - Network Service Rate | G48: GENERAL SERVICE 50 to 4,999 kW SERVICE CLASSIFICATION~Retail Transmission Rate - Line and Transformation Connection Service Rate | H48: UNMETERED SCATTERED LOAD SERVICE CLASSIFICATION~Retail Transmission Rate - Network Service Rate | I48: UNMETERED SCATTERED LOAD SERVICE CLASSIFICATION~Retail Transmission Rate - Line and Transformation Connection Service Rate | J48: STREET LIGHTING SERVICE CLASSIFICATION~Retail Transmission Rate - Network Service Rate | K48: STREET LIGHTING SERVICE CLASSIFICATION~Retail Transmission Rate - Line and Transformation Connection Service Rate
A49: Niagara Peninsula Energy Inc. | B49: RESIDENTIAL SERVICE CLASSIFICATION~Retail Transmission Rate - Network Service Rate | C49: RESIDENTIAL SERVICE CLASSIFICATION~Retail Transmission Rate - Line and Transformation Connection Service Rate | D49: GENERAL SERVICE LESS THAN 50 KW SERVICE CLASSIFICATION~Retail Transmission Rate - Network Service Rate | E49: GENERAL SERVICE LESS THAN 50 KW SERVICE CLASSIFICATION~Retail Transmission Rate - Line and Transformation Connection Service Rate | F49: GENERAL SERVICE 50 to 4,999 kW SERVICE CLASSIFICATION~Retail Transmission Rate - Network Service Rate | G49: GENERAL SERVICE 50 to 4,999 kW SERVICE CLASSIFICATION~Retail Transmission Rate - Line and Transformation Connection Service Rate | H49: UNMETERED SCATTERED LOAD SERVICE CLASSIFICATION~Retail Transmission Rate - Network Service Rate | I49: UNMETERED SCATTERED LOAD SERVICE CLASSIFICATION~Retail Transmission Rate - Line and Transformation Connection Service Rate | J49: SENTINEL LIGHTING SERVICE CLASSIFICATION~Retail Transmission Rate - Network Service Rate | K49: SENTINEL LIGHTING SERVICE CLASSIFICATION~Retail Transmission Rate - Line and Transformation Connection Service Rate | L49: STREET LIGHTING SERVICE CLASSIFICATION~Retail Transmission Rate - Network Service Rate | M49: STREET LIGHTING SERVICE CLASSIFICATION~Retail Transmission Rate - Line and Transformation Connection Service Rate
A50: Orangeville Hydro Limited | B50: RESIDENTIAL SERVICE CLASSIFICATION~Retail Transmission Rate - Network Service Rate | C50: RESIDENTIAL SERVICE CLASSIFICATION~Retail Transmission Rate - Line and Transformation Connection Service Rate | D50: GENERAL SERVICE LESS THAN 50 KW SERVICE CLASSIFICATION~Retail Transmission Rate - Network Service Rate | E50: GENERAL SERVICE LESS THAN 50 KW SERVICE CLASSIFICATION~Retail Transmission Rate - Line and Transformation Connection Service Rate | F50: GENERAL SERVICE 50 to 4,999 kW SERVICE CLASSIFICATION~Retail Transmission Rate - Network Service Rate | G50: GENERAL SERVICE 50 to 4,999 kW SERVICE CLASSIFICATION~Retail Transmission Rate - Line and Transformation Connection Service Rate | H50: SENTINEL LIGHTING SERVICE CLASSIFICATION~Retail Transmission Rate - Network Service Rate | I50: SENTINEL LIGHTING SERVICE CLASSIFICATION~Retail Transmission Rate - Line and Transformation Connection Service Rate | J50: STREET LIGHTING SERVICE CLASSIFICATION~Retail Transmission Rate - Network Service Rate | K50: STREET LIGHTING SERVICE CLASSIFICATION~Retail Transmission Rate - Line and Transformation Connection Service Rate | L50: UNMETERED SCATTERED LOAD SERVICE CLASSIFICATION~Retail Transmission Rate - Network Service Rate | M50: UNMETERED SCATTERED LOAD SERVICE CLASSIFICATION~Retail Transmission Rate - Line and Transformation Connection Service Rate
A51: Orillia Power Distribution Corporation | B51: RESIDENTIAL SERVICE CLASSIFICATION~Retail Transmission Rate - Network Service Rate | C51: RESIDENTIAL SERVICE CLASSIFICATION~Retail Transmission Rate - Line and Transformation Connection Service Rate | D51: GENERAL SERVICE LESS THAN 50 KW SERVICE CLASSIFICATION~Retail Transmission Rate - Network Service Rate | E51: GENERAL SERVICE LESS THAN 50 KW SERVICE CLASSIFICATION~Retail Transmission Rate - Line and Transformation Connection Service Rate | F51: GENERAL SERVICE 50 to 4,999 kW SERVICE CLASSIFICATION~Retail Transmission Rate - Network Service Rate | G51: GENERAL SERVICE 50 to 4,999 kW SERVICE CLASSIFICATION~Retail Transmission Rate - Line and Transformation Connection Service Rate | H51: UNMETERED SCATTERED LOAD SERVICE CLASSIFICATION~Retail Transmission Rate - Network Service Rate | I51: UNMETERED SCATTERED LOAD SERVICE CLASSIFICATION~Retail Transmission Rate - Line and Transformation Connection Service Rate | J51: SENTINEL LIGHTING SERVICE CLASSIFICATION~Retail Transmission Rate - Network Service Rate | K51: SENTINEL LIGHTING SERVICE CLASSIFICATION~Retail Transmission Rate - Line and Transformation Connection Service Rate | L51: STREET LIGHTING SERVICE CLASSIFICATION~Retail Transmission Rate - Network Service Rate | M51: STREET LIGHTING SERVICE CLASSIFICATION~Retail Transmission Rate - Line and Transformation Connection Service Rate
A52: Ottawa River Power Corporation | B52: RESIDENTIAL SERVICE CLASSIFICATION~Retail Transmission Rate - Network Service Rate | C52: RESIDENTIAL SERVICE CLASSIFICATION~Retail Transmission Rate - Line and Transformation Connection Service Rate | D52: GENERAL SERVICE LESS THAN 50 KW SERVICE CLASSIFICATION~Retail Transmission Rate - Network Service Rate | E52: GENERAL SERVICE LESS THAN 50 KW SERVICE CLASSIFICATION~Retail Transmission Rate - Line and Transformation Connection Service Rate | F52: GENERAL SERVICE 50 to 4,999 kW SERVICE CLASSIFICATION~Retail Transmission Rate - Network Service Rate | G52: GENERAL SERVICE 50 to 4,999 kW SERVICE CLASSIFICATION~Retail Transmission Rate - Line and Transformation Connection Service Rate | H52: SENTINEL LIGHTING SERVICE CLASSIFICATION~Retail Transmission Rate - Network Service Rate | I52: SENTINEL LIGHTING SERVICE CLASSIFICATION~Retail Transmission Rate - Line and Transformation Connection Service Rate | J52: STREET LIGHTING SERVICE CLASSIFICATION~Retail Transmission Rate - Network Service Rate | K52: STREET LIGHTING SERVICE CLASSIFICATION~Retail Transmission Rate - Line and Transformation Connection Service Rate | L52: UNMETERED SCATTERED LOAD SERVICE CLASSIFICATION~Retail Transmission Rate - Network Service Rate | M52: UNMETERED SCATTERED LOAD SERVICE CLASSIFICATION~Retail Transmission Rate - Line and Transformation Connection Service Rate
A53: Peterborough Distribution Incorporated | B53: RESIDENTIAL SERVICE CLASSIFICATION~Retail Transmission Rate - Network Service Rate | C53: RESIDENTIAL SERVICE CLASSIFICATION~Retail Transmission Rate - Line and Transformation Connection Service Rate | D53: GENERAL SERVICE LESS THAN 50 KW SERVICE CLASSIFICATION~Retail Transmission Rate - Network Service Rate | E53: GENERAL SERVICE LESS THAN 50 KW SERVICE CLASSIFICATION~Retail Transmission Rate - Line and Transformation Connection Service Rate | F53: GENERAL SERVICE 50 to 4,999 kW SERVICE CLASSIFICATION~Retail Transmission Rate - Network Service Rate | G53: GENERAL SERVICE 50 to 4,999 kW SERVICE CLASSIFICATION~Retail Transmission Rate - Line and Transformation Connection Service Rate | H53: LARGE USE SERVICE CLASSIFICATION~Retail Transmission Rate - Network Service Rate | I53: LARGE USE SERVICE CLASSIFICATION~Retail Transmission Rate - Line and Transformation Connection Service Rate | J53: UNMETERED SCATTERED LOAD SERVICE CLASSIFICATION~Retail Transmission Rate - Network Service Rate | K53: UNMETERED SCATTERED LOAD SERVICE CLASSIFICATION~Retail Transmission Rate - Line and Transformation Connection Service Rate | L53: SENTINEL LIGHTING SERVICE CLASSIFICATION~Retail Transmission Rate - Network Service Rate | M53: SENTINEL LIGHTING SERVICE CLASSIFICATION~Retail Transmission Rate - Line and Transformation Connection Service Rate | N53: STREET LIGHTING SERVICE CLASSIFICATION~Retail Transmission Rate - Network Service Rate | O53: STREET LIGHTING SERVICE CLASSIFICATION~Retail Transmission Rate - Line and Transformation Connection Service Rate
A54: Rideau St. Lawrence Distribution Inc. | B54: RESIDENTIAL SERVICE CLASSIFICATION~Retail Transmission Rate - Network Service Rate | C54: RESIDENTIAL SERVICE CLASSIFICATION~Retail Transmission Rate - Line and Transformation Connection Service Rate | D54: GENERAL SERVICE LESS THAN 50 KW SERVICE CLASSIFICATION~Retail Transmission Rate - Network Service Rate | E54: GENERAL SERVICE LESS THAN 50 KW SERVICE CLASSIFICATION~Retail Transmission Rate - Line and Transformation Connection Service Rate | F54: GENERAL SERVICE 50 to 4,999 kW SERVICE CLASSIFICATION~Retail Transmission Rate - Network Service Rate | G54: GENERAL SERVICE 50 to 4,999 kW SERVICE CLASSIFICATION~Retail Transmission Rate - Line and Transformation Connection Service Rate | H54: GENERAL SERVICE 50 to 4,999 kW SERVICE CLASSIFICATION~Retail Transmission Rate - Network Service Rate - Interval Metered | I54: GENERAL SERVICE 50 to 4,999 kW SERVICE CLASSIFICATION~Retail Transmission Rate - Line and Transformation Connection Service Rate - Interval Metered | J54: UNMETERED SCATTERED LOAD SERVICE CLASSIFICATION~Retail Transmission Rate - Network Service Rate | K54: UNMETERED SCATTERED LOAD SERVICE CLASSIFICATION~Retail Transmission Rate - Line and Transformation Connection Service Rate | L54: SENTINEL LIGHTING SERVICE CLASSIFICATION~Retail Transmission Rate - Network Service Rate | M54: SENTINEL LIGHTING SERVICE CLASSIFICATION~Retail Transmission Rate - Line and Transformation Connection Service Rate | N54: STREET LIGHTING SERVICE CLASSIFICATION~Retail Transmission Rate - Network Service Rate | O54: STREET LIGHTING SERVICE CLASSIFICATION~Retail Transmission Rate - Line and Transformation Connection Service Rate
A55: Sioux Lookout Hydro Inc. | B55: RESIDENTIAL SERVICE CLASSIFICATION~Retail Transmission Rate - Network Service Rate | C55: RESIDENTIAL SERVICE CLASSIFICATION~Retail Transmission Rate - Line and Transformation Connection Service Rate | D55: GENERAL SERVICE LESS THAN 50 KW SERVICE CLASSIFICATION~Retail Transmission Rate - Network Service Rate | E55: GENERAL SERVICE LESS THAN 50 KW SERVICE CLASSIFICATION~Retail Transmission Rate - Line and Transformation Connection Service Rate | F55: GENERAL SERVICE 50 to 4,999 kW SERVICE CLASSIFICATION~Retail Transmission Rate - Network Service Rate | G55: GENERAL SERVICE 50 to 4,999 kW SERVICE CLASSIFICATION~Retail Transmission Rate - Line and Transformation Connection Service Rate | H55: GENERAL SERVICE 50 to 4,999 kW SERVICE CLASSIFICATION~Retail Transmission Rate - Network Service Rate - Interval Metered > 1,000 kW | I55: GENERAL SERVICE 50 to 4,999 kW SERVICE CLASSIFICATION~Retail Transmission Rate - Line and Transformation Connection Service Rate - Interval Metered > 1,000 kW | J55: STREET LIGHTING SERVICE CLASSIFICATION~Retail Transmission Rate - Network Service Rate | K55: STREET LIGHTING SERVICE CLASSIFICATION~Retail Transmission Rate - Line and Transformation Connection Service Rate
A56: Synergy North Corporation-Thunder Bay Rate Zone | B56: RESIDENTIAL SERVICE CLASSIFICATION~Retail Transmission Rate - Network Service Rate | C56: RESIDENTIAL SERVICE CLASSIFICATION~Retail Transmission Rate - Line and Transformation Connection Service Rate | D56: GENERAL SERVICE LESS THAN 50 KW SERVICE CLASSIFICATION~Retail Transmission Rate - Network Service Rate | E56: GENERAL SERVICE LESS THAN 50 KW SERVICE CLASSIFICATION~Retail Transmission Rate - Line and Transformation Connection Service Rate | F56: GENERAL SERVICE 50 TO 999 KW SERVICE CLASSIFICATION~Retail Transmission Rate - Network Service Rate | G56: GENERAL SERVICE 50 TO 999 KW SERVICE CLASSIFICATION~Retail Transmission Rate - Line and Transformation Connection Service Rate | H56: GENERAL SERVICE 50 TO 999 KW SERVICE CLASSIFICATION~Retail Transmission Rate - Network Service Rate - Interval Metered | I56: GENERAL SERVICE 50 TO 999 KW SERVICE CLASSIFICATION~Retail Transmission Rate - Line and Transformation Connection Service Rate - Interval Metered | J56: GENERAL SERVICE 1,000 KW OR GREATER SERVICE CLASSIFICATION~Retail Transmission Rate - Network Service Rate | K56: GENERAL SERVICE 1,000 KW OR GREATER SERVICE CLASSIFICATION~Retail Transmission Rate - Line and Transformation Connection Service Rate | L56: UNMETERED SCATTERED LOAD SERVICE CLASSIFICATION~Retail Transmission Rate - Network Service Rate | M56: UNMETERED SCATTERED LOAD SERVICE CLASSIFICATION~Retail Transmission Rate - Line and Transformation Connection Service Rate | N56: SENTINEL LIGHTING SERVICE CLASSIFICATION~Retail Transmission Rate - Network Service Rate | O56: SENTINEL LIGHTING SERVICE CLASSIFICATION~Retail Transmission Rate - Line and Transformation Connection Service Rate | P56: STREET LIGHTING SERVICE CLASSIFICATION~Retail Transmission Rate - Network Service Rate | Q56: STREET LIGHTING SERVICE CLASSIFICATION~Retail Transmission Rate - Line and Transformation Connection Service Rate
A57: ENWIN Utilities Ltd. | B57: RESIDENTIAL SERVICE CLASSIFICATION~Retail Transmission Rate - Network Service Rate | C57: RESIDENTIAL SERVICE CLASSIFICATION~Retail Transmission Rate - Line and Transformation Connection Service Rate | D57: GENERAL SERVICE LESS THAN 50 KW SERVICE CLASSIFICATION~Retail Transmission Rate - Network Service Rate | E57: GENERAL SERVICE LESS THAN 50 KW SERVICE CLASSIFICATION~Retail Transmission Rate - Line and Transformation Connection Service Rate | F57: GENERAL SERVICE 50 to 4,999 kW SERVICE CLASSIFICATION~Retail Transmission Rate - Network Service Rate | G57: GENERAL SERVICE 50 to 4,999 kW SERVICE CLASSIFICATION~Retail Transmission Rate - Line and Transformation Connection Service Rate | H57: GENERAL SERVICE 3,000 TO 4,999 KW - INTERMEDIATE USE SERVICE CLASSIFICATION~Retail Transmission Rate - Network Service Rate | I57: GENERAL SERVICE 3,000 TO 4,999 KW - INTERMEDIATE USE SERVICE CLASSIFICATION~Retail Transmission Rate - Line and Transformation Connection Service Rate | J57: LARGE USE - REGULAR SERVICE CLASSIFICATION~Retail Transmission Rate - Network Service Rate | K57: LARGE USE - REGULAR SERVICE CLASSIFICATION~Retail Transmission Rate - Line Connection Service Rate | L57: LARGE USE - REGULAR SERVICE CLASSIFICATION~Retail Transmission Rate - Transformation Connection Service Rate | M57: LARGE USE - 3TS SERVICE CLASSIFICATION~Retail Transmission Rate - Network Service Rate | N57: LARGE USE - 3TS SERVICE CLASSIFICATION~Retail Transmission Rate - Line Connection Service Rate | O57: LARGE USE - FORD ANNEX SERVICE CLASSIFICATION~Retail Transmission Rate - Network Service Rate | P57: LARGE USE - FORD ANNEX SERVICE CLASSIFICATION~Retail Transmission Rate - Line Connection Service Rate | Q57: UNMETERED SCATTERED LOAD SERVICE CLASSIFICATION~Retail Transmission Rate - Network Service Rate | R57: UNMETERED SCATTERED LOAD SERVICE CLASSIFICATION~Retail Transmission Rate - Line and Transformation Connection Service Rate | S57: SENTINEL LIGHTING SERVICE CLASSIFICATION~Retail Transmission Rate - Network Service Rate | T57: SENTINEL LIGHTING SERVICE CLASSIFICATION~Retail Transmission Rate - Line and Transformation Connection Service Rate | U57: STREET LIGHTING SERVICE CLASSIFICATION~Retail Transmission Rate - Network Service Rate | V57: STREET LIGHTING SERVICE CLASSIFICATION~Retail Transmission Rate - Line and Transformation Connection Service Rate
A58: Hearst Power Distribution Co. Ltd. | B58: RESIDENTIAL SERVICE CLASSIFICATION~Retail Transmission Rate - Network Service Rate | C58: RESIDENTIAL SERVICE CLASSIFICATION~Retail Transmission Rate - Line and Transformation Connection Service Rate | D58: GENERAL SERVICE LESS THAN 50 KW SERVICE CLASSIFICATION~Retail Transmission Rate - Network Service Rate | E58: GENERAL SERVICE LESS THAN 50 KW SERVICE CLASSIFICATION~Retail Transmission Rate - Line and Transformation Connection Service Rate | F58: GENERAL SERVICE 50 TO 1,499 KW SERVICE CLASSIFICATION~Retail Transmission Rate - Network Service Rate | G58: GENERAL SERVICE 50 TO 1,499 KW SERVICE CLASSIFICATION~Retail Transmission Rate - Line and Transformation Connection Service Rate | H58: INTERMEDIATE USER SERVICE CLASSIFICATION~Retail Transmission Rate - Network Service Rate | I58: INTERMEDIATE USER SERVICE CLASSIFICATION~Retail Transmission Rate - Line and Transformation Connection Service Rate | J58: SENTINEL LIGHTING SERVICE CLASSIFICATION~Retail Transmission Rate - Network Service Rate | K58: SENTINEL LIGHTING SERVICE CLASSIFICATION~Retail Transmission Rate - Line and Transformation Connection Service Rate | L58: STREET LIGHTING SERVICE CLASSIFICATION~Retail Transmission Rate - Network Service Rate | M58: STREET LIGHTING SERVICE CLASSIFICATION~Retail Transmission Rate - Line and Transformation Connection Service Rate
A59: ERTH Power Corporation-ERTH Power Main Rate Zone | B59: RESIDENTIAL SERVICE CLASSIFICATION~Retail Transmission Rate - Network Service Rate | C59: RESIDENTIAL SERVICE CLASSIFICATION~Retail Transmission Rate - Line and Transformation Connection Service Rate | D59: GENERAL SERVICE LESS THAN 50 KW SERVICE CLASSIFICATION~Retail Transmission Rate - Network Service Rate | E59: GENERAL SERVICE LESS THAN 50 KW SERVICE CLASSIFICATION~Retail Transmission Rate - Line and Transformation Connection Service Rate | F59: GENERAL SERVICE 50 TO 999 KW SERVICE CLASSIFICATION~Retail Transmission Rate - Network Service Rate | G59: GENERAL SERVICE 50 TO 999 KW SERVICE CLASSIFICATION~Retail Transmission Rate - Line and Transformation Connection Service Rate | H59: GENERAL SERVICE 1,000 TO 4,999 KW SERVICE CLASSIFICATION~Retail Transmission Rate - Network Service Rate | I59: GENERAL SERVICE 1,000 TO 4,999 KW SERVICE CLASSIFICATION~Retail Transmission Rate - Line and Transformation Connection Service Rate | J59: LARGE USE SERVICE CLASSIFICATION~Retail Transmission Rate - Network Service Rate | K59: LARGE USE SERVICE CLASSIFICATION~Retail Transmission Rate - Line and Transformation Connection Service Rate | L59: UNMETERED SCATTERED LOAD SERVICE CLASSIFICATION~Retail Transmission Rate - Network Service Rate | M59: UNMETERED SCATTERED LOAD SERVICE CLASSIFICATION~Retail Transmission Rate - Line and Transformation Connection Service Rate | N59: SENTINEL LIGHTING SERVICE CLASSIFICATION~Retail Transmission Rate - Network Service Rate | O59: SENTINEL LIGHTING SERVICE CLASSIFICATION~Retail Transmission Rate - Line and Transformation Connection Service Rate | P59: STREET LIGHTING SERVICE CLASSIFICATION~Retail Transmission Rate - Network Service Rate | Q59: STREET LIGHTING SERVICE CLASSIFICATION~Retail Transmission Rate - Line and Transformation Connection Service Rate | R59: EMBEDDED DISTRIBUTOR SERVICE CLASSIFICATION~Retail Transmission Rate - Network Service Rate | S59: EMBEDDED DISTRIBUTOR SERVICE CLASSIFICATION~Retail Transmission Rate - Line and Transformation Connection Service Rate
A60: Welland Hydro-Electric System Corp. | B60: RESIDENTIAL SERVICE CLASSIFICATION~Retail Transmission Rate - Network Service Rate | C60: RESIDENTIAL SERVICE CLASSIFICATION~Retail Transmission Rate - Line and Transformation Connection Service Rate | D60: GENERAL SERVICE LESS THAN 50 KW SERVICE CLASSIFICATION~Retail Transmission Rate - Network Service Rate | E60: GENERAL SERVICE LESS THAN 50 KW SERVICE CLASSIFICATION~Retail Transmission Rate - Line and Transformation Connection Service Rate | F60: GENERAL SERVICE 50 to 4,999 kW SERVICE CLASSIFICATION~Retail Transmission Rate - Network Service Rate | G60: GENERAL SERVICE 50 to 4,999 kW SERVICE CLASSIFICATION~Retail Transmission Rate - Line and Transformation Connection Service Rate | H60: UNMETERED SCATTERED LOAD SERVICE CLASSIFICATION~Retail Transmission Rate - Network Service Rate | I60: UNMETERED SCATTERED LOAD SERVICE CLASSIFICATION~Retail Transmission Rate - Line and Transformation Connection Service Rate | J60: SENTINEL LIGHTING SERVICE CLASSIFICATION~Retail Transmission Rate - Network Service Rate | K60: SENTINEL LIGHTING SERVICE CLASSIFICATION~Retail Transmission Rate - Line and Transformation Connection Service Rate | L60: STREET LIGHTING SERVICE CLASSIFICATION~Retail Transmission Rate - Network Service Rate | M60: STREET LIGHTING SERVICE CLASSIFICATION~Retail Transmission Rate - Line and Transformation Connection Service Rate
A61: Wellington North Power Inc. | B61: RESIDENTIAL SERVICE CLASSIFICATION~Retail Transmission Rate - Network Service Rate | C61: RESIDENTIAL SERVICE CLASSIFICATION~Retail Transmission Rate - Line and Transformation Connection Service Rate | D61: GENERAL SERVICE LESS THAN 50 KW SERVICE CLASSIFICATION~Retail Transmission Rate - Network Service Rate | E61: GENERAL SERVICE LESS THAN 50 KW SERVICE CLASSIFICATION~Retail Transmission Rate - Line and Transformation Connection Service Rate | F61: GENERAL SERVICE 50 TO 999 KW SERVICE CLASSIFICATION~Retail Transmission Rate - Network Service Rate | G61: GENERAL SERVICE 50 TO 999 KW SERVICE CLASSIFICATION~Retail Transmission Rate - Line and Transformation Connection Service Rate | H61: GENERAL SERVICE 1,000 TO 4,999 KW SERVICE CLASSIFICATION~Retail Transmission Rate - Network Service Rate | I61: GENERAL SERVICE 1,000 TO 4,999 KW SERVICE CLASSIFICATION~Retail Transmission Rate - Line and Transformation Connection Service Rate | J61: UNMETERED SCATTERED LOAD SERVICE CLASSIFICATION~Retail Transmission Rate - Network Service Rate | K61: UNMETERED SCATTERED LOAD SERVICE CLASSIFICATION~Retail Transmission Rate - Line and Transformation Connection Service Rate | L61: SENTINEL LIGHTING SERVICE CLASSIFICATION~Retail Transmission Rate - Network Service Rate | M61: SENTINEL LIGHTING SERVICE CLASSIFICATION~Retail Transmission Rate - Line and Transformation Connection Service Rate | N61: STREET LIGHTING SERVICE CLASSIFICATION~Retail Transmission Rate - Network Service Rate | O61: STREET LIGHTING SERVICE CLASSIFICATION~Retail Transmission Rate - Line and Transformation Connection Service Rate
A62: Tillsonburg Hydro Inc. | B62: RESIDENTIAL SERVICE CLASSIFICATION~Retail Transmission Rate - Network Service Rate | C62: RESIDENTIAL SERVICE CLASSIFICATION~Retail Transmission Rate - Line and Transformation Connection Service Rate | D62: GENERAL SERVICE LESS THAN 50 KW SERVICE CLASSIFICATION~Retail Transmission Rate - Network Service Rate | E62: GENERAL SERVICE LESS THAN 50 KW SERVICE CLASSIFICATION~Retail Transmission Rate - Line and Transformation Connection Service Rate | F62: GENERAL SERVICE 50 TO 499 KW SERVICE CLASSIFICATION~Retail Transmission Rate - Network Service Rate | G62: GENERAL SERVICE 50 TO 499 KW SERVICE CLASSIFICATION~Retail Transmission Rate - Line and Transformation Connection Service Rate | H62: GENERAL SERVICE 500 TO 1,499 KW SERVICE CLASSIFICATION~Retail Transmission Rate - Network Service Rate - Interval Metered | I62: GENERAL SERVICE 500 TO 1,499 KW SERVICE CLASSIFICATION~Retail Transmission Rate - Line and Transformation Connection Service Rate - Interval Metered | J62: GENERAL SERVICE EQUAL TO OR GREATER THAN 1,500 KW SERVICE CLASSIFICATION~Retail Transmission Rate - Network Service Rate - Interval Metered | K62: GENERAL SERVICE EQUAL TO OR GREATER THAN 1,500 KW SERVICE CLASSIFICATION~Retail Transmission Rate - Line and Transformation Connection Service Rate - Interval Metered | L62: UNMETERED SCATTERED LOAD SERVICE CLASSIFICATION~Retail Transmission Rate - Network Service Rate | M62: UNMETERED SCATTERED LOAD SERVICE CLASSIFICATION~Retail Transmission Rate - Line and Transformation Connection Service Rate | N62: SENTINEL LIGHTING SERVICE CLASSIFICATION~Retail Transmission Rate - Network Service Rate | O62: SENTINEL LIGHTING SERVICE CLASSIFICATION~Retail Transmission Rate - Line and Transformation Connection Service Rate | P62: STREET LIGHTING SERVICE CLASSIFICATION~Retail Transmission Rate - Network Service Rate | Q62: STREET LIGHTING SERVICE CLASSIFICATION~Retail Transmission Rate - Line and Transformation Connection Service Rate
A63: Elexicon Energy Inc.-Veridian Rate Zone | B63: RESIDENTIAL SERVICE CLASSIFICATION~Retail Transmission Rate - Network Service Rate | C63: RESIDENTIAL SERVICE CLASSIFICATION~Retail Transmission Rate - Line and Transformation Connection Service Rate | D63: SEASONAL RESIDENTIAL SERVICE CLASSIFICATION~Retail Transmission Rate - Network Service Rate | E63: SEASONAL RESIDENTIAL SERVICE CLASSIFICATION~Retail Transmission Rate - Line and Transformation Connection Service Rate | F63: GENERAL SERVICE LESS THAN 50 KW SERVICE CLASSIFICATION~Retail Transmission Rate - Network Service Rate | G63: GENERAL SERVICE LESS THAN 50 KW SERVICE CLASSIFICATION~Retail Transmission Rate - Line and Transformation Connection Service Rate | H63: GENERAL SERVICE 50 TO 2,999 KW SERVICE CLASSIFICATION~Retail Transmission Rate - Network Service Rate | I63: GENERAL SERVICE 50 TO 2,999 KW SERVICE CLASSIFICATION~Retail Transmission Rate - Line and Transformation Connection Service Rate | J63: GENERAL SERVICE 3,000 TO 4,999 KW SERVICE CLASSIFICATION~Retail Transmission Rate - Network Service Rate | K63: GENERAL SERVICE 3,000 TO 4,999 KW SERVICE CLASSIFICATION~Retail Transmission Rate - Line and Transformation Connection Service Rate | L63: LARGE USE SERVICE CLASSIFICATION~Retail Transmission Rate - Network Service Rate | M63: LARGE USE SERVICE CLASSIFICATION~Retail Transmission Rate - Line and Transformation Connection Service Rate | N63: UNMETERED SCATTERED LOAD SERVICE CLASSIFICATION~Retail Transmission Rate - Network Service Rate | O63: UNMETERED SCATTERED LOAD SERVICE CLASSIFICATION~Retail Transmission Rate - Line and Transformation Connection Service Rate | P63: SENTINEL LIGHTING SERVICE CLASSIFICATION~Retail Transmission Rate - Network Service Rate | Q63: SENTINEL LIGHTING SERVICE CLASSIFICATION~Retail Transmission Rate - Line and Transformation Connection Service Rate | R63: STREET LIGHTING SERVICE CLASSIFICATION~Retail Transmission Rate - Network Service Rate | S63: STREET LIGHTING SERVICE CLASSIFICATION~Retail Transmission Rate - Line and Transformation Connection Service Rate
A64: Wasaga Distribution Inc. | B64: RESIDENTIAL SERVICE CLASSIFICATION~Retail Transmission Rate - Network Service Rate | C64: RESIDENTIAL SERVICE CLASSIFICATION~Retail Transmission Rate - Line and Transformation Connection Service Rate | D64: GENERAL SERVICE LESS THAN 50 KW SERVICE CLASSIFICATION~Retail Transmission Rate - Network Service Rate | E64: GENERAL SERVICE LESS THAN 50 KW SERVICE CLASSIFICATION~Retail Transmission Rate - Line and Transformation Connection Service Rate | F64: GENERAL SERVICE 50 to 4,999 kW SERVICE CLASSIFICATION~Retail Transmission Rate - Network Service Rate | G64: GENERAL SERVICE 50 to 4,999 kW SERVICE CLASSIFICATION~Retail Transmission Rate - Line and Transformation Connection Service Rate | H64: UNMETERED SCATTERED LOAD SERVICE CLASSIFICATION~Retail Transmission Rate - Network Service Rate | I64: UNMETERED SCATTERED LOAD SERVICE CLASSIFICATION~Retail Transmission Rate - Line and Transformation Connection Service Rate | J64: STREET LIGHTING SERVICE CLASSIFICATION~Retail Transmission Rate - Network Service Rate | K64: STREET LIGHTING SERVICE CLASSIFICATION~Retail Transmission Rate - Line and Transformation Connection Service Rate
A65: ERTH Power Corporation – Goderich Rate Zone | B65: RESIDENTIAL SERVICE CLASSIFICATION~Retail Transmission Rate - Network Service Rate | C65: RESIDENTIAL SERVICE CLASSIFICATION~Retail Transmission Rate - Line and Transformation Connection Service Rate | D65: GENERAL SERVICE LESS THAN 50 KW SERVICE CLASSIFICATION~Retail Transmission Rate - Network Service Rate | E65: GENERAL SERVICE LESS THAN 50 KW SERVICE CLASSIFICATION~Retail Transmission Rate - Line and Transformation Connection Service Rate | F65: GENERAL SERVICE 50 TO 499 KW SERVICE CLASSIFICATION~Retail Transmission Rate - Network Service Rate | G65: GENERAL SERVICE 50 TO 499 KW SERVICE CLASSIFICATION~Retail Transmission Rate - Line and Transformation Connection Service Rate | H65: GENERAL SERVICE 500 TO 4,999 KW SERVICE CLASSIFICATION~Retail Transmission Rate - Network Service Rate | I65: GENERAL SERVICE 500 TO 4,999 KW SERVICE CLASSIFICATION~Retail Transmission Rate - Line and Transformation Connection Service Rate | J65: LARGE USE SERVICE CLASSIFICATION~Retail Transmission Rate - Network Service Rate | K65: LARGE USE SERVICE CLASSIFICATION~Retail Transmission Rate - Line and Transformation Connection Service Rate | L65: UNMETERED SCATTERED LOAD SERVICE CLASSIFICATION~Retail Transmission Rate - Network Service Rate | M65: UNMETERED SCATTERED LOAD SERVICE CLASSIFICATION~Retail Transmission Rate - Line and Transformation Connection Service Rate | N65: SENTINEL LIGHTING SERVICE CLASSIFICATION~Retail Transmission Rate - Network Service Rate | O65: SENTINEL LIGHTING SERVICE CLASSIFICATION~Retail Transmission Rate - Line and Transformation Connection Service Rate | P65: STREET LIGHTING SERVICE CLASSIFICATION~Retail Transmission Rate - Network Service Rate | Q65: STREET LIGHTING SERVICE CLASSIFICATION~Retail Transmission Rate - Line and Transformation Connection Service Rate
A66: Oshawa PUC Networks Inc. | B66: RESIDENTIAL SERVICE CLASSIFICATION~Retail Transmission Rate - Network Service Rate | C66: RESIDENTIAL SERVICE CLASSIFICATION~Retail Transmission Rate - Line and Transformation Connection Service Rate | D66: GENERAL SERVICE LESS THAN 50 KW SERVICE CLASSIFICATION~Retail Transmission Rate - Network Service Rate | E66: GENERAL SERVICE LESS THAN 50 KW SERVICE CLASSIFICATION~Retail Transmission Rate - Line and Transformation Connection Service Rate | F66: GENERAL SERVICE 50 TO 999 KW SERVICE CLASSIFICATION~Retail Transmission Rate - Network Service Rate | G66: GENERAL SERVICE 50 TO 999 KW SERVICE CLASSIFICATION~Retail Transmission Rate - Line and Transformation Connection Service Rate | H66: GENERAL SERVICE 50 TO 999 KW SERVICE CLASSIFICATION~Retail Transmission Rate - Network Service Rate - Interval Metered | I66: GENERAL SERVICE 50 TO 999 KW SERVICE CLASSIFICATION~Retail Transmission Rate - Line and Transformation Connection Service Rate - Interval Metered | J66: GENERAL SERVICE 1,000 TO 4,999 KW SERVICE CLASSIFICATION~Retail Transmission Rate - Network Service Rate - Interval Metered | K66: GENERAL SERVICE 1,000 TO 4,999 KW SERVICE CLASSIFICATION~Retail Transmission Rate - Line and Transformation Connection Service Rate - Interval Metered | L66: LARGE USE SERVICE CLASSIFICATION~Retail Transmission Rate - Network Service Rate - Interval Metered | M66: LARGE USE SERVICE CLASSIFICATION~Retail Transmission Rate - Line and Transformation Connection Service Rate - Interval Metered | N66: UNMETERED SCATTERED LOAD SERVICE CLASSIFICATION~Retail Transmission Rate - Network Service Rate | O66: UNMETERED SCATTERED LOAD SERVICE CLASSIFICATION~Retail Transmission Rate - Line and Transformation Connection Service Rate | P66: SENTINEL LIGHTING SERVICE CLASSIFICATION~Retail Transmission Rate - Network Service Rate | Q66: SENTINEL LIGHTING SERVICE CLASSIFICATION~Retail Transmission Rate - Line and Transformation Connection Service Rate | R66: STREET LIGHTING SERVICE CLASSIFICATION~Retail Transmission Rate - Network Service Rate | S66: STREET LIGHTING SERVICE CLASSIFICATION~Retail Transmission Rate - Line and Transformation Connection Service Rate
A67: Brantford Power Inc. | B67: RESIDENTIAL SERVICE CLASSIFICATION~Retail Transmission Rate - Network Service Rate | C67: RESIDENTIAL SERVICE CLASSIFICATION~Retail Transmission Rate - Line and Transformation Connection Service Rate | D67: GENERAL SERVICE LESS THAN 50 KW SERVICE CLASSIFICATION~Retail Transmission Rate - Network Service Rate | E67: GENERAL SERVICE LESS THAN 50 KW SERVICE CLASSIFICATION~Retail Transmission Rate - Line and Transformation Connection Service Rate | F67: GENERAL SERVICE 50 to 4,999 kW SERVICE CLASSIFICATION~Retail Transmission Rate - Network Service Rate | G67: GENERAL SERVICE 50 to 4,999 kW SERVICE CLASSIFICATION~Retail Transmission Rate - Line and Transformation Connection Service Rate | H67: EMBEDDED DISTRIBUTOR SERVICE CLASSIFICATION~Retail Transmission Rate - Network Service Rate | I67: EMBEDDED DISTRIBUTOR SERVICE CLASSIFICATION~Retail Transmission Rate - Line and Transformation Connection Service Rate | J67: SENTINEL LIGHTING SERVICE CLASSIFICATION~Retail Transmission Rate - Network Service Rate | K67: SENTINEL LIGHTING SERVICE CLASSIFICATION~Retail Transmission Rate - Line and Transformation Connection Service Rate | L67: STREET LIGHTING SERVICE CLASSIFICATION~Retail Transmission Rate - Network Service Rate | M67: STREET LIGHTING SERVICE CLASSIFICATION~Retail Transmission Rate - Line and Transformation Connection Service Rate | N67: UNMETERED SCATTERED LOAD SERVICE CLASSIFICATION~Retail Transmission Rate - Network Service Rate | O67: UNMETERED SCATTERED LOAD SERVICE CLASSIFICATION~Retail Transmission Rate - Line and Transformation Connection Service Rate
A68: Oakville Hydro Electricity Distribution Inc. | B68: RESIDENTIAL SERVICE CLASSIFICATION~Retail Transmission Rate - Network Service Rate | C68: RESIDENTIAL SERVICE CLASSIFICATION~Retail Transmission Rate - Line and Transformation Connection Service Rate | D68: GENERAL SERVICE LESS THAN 50 KW SERVICE CLASSIFICATION~Retail Transmission Rate - Network Service Rate | E68: GENERAL SERVICE LESS THAN 50 KW SERVICE CLASSIFICATION~Retail Transmission Rate - Line and Transformation Connection Service Rate | F68: GENERAL SERVICE 50 TO 999 KW SERVICE CLASSIFICATION~Retail Transmission Rate - Network Service Rate | G68: GENERAL SERVICE 50 TO 999 KW SERVICE CLASSIFICATION~Retail Transmission Rate - Network Service Rate - Interval Metered | H68: GENERAL SERVICE 50 TO 999 KW SERVICE CLASSIFICATION~Retail Transmission Rate - Line and Transformation Connection Service Rate | I68: GENERAL SERVICE 50 TO 999 KW SERVICE CLASSIFICATION~Retail Transmission Rate - Line and Transformation Connection Service Rate - Interval Metered | J68: GENERAL SERVICE 1,000 KW AND GREATER SERVICE CLASSIFICATION~Retail Transmission Rate - Network Service Rate - Interval Metered | K68: GENERAL SERVICE 1,000 KW AND GREATER SERVICE CLASSIFICATION~Retail Transmission Rate - Line and Transformation Connection Service Rate - Interval Metered | L68: UNMETERED SCATTERED LOAD SERVICE CLASSIFICATION~Retail Transmission Rate - Network Service Rate | M68: UNMETERED SCATTERED LOAD SERVICE CLASSIFICATION~Retail Transmission Rate - Line and Transformation Connection Service Rate | N68: SENTINEL LIGHTING SERVICE CLASSIFICATION~Retail Transmission Rate - Network Service Rate | O68: SENTINEL LIGHTING SERVICE CLASSIFICATION~Retail Transmission Rate - Line and Transformation Connection Service Rate | P68: STREET LIGHTING SERVICE CLASSIFICATION~Retail Transmission Rate - Network Service Rate | Q68: STREET LIGHTING SERVICE CLASSIFICATION~Retail Transmission Rate - Line and Transformation Connection Service Rate | R68: EMBEDDED DISTRIBUTOR SERVICE CLASSIFICATION~Retail Transmission Rate - Network Service Rate | S68: EMBEDDED DISTRIBUTOR SERVICE CLASSIFICATION~Retail Transmission Rate - Line and Transformation Connection Service Rate
A69: Chapleau Public Utilities Corporation | B69: RESIDENTIAL SERVICE CLASSIFICATION~Retail Transmission Rate - Network Service Rate | C69: RESIDENTIAL SERVICE CLASSIFICATION~Retail Transmission Rate - Line and Transformation Connection Service Rate | D69: GENERAL SERVICE LESS THAN 50 kW SERVICE CLASSIFICATION~Retail Transmission Rate - Network Service Rate | E69: GENERAL SERVICE LESS THAN 50 kW SERVICE CLASSIFICATION~Retail Transmission Rate - Line and Transformation Connection Service Rate | F69: GENERAL SERVICE 50 TO 4,999 KW SERVICE CLASSIFICATION~Retail Transmission Rate - Network Service Rate | G69: GENERAL SERVICE 50 TO 4,999 KW SERVICE CLASSIFICATION~Retail Transmission Rate - Line and Transformation Connection Service Rate | H69: UNMETERED SCATTERED LOAD SERVICE CLASSIFICATION~Retail Transmission Rate - Network Service Rate | I69: UNMETERED SCATTERED LOAD SERVICE CLASSIFICATION~Retail Transmission Rate - Line and Transformation Connection Service Rate | J69: SENTINEL LIGHTING SERVICE CLASSIFICATION~Retail Transmission Rate - Network Service Rate | K69: SENTINEL LIGHTING SERVICE CLASSIFICATION~Retail Transmission Rate - Line and Transformation Connection Service Rate | L69: STREET LIGHTING SERVICE CLASSIFICATION~Retail Transmission Rate - Network Service Rate | M69: STREET LIGHTING SERVICE CLASSIFICATION~Retail Transmission Rate - Line and Transformation Connection Service Rate
A70: Espanola Regional Hydro Distribution Corporation | B70: RESIDENTIAL SERVICE CLASSIFICATION~Retail Transmission Rate - Network Service Rate | C70: RESIDENTIAL SERVICE CLASSIFICATION~Retail Transmission Rate - Line and Transformation Connection Service Rate | D70: GENERAL SERVICE LESS THAN 50 kW SERVICE CLASSIFICATION~Retail Transmission Rate - Network Service Rate | E70: GENERAL SERVICE LESS THAN 50 kW SERVICE CLASSIFICATION~Retail Transmission Rate - Line and Transformation Connection Service Rate | F70: GENERAL SERVICE 50 TO 4,999 KW SERVICE CLASSIFICATION~Retail Transmission Rate - Network Service Rate | G70: GENERAL SERVICE 50 TO 4,999 KW SERVICE CLASSIFICATION~Retail Transmission Rate - Line and Transformation Connection Service Rate | H70: GENERAL SERVICE 50 TO 4,999 KW SERVICE CLASSIFICATION~Retail Transmission Rate - Network Service Rate - Interval Metered | I70: GENERAL SERVICE 50 TO 4,999 KW SERVICE CLASSIFICATION~Retail Transmission Rate - Line and Transformation Connection Service Rate - Interval Metered | J70: UNMETERED SCATTERED LOAD SERVICE CLASSIFICATION~Retail Transmission Rate - Network Service Rate | K70: UNMETERED SCATTERED LOAD SERVICE CLASSIFICATION~Retail Transmission Rate - Line and Transformation Connection Service Rate | L70: SENTINEL LIGHTING SERVICE CLASSIFICATION~Retail Transmission Rate - Network Service Rate | M70: SENTINEL LIGHTING SERVICE CLASSIFICATION~Retail Transmission Rate - Line and Transformation Connection Service Rate | N70: STREET LIGHTING SERVICE CLASSIFICATION~Retail Transmission Rate - Network Service Rate | O70: STREET LIGHTING SERVICE CLASSIFICATION~Retail Transmission Rate - Line and Transformation Connection Service Rate
A71: Energy+ Inc.-For Former Brant County Power Service Area | B71: RESIDENTIAL SERVICE CLASSIFICATION~Retail Transmission Rate - Network Service Rate | C71: RESIDENTIAL SERVICE CLASSIFICATION~Retail Transmission Rate - Line and Transformation Connection Service Rate | D71: GENERAL SERVICE LESS THAN 50 KW SERVICE CLASSIFICATION~Retail Transmission Rate - Network Service Rate | E71: GENERAL SERVICE LESS THAN 50 KW SERVICE CLASSIFICATION~Retail Transmission Rate - Line and Transformation Connection Service Rate | F71: GENERAL SERVICE 50 to 4,999 kW SERVICE CLASSIFICATION~Retail Transmission Rate - Network Service Rate | G71: GENERAL SERVICE 50 to 4,999 kW SERVICE CLASSIFICATION~Retail Transmission Rate - Line and Transformation Connection Service Rate | H71: GENERAL SERVICE 50 to 4,999 kW SERVICE CLASSIFICATION~Retail Transmission Rate - Network Service Rate - Interval Metered < 1,000 kW | I71: GENERAL SERVICE 50 to 4,999 kW SERVICE CLASSIFICATION~Retail Transmission Rate - Line and Transformation Connection Service Rate - Interval Metered < 1,000 kW | J71: GENERAL SERVICE 50 to 4,999 kW SERVICE CLASSIFICATION~Retail Transmission Rate - Network Service Rate - Interval Metered > 1,000 kW | K71: GENERAL SERVICE 50 to 4,999 kW SERVICE CLASSIFICATION~Retail Transmission Rate - Line and Transformation Connection Service Rate - Interval Metered > 1,000 kW | L71: UNMETERED SCATTERED LOAD SERVICE CLASSIFICATION~Retail Transmission Rate - Network Service Rate | M71: UNMETERED SCATTERED LOAD SERVICE CLASSIFICATION~Retail Transmission Rate - Line and Transformation Connection Service Rate | N71: SENTINEL LIGHTING SERVICE CLASSIFICATION~Retail Transmission Rate - Network Service Rate | O71: SENTINEL LIGHTING SERVICE CLASSIFICATION~Retail Transmission Rate - Line and Transformation Connection Service Rate | P71: STREET LIGHTING SERVICE CLASSIFICATION~Retail Transmission Rate - Network Service Rate | Q71: STREET LIGHTING SERVICE CLASSIFICATION~Retail Transmission Rate - Line and Transformation Connection Service Rate
A72: Energy+ Inc.-For Former Cambridge and North Dumfries Hydro Service Area | B72: RESIDENTIAL SERVICE CLASSIFICATION~Retail Transmission Rate - Network Service Rate | C72: RESIDENTIAL SERVICE CLASSIFICATION~Retail Transmission Rate - Line and Transformation Connection Service Rate | D72: GENERAL SERVICE LESS THAN 50 KW SERVICE CLASSIFICATION~Retail Transmission Rate - Network Service Rate | E72: GENERAL SERVICE LESS THAN 50 KW SERVICE CLASSIFICATION~Retail Transmission Rate - Line and Transformation Connection Service Rate | F72: GENERAL SERVICE 50 TO 999 KW SERVICE CLASSIFICATION~Retail Transmission Rate - Network Service Rate | G72: GENERAL SERVICE 50 TO 999 KW SERVICE CLASSIFICATION~Retail Transmission Rate - Line and Transformation Connection Service Rate | H72: GENERAL SERVICE 1,000 TO 4,999 KW SERVICE CLASSIFICATION~Retail Transmission Rate - Network Service Rate | I72: GENERAL SERVICE 1,000 TO 4,999 KW SERVICE CLASSIFICATION~Retail Transmission Rate - Line and Transformation Connection Service Rate | J72: LARGE USE SERVICE CLASSIFICATION~Retail Transmission Rate - Network Service Rate | K72: LARGE USE SERVICE CLASSIFICATION~Retail Transmission Rate - Line and Transformation Connection Service Rate | L72: UNMETERED SCATTERED LOAD SERVICE CLASSIFICATION~Retail Transmission Rate - Network Service Rate | M72: UNMETERED SCATTERED LOAD SERVICE CLASSIFICATION~Retail Transmission Rate - Line and Transformation Connection Service Rate | N72: STREET LIGHTING SERVICE CLASSIFICATION~Retail Transmission Rate - Network Service Rate | O72: STREET LIGHTING SERVICE CLASSIFICATION~Retail Transmission Rate - Line and Transformation Connection Service Rate | P72: EMBEDDED DISTRIBUTOR SERVICE CLASSIFICATION~Retail Transmission Rate - Network Service Rate | Q72: EMBEDDED DISTRIBUTOR SERVICE CLASSIFICATION~Retail Transmission Rate - Line and Transformation Connection Service Rate
A73: Hydro 2000 Inc. | B73: RESIDENTIAL SERVICE CLASSIFICATION~Retail Transmission Rate - Network Service Rate | C73: RESIDENTIAL SERVICE CLASSIFICATION~Retail Transmission Rate - Line and Transformation Connection Service Rate | D73: GENERAL SERVICE LESS THAN 50 kW SERVICE CLASSIFICATION~Retail Transmission Rate - Network Service Rate | E73: GENERAL SERVICE LESS THAN 50 kW SERVICE CLASSIFICATION~Retail Transmission Rate - Line and Transformation Connection Service Rate | F73: GENERAL SERVICE 50 TO 4,999 KW SERVICE CLASSIFICATION~Retail Transmission Rate - Network Service Rate | G73: GENERAL SERVICE 50 TO 4,999 KW SERVICE CLASSIFICATION~Retail Transmission Rate - Line and Transformation Connection Service Rate | H73: STREET LIGHTING SERVICE CLASSIFICATION~Retail Transmission Rate - Network Service Rate | I73: STREET LIGHTING SERVICE CLASSIFICATION~Retail Transmission Rate - Line and Transformation Connection Service Rate | J73: UNMETERED SCATTERED LOAD SERVICE CLASSIFICATION~Retail Transmission Rate - Network Service Rate | K73: UNMETERED SCATTERED LOAD SERVICE CLASSIFICATION~Retail Transmission Rate - Line and Transformation Connection Service Rate
A74: Niagara-on-the-Lake Hydro Inc. | B74: RESIDENTIAL SERVICE CLASSIFICATION~Retail Transmission Rate - Network Service Rate | C74: RESIDENTIAL SERVICE CLASSIFICATION~Retail Transmission Rate - Line and Transformation Connection Service Rate | D74: GENERAL SERVICE LESS THAN 50 KW SERVICE CLASSIFICATION~Retail Transmission Rate - Network Service Rate | E74: GENERAL SERVICE LESS THAN 50 KW SERVICE CLASSIFICATION~Retail Transmission Rate - Line and Transformation Connection Service Rate | F74: GENERAL SERVICE 50 to 4,999 kW SERVICE CLASSIFICATION~Retail Transmission Rate - Network Service Rate | G74: GENERAL SERVICE 50 to 4,999 kW SERVICE CLASSIFICATION~Retail Transmission Rate - Line and Transformation Connection Service Rate | H74: GENERAL SERVICE 50 to 4,999 kW SERVICE CLASSIFICATION~Retail Transmission Rate - Network Service Rate - Interval Metered | I74: GENERAL SERVICE 50 to 4,999 kW SERVICE CLASSIFICATION~Retail Transmission Rate - Line and Transformation Connection Service Rate - Interval Metered | J74: UNMETERED SCATTERED LOAD SERVICE CLASSIFICATION~Retail Transmission Rate - Network Service Rate | K74: UNMETERED SCATTERED LOAD SERVICE CLASSIFICATION~Retail Transmission Rate - Line and Transformation Connection Service Rate | L74: STREET LIGHTING SERVICE CLASSIFICATION~Retail Transmission Rate - Network Service Rate | M74: STREET LIGHTING SERVICE CLASSIFICATION~Retail Transmission Rate - Line and Transformation Connection Service Rate
A75: PUC Distribution Inc. | B75: RESIDENTIAL SERVICE CLASSIFICATION~Retail Transmission Rate - Network Service Rate | C75: GENERAL SERVICE LESS THAN 50 KW SERVICE CLASSIFICATION~Retail Transmission Rate - Network Service Rate | D75: GENERAL SERVICE 50 to 4,999 kW SERVICE CLASSIFICATION~Retail Transmission Rate - Network Service Rate | E75: GENERAL SERVICE 50 to 4,999 kW SERVICE CLASSIFICATION~Retail Transmission Rate - Network Service Rate - Interval Metered | F75: UNMETERED SCATTERED LOAD SERVICE CLASSIFICATION~Retail Transmission Rate - Network Service Rate | G75: SENTINEL LIGHTING SERVICE CLASSIFICATION~Retail Transmission Rate - Network Service Rate | H75: STREET LIGHTING SERVICE CLASSIFICATION~Retail Transmission Rate - Network Service Rate
A76: Hydro One Networks Inc. | B76: YEAR-ROUND URBAN DENSITY - UR SERVICE CLASSIFICATION~Retail Transmission Rate - Network Service Rate | C76: YEAR-ROUND URBAN DENSITY - UR SERVICE CLASSIFICATION~Retail Transmission Rate - Line and Transformation Connection Service Rate | D76: YEAR-ROUND MEDIUM DENSITY - R1 SERVICE CLASSIFICATION~Retail Transmission Rate - Network Service Rate | E76: YEAR-ROUND MEDIUM DENSITY - R1 SERVICE CLASSIFICATION~Retail Transmission Rate - Line and Transformation Connection Service Rate | F76: YEAR-ROUND LOW DENSITY - R2 SERVICE CLASSIFICATION~Retail Transmission Rate - Network Service Rate | G76: YEAR-ROUND LOW DENSITY - R2 SERVICE CLASSIFICATION~Retail Transmission Rate - Line and Transformation Connection Service Rate | H76: SEASONAL SERVICE CLASSIFICATION~Retail Transmission Rate - Network Service Rate | I76: SEASONAL SERVICE CLASSIFICATION~Retail Transmission Rate - Line and Transformation Connection Service Rate | J76: URBAN GENERAL SERVICE ENERGY BILLED - UGe SERVICE CLASSIFICATION~Retail Transmission Rate - Network Service Rate | K76: URBAN GENERAL SERVICE ENERGY BILLED - UGe SERVICE CLASSIFICATION~Retail Transmission Rate - Line and Transformation Connection Service Rate | L76: GENERAL SERVICE ENERGY BILLED - GSe SERVICE CLASSIFICATION~Retail Transmission Rate - Network Service Rate | M76: GENERAL SERVICE ENERGY BILLED - GSe SERVICE CLASSIFICATION~Retail Transmission Rate - Line and Transformation Connection Service Rate | N76: URBAN GENERAL SERVICE DEMAND BILLED - UGd SERVICE CLASSIFICATION~Retail Transmission Rate - Network Service Rate | O76: URBAN GENERAL SERVICE DEMAND BILLED - UGd SERVICE CLASSIFICATION~Retail Transmission Rate - Line and Transformation Connection Service Rate | P76: GENERAL SERVICE DEMAND BILLED - GSd SERVICE CLASSIFICATION~Retail Transmission Rate - Network Service Rate | Q76: GENERAL SERVICE DEMAND BILLED - GSd SERVICE CLASSIFICATION~Retail Transmission Rate - Line and Transformation Connection Service Rate | R76: DISTRIBUTED GENERATION - DGen SERVICE CLASSIFICATION~Retail Transmission Rate - Network Service Rate | S76: DISTRIBUTED GENERATION - DGen SERVICE CLASSIFICATION~Retail Transmission Rate - Line and Transformation Connection Service Rate | T76: SUB TRANSMISSION - ST SERVICE CLASSIFICATION~Retail Transmission Rate - Network Service Rate | U76: SUB TRANSMISSION - ST SERVICE CLASSIFICATION~Retail Transmission Rate - Line Connection Service Rate | V76: SUB TRANSMISSION - ST SERVICE CLASSIFICATION~Retail Transmission Rate - Transformation Connection Service Rate | W76: UNMETERED SCATTERED LOAD SERVICE CLASSIFICATION~Retail Transmission Rate - Network Service Rate | X76: UNMETERED SCATTERED LOAD SERVICE CLASSIFICATION~Retail Transmission Rate - Line and Transformation Connection Service Rate | Y76: SENTINEL LIGHTING SERVICE CLASSIFICATION~Retail Transmission Rate - Network Service Rate | Z76: SENTINEL LIGHTING SERVICE CLASSIFICATION~Retail Transmission Rate - Line and Transformation Connection Service Rate | AA76: STREET LIGHTING SERVICE CLASSIFICATION~Retail Transmission Rate - Network Service Rate | AB76: STREET LIGHTING SERVICE CLASSIFICATION~Retail Transmission Rate - Line and Transformation Connection Service Rate

Sheet DELETE 3. Rate Classes (hidden)
C13: 1. Select the appropriate rate classes that appear on your most recent OEB-Approved Tariff of Rates and Charges. 2. Enter the RTSR Network and Connection Rate as it appears on the Tariff of Rates and Charges
C15: Rate Class | E15: Unit | G15: RTSR-Network | I15: RTSR-Connection
L17: =IF(OR(ISBLANK(C17), ISERROR(FIND("Choose", C17))=FALSE), 0, 1) -> 0 | M17: ="C" & ROW(C17) -> C17 | N17: =IF(OR(C17="General Service Intermediate Rate Class 1,000 To 4,999 kW (formerly General Service > 50 kW Customers)", C17="General Service Intermediate Rate Class 1,000 To 4,999 kW (formerly Large Use Customers)"), "x", "") ->  | W17: Choose Rate Class
L18: 0 | M18: C18 | N18: =IF(OR(C18="General Service Intermediate Rate Class 1,000 To 4,999 kW (formerly General Service > 50 kW Customers)", C18="General Service Intermediate Rate Class 1,000 To 4,999 kW (formerly Large Use Customers)"), "x", "") ->  | W18: Residential
L19: 0 | M19: C19 | W19: Residential Regular
L20: 0 | M20: C20 | W20: Residential Urban
L21: 0 | M21: C21 | W21: Residential Urban Year-Round
L22: =IF(OR(ISBLANK(C22), ISERROR(FIND("Choose", C22))=FALSE), 0, 1) -> 0 | M22: C22 | W22: Residential Suburban
L23: 0 | M23: C23 | W23: Residential Suburban Seasonal
L24: 0 | M24: C24 | W24: Residential Suburban Year Round
L25: 0 | M25: C25 | W25: Residential - Time of Use
L26: 0 | M26: C26 | W26: Residential - Hensall
L27: 0 | M27: C27 | W27: Residential – High Density [R1]
L28: 0 | M28: C28 | W28: Residential – Normal Density [R2]
L29: 0 | M29: C29 | W29: Seasonal Residential – High Density [R3]
L30: 0 | M30: C30 | W30: Seasonal Residential – Normal Density [R4]
L31: 0 | M31: C31 | W31: Residential – Urban [UR]
L32: 0 | M32: C32 | W32: General Service Less Than 50 kW
L33: 0 | M33: C33 | W33: General Service Less Than 50 kW – Single Phase energy-billed [G1]
L34: 0 | M34: C34 | W34: General Service Less Than 50 kW – Three Phase energy-billed [G3]
L35: 0 | M35: C35 | W35: General Service Less Than 50 kW – Transmission Class energy-billed [T]
L36: 0 | M36: C36 | W36: General Service Less Than 50 kW – Urban energy-billed [UG]
L37: 0 | M37: C37 | W37: Westport Sewage Treatment Plant
L38: 0 | M38: C38 | W38: Small Commercial and USL - per meter
N39: =COUNTIF(N17:N38, "x") -> 0 | W39: Small Commercial and USL - per connection
W40: Farms – Single Phase energy-billed [F1]
W41: General Service 50 to 499 kW
W42: General Service 50 to 699 kW
W43: General Service 50 to 999 kW
W44: General Service 50 to 999 kW - Interval Metered
W45: General Service 50 to 1,000 kW
W46: General Service 50 to 1,000 kW - Interval Meters
W47: General Service 50 to 1,000 kW - Non Interval Meters
W48: General Service 50 to 1,499 kW
W49: General Service 50 to 1,499 kW - Interval Metered
W50: General Service 50 to 2,499 kW
W51: General Service 50 to 2,999 kW
W52: General Service 50 to 2,999 kW - Time of Use
W53: General Service 50 to 4,999 kW
W54: General Service 50 to 4,999 kW – Interval Metered
W55: General Service 50 to 4,999 kW - Time of Use
W56: General Service 50 to 4,999 kW (CoGeneration)
W57: General Service 50 to 4,999 kW (formerly Time of Use)
W58: General Service 500 to 4,999 kW
W59: General Service 700 to 4,999 kW
W60: General Service 1,000 to 2,999 kW
W61: General Service 1,000 to 4,999 kW
W62: General Service 1,000 to 4,999 kW - Interval Meters
W63: General Service 1,000 To 4,999 kW (co-generation)
W64: General Service Greater Than 1,000 kW
W65: General Service Intermediate Rate Class 1,000 To 4,999 kW (formerly Large Use Customers)
W66: General Service Intermediate Rate Class 1,000 To 4,999 kW (formerly General Service > 50 kW Customers)
W67: General Service 1,500 to 4,999 kW
W68: General Service Equal To Or Greater Than 1,500 kW
W69: General Service Equal To Or Greater Than 1,500 kW - Interval Metered
W70: General Service Intermediate 1,000 To 4,999 kW
W71: General Service 2,500 to 4,999 kW
W72: General Service 3,000 to 4,999 kW
W73: General Service 3,000 to 4,999 kW - Interval Metered
W74: General Service 3,000 to 4,999 kW - Intermediate Use
W75: General Service 3,000 to 4,999 kW - Time of Use
W76: Intermediate With Self Generation
W77: General Service - Commercial
W78: General Service - Institutional
W79: Farms – Three Phase energy-billed [F3]
W80: Large Use
W81: Large Use - Regular
W82: Large Use > 5000 kW
W83: Large Use - 3TS
W84: Large Use - Ford Annex
W85: Unmetered Scattered Load
W86: Sentinel Lighting
W87: Street Lighting
W88: Embedded Distributor
W89: Low Voltage Wheeling Charge Rate
W90: Stand-By
W91: Standby Power
W92: Standby Power – INTERIM APPROVAL
W93: Standby Power - APPROVED ON AN INTERIM BASIS
W94: Standby - General Service 50 - 1,000 kW
W95: Standby Power General Service 50 to 1,499 kW
W96: Standby - General Service 1,000 - 5,000 kW
W97: Standby Power General Service 1,500 to 4,999 kW
W98: Standby - Large Use
W99: Standby Power General Service Large Use
W100: Standby Distribution Service

Sheet 2 1 5 TotalConsumptionData_Dist (hidden)
A1: 2.1.5 TotalConsumptionData_Dist_Ret_Total_Combined_2021_v2
A4: Filing_Year | B4: Company_Name | C4: Rate_Class | D4: Rate_Class_Detail | E4: Company_DetailClass | F4: Ret_Metered_consumption_in_kWhs | G4: Ret_Metered_consumption_in_kWs | H4: Dist_RPPMeterCustkWh | I4: Dist_RPPMeterCustkW | J4: Dist_NonRPPMeterCustkWh | K4: Dist_NonRPPMeterCustkW | L4: IESOMeterCustkWh | M4: IESOMeterCustKW | N4: Class_A_Consumption_kWhs | O4: Class_A_Consumption_kWs | P4: TotConsmptionforDistCustkWh | Q4: TotConsmptionforDistCustkW | R4: Calculated_TOTAL_KWH | S4: Calculated_TOTAL_KW
A5: 2022 | B5: ALECTRA UTILITIES CORPORATION | C5: EMBEDDED DISTRIBUTOR(S) | D5: HYDRO ONE BRAMPTON_EMBEDDED DISTRIBUTOR | E5: ALECTRA UTILITIES CORPORATION_BRAMPTON RATE ZONE_EMBEDDED DISTRIBUTOR SERVICE CLASSIFICATION | F5: 0 | G5: 0 | H5: 0 | I5: 0 | J5: 20220547 | K5: 0 | L5: 0 | M5: 0 | N5: 0 | O5: 0 | P5: 20220547 | Q5: 0 | R5: 20220547 | S5: 0
A6: 2022 | B6: ALECTRA UTILITIES CORPORATION | C6: GENERAL SERVICE EQUAL TO OR GREATER THAN 50 KW | D6: ENERSOURCE_GENERAL SERVICE 50 TO 499 KW | E6: ALECTRA UTILITIES CORPORATION_ENERSOURCE RATE ZONE_GENERAL SERVICE 50 TO 499 KW SERVICE CLASSIFICATION | F6: 289262258 | G6: 820680 | H6: 300851980 | I6: 849854 | J6: 1212785712 | K6: 3436456 | L6: 0 | M6: 0 | N6: 0 | O6: 0 | P6: 1513637692 | Q6: 4286310 | R6: 1802899950 | S6: 5106990
A7: 2022 | B7: ALECTRA UTILITIES CORPORATION | C7: GENERAL SERVICE EQUAL TO OR GREATER THAN 50 KW | D7: ENERSOURCE_GENERAL SERVICE 500 TO 4,999 KW | E7: ALECTRA UTILITIES CORPORATION_ENERSOURCE RATE ZONE_GENERAL SERVICE 500 TO 4,999 KW SERVICE CLASSIFICATION | F7: 402276806 | G7: 902506 | H7: 148393826 | I7: 343858 | J7: 1343905319 | K7: 3031483 | L7: 13424240 | M7: 26761 | N7: 0 | O7: 0 | P7: 1505723385 | Q7: 3402102 | R7: 1908000191 | S7: 4304608
A8: 2022 | B8: ALECTRA UTILITIES CORPORATION | C8: GENERAL SERVICE EQUAL TO OR GREATER THAN 50 KW | D8: GENERAL SERVICE 1,000 TO 4,999 KW - GUELPH HYDRO | E8: ALECTRA UTILITIES CORPORATION_GUELPH RATE ZONE_GENERAL SERVICE 1,000 TO 4,999 KW SERVICE CLASSIFICATION | F8: 21379279 | G8: 38630 | H8: 0 | I8: 0 | J8: 448528602 | K8: 1011014 | L8: 0 | M8: 0 | N8: 0 | O8: 0 | P8: 448528602 | Q8: 1011014 | R8: 469907881 | S8: 1049644
A9: 2022 | B9: ALECTRA UTILITIES CORPORATION | C9: GENERAL SERVICE EQUAL TO OR GREATER THAN 50 KW | D9: GENERAL SERVICE 50 TO 999 KW - GUELPH HYDRO | E9: ALECTRA UTILITIES CORPORATION_GUELPH RATE ZONE_GENERAL SERVICE 50 TO 999 KW SERVICE CLASSIFICATION | F9: 64235347 | G9: 182634 | H9: 55909003 | I9: 153025 | J9: 241058708 | K9: 641125 | L9: 5800993 | M9: 12313 | N9: 0 | O9: 0 | P9: 302768704 | Q9: 806463 | R9: 367004051 | S9: 989097
A10: 2022 | B10: ALECTRA UTILITIES CORPORATION | C10: GENERAL SERVICE EQUAL TO OR GREATER THAN 50 KW | D10: HORIZON_GENERAL SERVICE 50 TO 4,999 KW | E10: ALECTRA UTILITIES CORPORATION_HORIZON UTILITIES RATE ZONE_GENERAL SERVICE 50 TO 4,999 KW SERVICE CLASSIFICATION | F10: 221515501 | G10: 587619 | H10: 206806160 | I10: 558625 | J10: 1336925859 | K10: 3611307 | L10: 9190320 | M10: 17032 | N10: 0 | O10: 0 | P10: 1552922339 | Q10: 4186964 | R10: 1774437840 | S10: 4774583
A11: 2022 | B11: ALECTRA UTILITIES CORPORATION | C11: GENERAL SERVICE EQUAL TO OR GREATER THAN 50 KW | D11: HYDRO ONE BRAMPTON_ENERGY FROM WASTE | E11: ALECTRA UTILITIES CORPORATION_BRAMPTON RATE ZONE_ENERGY FROM WASTE SERVICE CLASSIFICATION | F11: 0 | G11: 0 | H11: 0 | I11: 0 | J11: 0 | K11: 0 | L11: 0 | M11: 0 | N11: 0 | O11: 0 | P11: 0 | Q11: 0 | R11: 0 | S11: 0
A12: 2022 | B12: ALECTRA UTILITIES CORPORATION | C12: GENERAL SERVICE EQUAL TO OR GREATER THAN 50 KW | D12: HYDRO ONE BRAMPTON_GENERAL SERVICE 50 TO 699 KW | E12: ALECTRA UTILITIES CORPORATION_BRAMPTON RATE ZONE_GENERAL SERVICE 50 TO 699 KW SERVICE CLASSIFICATION | F12: 155014415 | G12: 433778 | H12: 136720774 | I12: 396646 | J12: 798049983 | K12: 2315256 | L12: 6734048 | M12: 26103 | N12: 0 | O12: 0 | P12: 941504805 | Q12: 2738005 | R12: 1096519220 | S12: 3171783
A13: 2022 | B13: ALECTRA UTILITIES CORPORATION | C13: GENERAL SERVICE EQUAL TO OR GREATER THAN 50 KW | D13: HYDRO ONE BRAMPTON_GENERAL SERVICE 700 TO 4,999 KW | E13: ALECTRA UTILITIES CORPORATION_BRAMPTON RATE ZONE_GENERAL SERVICE 700 TO 4,999 KW SERVICE CLASSIFICATION | F13: 157363818 | G13: 398185 | H13: 2335412 | I13: 5549 | J13: 615629402 | K13: 1462743 | L13: 70175016 | M13: 116743 | N13: 0 | O13: 0 | P13: 688139827 | Q13: 1585035 | R13: 845503645 | S13: 1983220
A14: 2022 | B14: ALECTRA UTILITIES CORPORATION | C14: GENERAL SERVICE EQUAL TO OR GREATER THAN 50 KW | D14: POWERSTREAM_GENERAL SERVICE 50 TO 4,999 KW | E14: ALECTRA UTILITIES CORPORATION_POWERSTREAM RATE ZONE_GENERAL SERVICE 50 TO 4,999 KW SERVICE CLASSIFICATION | F14: 487133657 | G14: 1400533 | H14: 386586546 | I14: 1006097 | J14: 3620872363 | K14: 9423370 | L14: 26811784 | M14: 63965 | N14: 0 | O14: 0 | P14: 4034270693 | Q14: 10493432 | R14: 4521404350 | S14: 11893965
A15: 2022 | B15: ALECTRA UTILITIES CORPORATION | C15: GENERAL SERVICE LESS THAN 50 KW | D15: ENERSOURCE_GENERAL SERVICE LESS THAN 50 KW | E15: ALECTRA UTILITIES CORPORATION_ENERSOURCE RATE ZONE_GENERAL SERVICE LESS THAN 50 KW SERVICE CLASSIFICATION | F15: 85822500 | G15: 0 | H15: 564200341 | I15: 0 | J15: 0 | K15: 0 | L15: 0 | M15: 0 | N15: 0 | O15: 0 | P15: 564200341 | Q15: 0 | R15: 650022841 | S15: 0
A16: 2022 | B16: ALECTRA UTILITIES CORPORATION | C16: GENERAL SERVICE LESS THAN 50 KW | D16: GENERAL SERVICE LESS THAN 50 KW - GUELPH HYDRO | E16: ALECTRA UTILITIES CORPORATION_GUELPH RATE ZONE_GENERAL SERVICE LESS THAN 50 KW SERVICE CLASSIFICATION | F16: 23324481 | G16: 0 | H16: 107703536 | I16: 0 | J16: 0 | K16: 0 | L16: 0 | M16: 0 | N16: 0 | O16: 0 | P16: 107703536 | Q16: 0 | R16: 131028017 | S16: 0
A17: 2022 | B17: ALECTRA UTILITIES CORPORATION | C17: 0 | D17: 0 | E17: 0 | F17: 0 | G17: 0 | H17: 0 | I17: =C17-G17 -> 0 | J17: 0 | K17: 0 | L17: 0 | M17: 0 | N17: 0 | O17: 0 | P17: 459502025 | Q17: 0 | R17: 539961163 | S17: 0 | U17: =E17-G17-L17 -> 0 | V17: 0 | W17: =U17/T24 -> 
A18: 2022 | B18: ALECTRA UTILITIES CORPORATION | C18: 0 | D18: 0 | E18: 0 | F18: 0 | G18: 0 | H18: 0 | I18: 0 | J18: 0 | K18: 0 | L18: 0 | M18: 0 | N18: 0 | O18: 0 | P18: 287811 | Q18: 0 | R18: 287811 | S18: 0 | U18: 0 | V18: 0 | W18: =U18/T24 -> 
A19: 2022 | B19: ALECTRA UTILITIES CORPORATION | C19: 0 | D19: 0 | E19: 0 | F19: 0 | G19: 0 | H19: 0 | I19: 0 | J19: 0 | K19: 0 | L19: 0 | M19: 0 | N19: 0 | O19: 0 | P19: 265628312 | Q19: 0 | R19: 320581842 | S19: 0 | U19: 0 | V19: 0 | W19: =U19/T24 -> 
A20: 2022 | B20: ALECTRA UTILITIES CORPORATION | C20: 0 | D20: 0 | E20: 0 | F20: 0 | G20: 0 | H20: 0 | I20: 0 | J20: 0 | K20: 0 | L20: 0 | M20: 0 | N20: 0 | O20: 0 | P20: 817448211 | Q20: 0 | R20: 941632610 | S20: 0 | U20: 0 | V20: 0 | W20: =U20/T24 -> 
A21: 2022 | B21: ALECTRA UTILITIES CORPORATION | C21: 0 | D21: 0 | E21: 0 | F21: 0 | G21: 0 | H21: 0 | I21: 0 | J21: 0 | K21: 1406281 | L21: 0 | M21: 0 | N21: 0 | O21: 0 | P21: 821319790 | Q21: 1406281 | R21: 960912688 | S21: 1654975 | U21: 0 | V21: 0 | W21: =U21/T24 -> 
A22: 2022 | B22: ALECTRA UTILITIES CORPORATION | C22: 0 | D22: 0 | E22: 0 | F22: 0 | G22: 0 | H22: 0 | I22: 0 | J22: 0 | K22: 239971 | L22: 0 | M22: 0 | N22: 0 | O22: 0 | P22: 128092717 | Q22: 239971 | R22: 158661784 | S22: 312972 | U22: 0 | V22: 0 | W22: =U22/T24 -> 
A23: 2022 | B23: ALECTRA UTILITIES CORPORATION | C23: 0 | D23: 0 | E23: 0 | F23: 0 | G23: 0 | H23: 0 | I23: 0 | J23: 0 | K23: 594003 | L23: 732956288 | M23: 1240850 | N23: 0 | O23: 0 | P23: 978057608 | Q23: 1834853 | R23: 978057608 | S23: 1834853 | U23: -732956288 | V23: -1240850 | W23: =U23/T24 -> 
A24: 2022 | B24: ALECTRA UTILITIES CORPORATION | C24: LARGE USER | D24: HYDRO ONE BRAMPTON_LARGE USE | E24: ALECTRA UTILITIES CORPORATION_BRAMPTON RATE ZONE_LARGE USE SERVICE CLASSIFICATION | F24: 35554251 | G24: 61804 | H24: 0 | I24: 0 | J24: 283036633 | K24: 548516 | L24: 0 | M24: 0 | N24: 0 | O24: 0 | P24: 283036633 | Q24: 548516 | R24: 318590884 | S24: 610320
A25: 2022 | B25: ALECTRA UTILITIES CORPORATION | C25: LARGE USER | D25: LARGE USE - GUELPH HYDRO | E25: ALECTRA UTILITIES CORPORATION_GUELPH RATE ZONE_LARGE USE SERVICE CLASSIFICATION | F25: 0 | G25: 0 | H25: 0 | I25: 0 | J25: 204838574 | K25: 421555 | L25: 0 | M25: 0 | N25: 0 | O25: 0 | P25: 204838574 | Q25: 421555 | R25: 204838574 | S25: 421555
A26: 2022 | B26: ALECTRA UTILITIES CORPORATION | C26: LARGE USER | D26: POWERSTREAM_LARGE USE | E26: ALECTRA UTILITIES CORPORATION_POWERSTREAM RATE ZONE_LARGE USE SERVICE CLASSIFICATION | F26: 0 | G26: 0 | H26: 0 | I26: 0 | J26: 91936942 | K26: 163835 | L26: 0 | M26: 0 | N26: 0 | O26: 0 | P26: 91936942 | Q26: 163835 | R26: 91936942 | S26: 163835
A27: 2022 | B27: ALECTRA UTILITIES CORPORATION | C27: NO RATE CLASS | D27: NO RATE CLASS | E27: ALECTRA UTILITIES CORPORATION_NO RATE CLASS SERVICE CLASSIFICATION | F27: 0 | G27: 0 | H27: 0 | I27: 0 | J27: 0 | K27: 0 | L27: 0 | M27: 0 | N27: 6262667264 | O27: 12967616 | P27: 0 | Q27: 0 | R27: 0 | S27: 0
A28: 2022 | B28: ALECTRA UTILITIES CORPORATION | C28: RESIDENTIAL | D28: ENERSOURCE_RESIDENTIAL | E28: ALECTRA UTILITIES CORPORATION_ENERSOURCE RATE ZONE_RESIDENTIAL SERVICE CLASSIFICATION | F28: 25339025 | G28: 0 | H28: 1534667377 | I28: 0 | J28: 0 | K28: 0 | L28: 0 | M28: 0 | N28: 0 | O28: 0 | P28: 1534667377 | Q28: 0 | R28: 1560006402 | S28: 0
A29: 2022 | B29: ALECTRA UTILITIES CORPORATION | C29: RESIDENTIAL | D29: HORIZON_RESIDENTIAL | E29: ALECTRA UTILITIES CORPORATION_HORIZON UTILITIES RATE ZONE_RESIDENTIAL SERVICE CLASSIFICATION | F29: 31905907 | G29: 0 | H29: 1718995765 | I29: 0 | J29: 0 | K29: 0 | L29: 0 | M29: 0 | N29: 0 | O29: 0 | P29: 1718995765 | Q29: 0 | R29: 1750901672 | S29: 0
A30: 2022 | B30: ALECTRA UTILITIES CORPORATION | C30: RESIDENTIAL | D30: HYDRO ONE BRAMPTON_RESIDENTIAL | E30: ALECTRA UTILITIES CORPORATION_BRAMPTON RATE ZONE_RESIDENTIAL SERVICE CLASSIFICATION | F30: 26777103 | G30: 0 | H30: 1452747837 | I30: 0 | J30: 0 | K30: 0 | L30: 0 | M30: 0 | N30: 0 | O30: 0 | P30: 1452747837 | Q30: 0 | R30: 1479524940 | S30: 0
A31: 2022 | B31: ALECTRA UTILITIES CORPORATION | C31: RESIDENTIAL | D31: POWERSTREAM_RESIDENTIAL | E31: ALECTRA UTILITIES CORPORATION_POWERSTREAM RATE ZONE_RESIDENTIAL SERVICE CLASSIFICATION | F31: 38754318 | G31: 0 | H31: 2924027528 | I31: 0 | J31: 0 | K31: 0 | L31: 0 | M31: 0 | N31: 0 | O31: 0 | P31: 2924027528 | Q31: 0 | R31: 2962781846 | S31: 0
A32: 2022 | B32: ALECTRA UTILITIES CORPORATION | C32: RESIDENTIAL | D32: RESIDENTIAL - GUELPH HYDRO | E32: ALECTRA UTILITIES CORPORATION_GUELPH RATE ZONE_RESIDENTIAL SERVICE CLASSIFICATION | F32: 6043056 | G32: 0 | H32: 388373403 | I32: 0 | J32: 0 | K32: 0 | L32: 0 | M32: 0 | N32: 0 | O32: 0 | P32: 388373403 | Q32: 0 | R32: 394416459 | S32: 0
A33: 2022 | B33: ALECTRA UTILITIES CORPORATION | C33: SENTINEL LIGHTING CONNECTIONS | D33: HORIZON_SENTINEL LIGHTING | E33: ALECTRA UTILITIES CORPORATION_HORIZON UTILITIES RATE ZONE_SENTINEL LIGHTING SERVICE CLASSIFICATION | F33: 5222 | G33: 14 | H33: 352340 | I33: 951 | J33: 18984 | K33: 51 | L33: 0 | M33: 0 | N33: 0 | O33: 0 | P33: 371324 | Q33: 1002 | R33: 376546 | S33: 1016
A34: 2022 | B34: ALECTRA UTILITIES CORPORATION | C34: SENTINEL LIGHTING CONNECTIONS | D34: POWERSTREAM_SENTINEL LIGHTING | E34: ALECTRA UTILITIES CORPORATION_POWERSTREAM RATE ZONE_SENTINEL LIGHTING SERVICE CLASSIFICATION | F34: 4032 | G34: 11 | H34: 245931 | I34: 675 | J34: 12093 | K34: 33 | L34: 0 | M34: 0 | N34: 0 | O34: 0 | P34: 258024 | Q34: 708 | R34: 262056 | S34: 719
A35: 2022 | B35: ALECTRA UTILITIES CORPORATION | C35: SENTINEL LIGHTING CONNECTIONS | D35: SENTINEL LIGHTING - GUELPH HYDRO | E35: ALECTRA UTILITIES CORPORATION_GUELPH RATE ZONE_SENTINEL LIGHTING SERVICE CLASSIFICATION | F35: 0 | G35: 0 | H35: 8890 | I35: 25 | J35: 0 | K35: 0 | L35: 0 | M35: 0 | N35: 0 | O35: 0 | P35: 8890 | Q35: 25 | R35: 8890 | S35: 25
A36: 2022 | B36: ALECTRA UTILITIES CORPORATION | C36: STREET LIGHTING CONNECTIONS | D36: ENERSOURCE_STREET LIGHTING | E36: ALECTRA UTILITIES CORPORATION_ENERSOURCE RATE ZONE_STREET LIGHTING SERVICE CLASSIFICATION | F36: 0 | G36: 0 | H36: 0 | I36: 0 | J36: 14888780 | K36: 41559 | L36: 0 | M36: 0 | N36: 0 | O36: 0 | P36: 14888780 | Q36: 41559 | R36: 14888780 | S36: 41559
A37: 2022 | B37: ALECTRA UTILITIES CORPORATION | C37: STREET LIGHTING CONNECTIONS | D37: HORIZON_STREET LIGHTING | E37: ALECTRA UTILITIES CORPORATION_HORIZON UTILITIES RATE ZONE_STREET LIGHTING SERVICE CLASSIFICATION | F37: 0 | G37: 0 | H37: 225613 | I37: 641 | J37: 16609797 | K37: 47173 | L37: 0 | M37: 0 | N37: 0 | O37: 0 | P37: 16835410 | Q37: 47814 | R37: 16835410 | S37: 47814
A38: 2022 | B38: ALECTRA UTILITIES CORPORATION | C38: STREET LIGHTING CONNECTIONS | D38: HYDRO ONE BRAMPTON_STREET LIGHTING | E38: ALECTRA UTILITIES CORPORATION_BRAMPTON RATE ZONE_STREET LIGHTING SERVICE CLASSIFICATION | F38: 0 | G38: 0 | H38: 0 | I38: 0 | J38: 22576207 | K38: 63704 | L38: 0 | M38: 0 | N38: 0 | O38: 0 | P38: 22576207 | Q38: 63704 | R38: 22576207 | S38: 63704
A39: 2022 | B39: ALECTRA UTILITIES CORPORATION | C39: STREET LIGHTING CONNECTIONS | D39: POWERSTREAM_STREET LIGHTING | E39: ALECTRA UTILITIES CORPORATION_POWERSTREAM RATE ZONE_STREET LIGHTING SERVICE CLASSIFICATION | F39: 294287 | G39: 828 | H39: 597908 | I39: 1683 | J39: 46749974 | K39: 131579 | L39: 0 | M39: 0 | N39: 0 | O39: 0 | P39: 47347882 | Q39: 133262 | R39: 47642169 | S39: 134090
A40: 2022 | B40: ALECTRA UTILITIES CORPORATION | C40: STREET LIGHTING CONNECTIONS | D40: STREET LIGHTING - GUELPH HYDRO | E40: ALECTRA UTILITIES CORPORATION_GUELPH RATE ZONE_STREET LIGHTING SERVICE CLASSIFICATION | F40: 135835 | G40: 390 | H40: 0 | I40: 0 | J40: 3355117 | K40: 9758 | L40: 0 | M40: 0 | N40: 0 | O40: 0 | P40: 3355117 | Q40: 9758 | R40: 3490952 | S40: 10148
A41: 2022 | B41: ALECTRA UTILITIES CORPORATION | C41: UNMETERED SCATTERED LOAD CONNECTIONS | D41: ENERSOURCE_UNMETERED SCATTERED LOAD | E41: ALECTRA UTILITIES CORPORATION_ENERSOURCE RATE ZONE_UNMETERED SCATTERED LOAD SERVICE CLASSIFICATION | F41: 463471 | G41: 0 | H41: 11339301 | I41: 0 | J41: 0 | K41: 0 | L41: 0 | M41: 0 | N41: 0 | O41: 0 | P41: 11339301 | Q41: 0 | R41: 11802772 | S41: 0
A42: 2022 | B42: ALECTRA UTILITIES CORPORATION | C42: UNMETERED SCATTERED LOAD CONNECTIONS | D42: HORIZON_UNMETERED SCATTERED LOAD | E42: ALECTRA UTILITIES CORPORATION_HORIZON UTILITIES RATE ZONE_UNMETERED SCATTERED LOAD SERVICE CLASSIFICATION | F42: 1373933 | G42: 0 | H42: 9439275 | I42: 0 | J42: 0 | K42: 0 | L42: 0 | M42: 0 | N42: 0 | O42: 0 | P42: 9439275 | Q42: 0 | R42: 10813208 | S42: 0
A43: 2022 | B43: ALECTRA UTILITIES CORPORATION | C43: UNMETERED SCATTERED LOAD CONNECTIONS | D43: HYDRO ONE BRAMPTON_UNMETERED SCATTERED LOAD | E43: ALECTRA UTILITIES CORPORATION_BRAMPTON RATE ZONE_UNMETERED SCATTERED LOAD SERVICE CLASSIFICATION | F43: 454905 | G43: 0 | H43: 5517651 | I43: 0 | J43: 0 | K43: 0 | L43: 0 | M43: 0 | N43: 0 | O43: 0 | P43: 5517651 | Q43: 0 | R43: 5972556 | S43: 0
A44: 2022 | B44: ALECTRA UTILITIES CORPORATION | C44: UNMETERED SCATTERED LOAD CONNECTIONS | D44: POWERSTREAM_UNMETERED SCATTERED LOAD | E44: ALECTRA UTILITIES CORPORATION_POWERSTREAM RATE ZONE_UNMETERED SCATTERED LOAD SERVICE CLASSIFICATION | F44: 105394 | G44: 0 | H44: 13862943 | I44: 0 | J44: 0 | K44: 0 | L44: 0 | M44: 0 | N44: 0 | O44: 0 | P44: 13862943 | Q44: 0 | R44: 13968337 | S44: 0
A45: 2022 | B45: ALECTRA UTILITIES CORPORATION | C45: UNMETERED SCATTERED LOAD CONNECTIONS | D45: UNMETERED SCATTERED LOAD - GUELPH HYDRO | E45: ALECTRA UTILITIES CORPORATION_GUELPH RATE ZONE_UNMETERED SCATTERED LOAD SERVICE CLASSIFICATION | F45: 401775 | G45: 0 | H45: 1693140 | I45: 0 | J45: 0 | K45: 0 | L45: 0 | M45: 0 | N45: 0 | O45: 0 | P45: 1693140 | Q45: 0 | R45: 2094915 | S45: 0
A46: 2022 | B46: ALGOMA POWER INC. | C46: GENERAL SERVICE EQUAL TO OR GREATER THAN 50 KW | D46: RESIDENTIAL - R2 | E46: ALGOMA POWER INC._RESIDENTIAL – R2 SERVICE CLASSIFICATION | F46: 716118.4 | G46: 1968 | H46: 4893838.73 | I46: 15987.67 | J46: 111935000.3 | K46: 233776.06 | L46: 0 | M46: 0 | N46: 0 | O46: 0 | P46: 116828839 | Q46: 249763.73 | R46: 117544957.4 | S46: 251732.03
A47: 2022 | B47: ALGOMA POWER INC. | C47: NO RATE CLASS | D47: NO RATE CLASS | E47: ALGOMA POWER INC._NO RATE CLASS SERVICE CLASSIFICATION | F47: 0 | G47: 0 | H47: 0 | I47: 0 | J47: 0 | K47: 0 | L47: 0 | M47: 0 | N47: 93431048 | O47: 175025.4062 | P47: 0 | Q47: 0 | R47: 0 | S47: 0
A48: 2022 | B48: ALGOMA POWER INC. | C48: RESIDENTIAL | D48: RESIDENTIAL - R1 | E48: ALGOMA POWER INC._RESIDENTIAL – R1 SERVICE CLASSIFICATION | F48: 4130734.71 | G48: 0 | H48: 115620328 | I48: 0 | J48: 0 | K48: 0 | L48: 0 | M48: 0 | N48: 0 | O48: 0 | P48: 115620328 | Q48: 0 | R48: 119751062.7 | S48: 0
A49: 2022 | B49: ALGOMA POWER INC. | C49: RESIDENTIAL | D49: RESIDENTIAL - SEASONAL | E49: ALGOMA POWER INC._RESIDENTIAL - SEASONAL SERVICE CLASSIFICATION | F49: 14220.43 | G49: 0 | H49: 6409947.1 | I49: 0 | J49: 0 | K49: 0 | L49: 0 | M49: 0 | N49: 0 | O49: 0 | P49: 6409947.1 | Q49: 0 | R49: 6424167.53 | S49: 0
A50: 2022 | B50: ALGOMA POWER INC. | C50: STREET LIGHTING CONNECTIONS | D50: STREET LIGHTING | E50: ALGOMA POWER INC._STREET LIGHTING SERVICE CLASSIFICATION | F50: 126430.2 | G50: 0 | H50: 0 | I50: 0 | J50: 467725.9 | K50: 1593.23 | L50: 0 | M50: 0 | N50: 0 | O50: 0 | P50: 467725.9 | Q50: 1593.23 | R50: 594156.1 | S50: 1593.23
A51: 2022 | B51: ATIKOKAN HYDRO INC. | C51: GENERAL SERVICE EQUAL TO OR GREATER THAN 50 KW | D51: GENERAL SERVICE 50 TO 4,999 KW | E51: ATIKOKAN HYDRO INC._GENERAL SERVICE 50 TO 4,999 KW SERVICE CLASSIFICATION | F51: 1014348.8 | G51: 2244 | H51: 0 | I51: 0 | J51: 16466891.75 | K51: 47182.1 | L51: 0 | M51: 0 | N51: 0 | O51: 0 | P51: 16466891.75 | Q51: 47182.1 | R51: 17481240.55 | S51: 49426.26
A52: 2022 | B52: ATIKOKAN HYDRO INC. | C52: GENERAL SERVICE LESS THAN 50 KW | D52: GENERAL SERVICE LESS THAN 50 KW | E52: ATIKOKAN HYDRO INC._GENERAL SERVICE LESS THAN 50 KW SERVICE CLASSIFICATION | F52: 49450.06 | G52: 0 | H52: 4312268.6 | I52: 0 | J52: 0 | K52: 0 | L52: 0 | M52: 0 | N52: 0 | O52: 0 | P52: 4312268.6 | Q52: 0 | R52: 4361718.66 | S52: 0
A53: 2022 | B53: ATIKOKAN HYDRO INC. | C53: NO RATE CLASS | D53: NO RATE CLASS | E53: ATIKOKAN HYDRO INC._NO RATE CLASS SERVICE CLASSIFICATION | F53: 0 | G53: 0 | H53: 0 | I53: 0 | J53: 0 | K53: 0 | L53: 0 | M53: 0 | N53: 11678536 | O53: 33100.94141 | P53: 0 | Q53: 0 | R53: 0 | S53: 0
A54: 2022 | B54: ATIKOKAN HYDRO INC. | C54: RESIDENTIAL | D54: RESIDENTIAL | E54: ATIKOKAN HYDRO INC._RESIDENTIAL SERVICE CLASSIFICATION | F54: 14714 | G54: 0 | H54: 9425508.78 | I54: 0 | J54: 0 | K54: 0 | L54: 0 | M54: 0 | N54: 0 | O54: 0 | P54: 9425508.78 | Q54: 0 | R54: 9440222.78 | S54: 0
A55: 2022 | B55: ATIKOKAN HYDRO INC. | C55: STREET LIGHTING CONNECTIONS | D55: STREET LIGHTING | E55: ATIKOKAN HYDRO INC._STREET LIGHTING SERVICE CLASSIFICATION | F55: 0 | G55: 0 | H55: 0 | I55: 0 | J55: 404182.8 | K55: 1253.28 | L55: 0 | M55: 0 | N55: 0 | O55: 0 | P55: 404182.8 | Q55: 1253.28 | R55: 404182.8 | S55: 1253.28
A56: 2022 | B56: BLUEWATER POWER DISTRIBUTION CORPORATION | C56: GENERAL SERVICE EQUAL TO OR GREATER THAN 50 KW | D56: GENERAL SERVICE 1,000 TO 4,999 KW | E56: BLUEWATER POWER DISTRIBUTION CORPORATION_GENERAL SERVICE 1,000 TO 4,999 KW SERVICE CLASSIFICATION | F56: 0 | G56: 0 | H56: 0 | I56: 0 | J56: 126088597 | K56: 245050 | L56: 0 | M56: 0 | N56: 0 | O56: 0 | P56: 126088597 | Q56: 245050 | R56: 126088597 | S56: 245050
A57: 2022 | B57: BLUEWATER POWER DISTRIBUTION CORPORATION | C57: GENERAL SERVICE EQUAL TO OR GREATER THAN 50 KW | D57: GENERAL SERVICE 50 TO 999 KW | E57: BLUEWATER POWER DISTRIBUTION CORPORATION_GENERAL SERVICE 50 TO 999 KW SERVICE CLASSIFICATION | F57: 30564259 | G57: 99483 | H57: 36807919 | I57: 110478 | J57: 113751690 | K57: 306368 | L57: 4128117 | M57: 7856 | N57: 0 | O57: 0 | P57: 154687726 | Q57: 424702 | R57: 185251985 | S57: 524185
A58: 2022 | B58: BLUEWATER POWER DISTRIBUTION CORPORATION | C58: GENERAL SERVICE LESS THAN 50 KW | D58: GENERAL SERVICE LESS THAN 50 KW | E58: BLUEWATER POWER DISTRIBUTION CORPORATION_GENERAL SERVICE LESS THAN 50 KW SERVICE CLASSIFICATION | F58: 16754697 | G58: 0 | H58: 82092657 | I58: 0 | J58: 96173 | K58: 0 | L58: 0 | M58: 0 | N58: 0 | O58: 0 | P58: 82188830 | Q58: 0 | R58: 98943527 | S58: 0
A59: 2022 | B59: BLUEWATER POWER DISTRIBUTION CORPORATION | C59: LARGE USER | D59: LARGE USE | E59: BLUEWATER POWER DISTRIBUTION CORPORATION_LARGE USE SERVICE CLASSIFICATION | F59: 0 | G59: 0 | H59: 0 | I59: 0 | J59: 165077012 | K59: 285688 | L59: 101144928 | M59: 185627 | N59: 0 | O59: 0 | P59: 266221943 | Q59: 471315 | R59: 266221943 | S59: 471315
A60: 2022 | B60: BLUEWATER POWER DISTRIBUTION CORPORATION | C60: NO RATE CLASS | D60: NO RATE CLASS | E60: BLUEWATER POWER DISTRIBUTION CORPORATION_NO RATE CLASS SERVICE CLASSIFICATION | F60: 0 | G60: 0 | H60: 0 | I60: 0 | J60: 0 | K60: 0 | L60: 0 | M60: 0 | N60: 294521888 | O60: 537420 | P60: 0 | Q60: 0 | R60: 0 | S60: 0
A61: 2022 | B61: BLUEWATER POWER DISTRIBUTION CORPORATION | C61: RESIDENTIAL | D61: RESIDENTIAL | E61: BLUEWATER POWER DISTRIBUTION CORPORATION_RESIDENTIAL SERVICE CLASSIFICATION | F61: 5467033 | G61: 0 | H61: 270008805 | I61: 0 | J61: 0 | K61: 0 | L61: 0 | M61: 0 | N61: 0 | O61: 0 | P61: 270008805 | Q61: 0 | R61: 275475838 | S61: 0
A62: 2022 | B62: BLUEWATER POWER DISTRIBUTION CORPORATION | C62: SENTINEL LIGHTING CONNECTIONS | D62: SENTINEL LIGHTING | E62: BLUEWATER POWER DISTRIBUTION CORPORATION_SENTINEL LIGHTING SERVICE CLASSIFICATION | F62: 27570 | G62: 74 | H62: 405598 | I62: 1113 | J62: 0 | K62: 0 | L62: 0 | M62: 0 | N62: 0 | O62: 0 | P62: 405598 | Q62: 1113 | R62: 433168 | S62: 1187
A63: 2022 | B63: BLUEWATER POWER DISTRIBUTION CORPORATION | C63: STREET LIGHTING CONNECTIONS | D63: STREET LIGHTING | E63: BLUEWATER POWER DISTRIBUTION CORPORATION_STREET LIGHTING SERVICE CLASSIFICATION | F63: 0 | G63: 0 | H63: 0 | I63: 0 | J63: 3351425 | K63: 9338 | L63: 0 | M63: 0 | N63: 0 | O63: 0 | P63: 3351425 | Q63: 9338 | R63: 3351425 | S63: 9338
A64: 2022 | B64: BLUEWATER POWER DISTRIBUTION CORPORATION | C64: UNMETERED SCATTERED LOAD CONNECTIONS | D64: UNMETERED SCATTERED LOAD | E64: BLUEWATER POWER DISTRIBUTION CORPORATION_UNMETERED SCATTERED LOAD SERVICE CLASSIFICATION | F64: 330660 | G64: 0 | H64: 1850771 | I64: 0 | J64: 0 | K64: 0 | L64: 0 | M64: 0 | N64: 0 | O64: 0 | P64: 1850771 | Q64: 0 | R64: 2181431 | S64: 0
A65: 2022 | B65: BRANTFORD POWER INC. | C65: EMBEDDED DISTRIBUTOR(S) | D65: EMBEDDED DISTRIBUTOR | E65: BRANTFORD POWER INC._EMBEDDED DISTRIBUTOR SERVICE CLASSIFICATION | F65: 0 | G65: 0 | H65: 0 | I65: 0 | J65: 0 | K65: 0 | L65: 44423696 | M65: 104833.2891 | N65: 0 | O65: 0 | P65: 44423696.73 | Q65: 104833.29 | R65: 44423696.73 | S65: 104833.29
A66: 2022 | B66: BRANTFORD POWER INC. | C66: GENERAL SERVICE EQUAL TO OR GREATER THAN 50 KW | D66: GENERAL SERVICE 50 TO 4,999 KW | E66: BRANTFORD POWER INC._GENERAL SERVICE 50 TO 4,999 KW SERVICE CLASSIFICATION | F66: 71619249.88 | G66: 225949 | H66: 25931258.29 | I66: 77868.13 | J66: 450030508.6 | K66: 1398487.94 | L66: 6016238.5 | M66: 11616.37988 | N66: 0 | O66: 0 | P66: 481978005.5 | Q66: 1487972.45 | R66: 553597255.4 | S66: 1713921.63
A67: 2022 | B67: BRANTFORD POWER INC. | C67: GENERAL SERVICE LESS THAN 50 KW | D67: GENERAL SERVICE LESS THAN 50 KW | E67: BRANTFORD POWER INC._GENERAL SERVICE LESS THAN 50 KW SERVICE CLASSIFICATION | F67: 14196610.25 | G67: 0 | H67: 72651337.94 | I67: 0 | J67: 349135.63 | K67: 0 | L67: 0 | M67: 0 | N67: 0 | O67: 0 | P67: 73000473.57 | Q67: 0 | R67: 87197083.82 | S67: 0
A68: 2022 | B68: BRANTFORD POWER INC. | C68: NO RATE CLASS | D68: NO RATE CLASS | E68: BRANTFORD POWER INC._NO RATE CLASS SERVICE CLASSIFICATION | F68: 0 | G68: 0 | H68: 0 | I68: 0 | J68: 0 | K68: 0 | L68: 0 | M68: 0 | N68: 228008880 | O68: 576700.125 | P68: 0 | Q68: 0 | R68: 0 | S68: 0
A69: 2022 | B69: BRANTFORD POWER INC. | C69: RESIDENTIAL | D69: RESIDENTIAL | E69: BRANTFORD POWER INC._RESIDENTIAL SERVICE CLASSIFICATION | F69: 5852208.34 | G69: 0 | H69: 308573776.5 | I69: 0 | J69: 0 | K69: 0 | L69: 0 | M69: 0 | N69: 0 | O69: 0 | P69: 308573776.5 | Q69: 0 | R69: 314425984.8 | S69: 0
A70: 2022 | B70: BRANTFORD POWER INC. | C70: SENTINEL LIGHTING CONNECTIONS | D70: SENTINEL LIGHTING | E70: BRANTFORD POWER INC._SENTINEL LIGHTING SERVICE CLASSIFICATION | F70: 5728.59 | G70: 14 | H70: 181554.41 | I70: 568.15 | J70: 0 | K70: 14.4 | L70: 0 | M70: 0 | N70: 0 | O70: 0 | P70: 181554.41 | Q70: 582.55 | R70: 187283 | S70: 596.95
A71: 2022 | B71: BRANTFORD POWER INC. | C71: STREET LIGHTING CONNECTIONS | D71: STREET LIGHTING | E71: BRANTFORD POWER INC._STREET LIGHTING SERVICE CLASSIFICATION | F71: 0 | G71: 0 | H71: 0 | I71: 0 | J71: 5545435.55 | K71: 16658.03 | L71: 0 | M71: 0 | N71: 0 | O71: 0 | P71: 5545435.55 | Q71: 16658.03 | R71: 5545435.55 | S71: 16658.03
A72: 2022 | B72: BRANTFORD POWER INC. | C72: UNMETERED SCATTERED LOAD CONNECTIONS | D72: UNMETERED SCATTERED LOAD | E72: BRANTFORD POWER INC._UNMETERED SCATTERED LOAD SERVICE CLASSIFICATION | F72: 0 | G72: 0 | H72: 1544932.07 | I72: 0 | J72: 0 | K72: 0 | L72: 0 | M72: 0 | N72: 0 | O72: 0 | P72: 1544932.07 | Q72: 0 | R72: 1544932.07 | S72: 0
A73: 2022 | B73: BURLINGTON HYDRO INC. | C73: GENERAL SERVICE EQUAL TO OR GREATER THAN 50 KW | D73: GENERAL SERVICE 50 TO 4,999 KW | E73: BURLINGTON HYDRO INC._GENERAL SERVICE 50 TO 4,999 KW SERVICE CLASSIFICATION | F73: 115798358 | G73: 315320 | H73: 120474627 | I73: 336001 | J73: 561095563 | K73: 1508991 | L73: 0 | M73: 0 | N73: 0 | O73: 0 | P73: 681570190 | Q73: 1844992 | R73: 797368548 | S73: 2160312
A74: 2022 | B74: BURLINGTON HYDRO INC. | C74: GENERAL SERVICE LESS THAN 50 KW | D74: GENERAL SERVICE LESS THAN 50 KW | E74: BURLINGTON HYDRO INC._GENERAL SERVICE LESS THAN 50 KW SERVICE CLASSIFICATION | F74: 21967898 | G74: 0 | H74: 134789058 | I74: 0 | J74: 160909 | K74: 0 | L74: 0 | M74: 0 | N74: 0 | O74: 0 | P74: 134949967 | Q74: 0 | R74: 156917865 | S74: 0
A75: 2022 | B75: BURLINGTON HYDRO INC. | C75: NO RATE CLASS | D75: NO RATE CLASS | E75: BURLINGTON HYDRO INC._NO RATE CLASS SERVICE CLASSIFICATION | F75: 0 | G75: 0 | H75: 0 | I75: 0 | J75: 0 | K75: 0 | L75: 0 | M75: 0 | N75: 210380848 | O75: 498047 | P75: 0 | Q75: 0 | R75: 0 | S75: 0
A76: 2022 | B76: BURLINGTON HYDRO INC. | C76: RESIDENTIAL | D76: RESIDENTIAL | E76: BURLINGTON HYDRO INC._RESIDENTIAL SERVICE CLASSIFICATION | F76: 5115698 | G76: 0 | H76: 545762387 | I76: 0 | J76: 0 | K76: 0 | L76: 0 | M76: 0 | N76: 0 | O76: 0 | P76: 545762387 | Q76: 0 | R76: 550878085 | S76: 0
A77: 2022 | B77: BURLINGTON HYDRO INC. | C77: STREET LIGHTING CONNECTIONS | D77: STREET LIGHTING | E77: BURLINGTON HYDRO INC._STREET LIGHTING SERVICE CLASSIFICATION | F77: 0 | G77: 0 | H77: 46998 | I77: 131 | J77: 5496829 | K77: 15325 | L77: 0 | M77: 0 | N77: 0 | O77: 0 | P77: 5543827 | Q77: 15456 | R77: 5543827 | S77: 15456
A78: 2022 | B78: BURLINGTON HYDRO INC. | C78: UNMETERED SCATTERED LOAD CONNECTIONS | D78: UNMETERED SCATTERED LOAD | E78: BURLINGTON HYDRO INC._UNMETERED SCATTERED LOAD SERVICE CLASSIFICATION | F78: 0 | G78: 0 | H78: 3135180 | I78: 0 | J78: 0 | K78: 0 | L78: 0 | M78: 0 | N78: 0 | O78: 0 | P78: 3135180 | Q78: 0 | R78: 3135180 | S78: 0
A79: 2022 | B79: CANADIAN NIAGARA POWER INC. | C79: EMBEDDED DISTRIBUTOR(S) | D79: EMBEDDED DISTRIBUTOR | E79: CANADIAN NIAGARA POWER INC._EMBEDDED DISTRIBUTOR SERVICE CLASSIFICATION | F79: 0 | G79: 0 | H79: 0 | I79: 0 | J79: 5543931.42 | K79: 14862.9 | L79: 0 | M79: 0 | N79: 0 | O79: 0 | P79: 5543931.42 | Q79: 14862.9 | R79: 5543931.42 | S79: 14862.9
A80: 2022 | B80: CANADIAN NIAGARA POWER INC. | C80: GENERAL SERVICE EQUAL TO OR GREATER THAN 50 KW | D80: GENERAL SERVICE 50 TO 4,999 KW | E80: CANADIAN NIAGARA POWER INC._GENERAL SERVICE 50 TO 4,999 KW SERVICE CLASSIFICATION | F80: 9423241.78 | G80: 43242 | H80: 16451074.45 | I80: 48526.72 | J80: 147937983.3 | K80: 468762.66 | L80: 0 | M80: 0 | N80: 0 | O80: 0 | P80: 164389057.8 | Q80: 517289.38 | R80: 173812299.6 | S80: 560531.96
A81: 2022 | B81: CANADIAN NIAGARA POWER INC. | C81: GENERAL SERVICE LESS THAN 50 KW | D81: GENERAL SERVICE LESS THAN 50 KW | E81: CANADIAN NIAGARA POWER INC._GENERAL SERVICE LESS THAN 50 KW SERVICE CLASSIFICATION | F81: 9492281.43 | G81: 0 | H81: 53600838.52 | I81: 0 | J81: 0 | K81: 0 | L81: 0 | M81: 0 | N81: 0 | O81: 0 | P81: 53600838.52 | Q81: 0 | R81: 63093119.95 | S81: 0
A82: 2022 | B82: CANADIAN NIAGARA POWER INC. | C82: NO RATE CLASS | D82: NO RATE CLASS | E82: CANADIAN NIAGARA POWER INC._NO RATE CLASS SERVICE CLASSIFICATION | F82: 0 | G82: 0 | H82: 0 | I82: 0 | J82: 0 | K82: 0 | L82: 0 | M82: 0 | N82: 73900656 | O82: 240048.375 | P82: 0 | Q82: 0 | R82: 0 | S82: 0
A83: 2022 | B83: CANADIAN NIAGARA POWER INC. | C83: RESIDENTIAL | D83: RESIDENTIAL | E83: CANADIAN NIAGARA POWER INC._RESIDENTIAL SERVICE CLASSIFICATION | F83: 3373187.05 | G83: 0 | H83: 219813303 | I83: 0 | J83: 0 | K83: 0 | L83: 0 | M83: 0 | N83: 0 | O83: 0 | P83: 219813303 | Q83: 0 | R83: 223186490.1 | S83: 0
A84: 2022 | B84: CANADIAN NIAGARA POWER INC. | C84: SENTINEL LIGHTING CONNECTIONS | D84: SENTINEL LIGHTING | E84: CANADIAN NIAGARA POWER INC._SENTINEL LIGHTING SERVICE CLASSIFICATION | F84: 394.36 | G84: 1 | H84: 509341.34 | I84: 1674.56 | J84: 0 | K84: 0 | L84: 0 | M84: 0 | N84: 0 | O84: 0 | P84: 509341.34 | Q84: 1674.56 | R84: 509735.7 | S84: 1675.86
A85: 2022 | B85: CANADIAN NIAGARA POWER INC. | C85: STREET LIGHTING CONNECTIONS | D85: STREET LIGHTING | E85: CANADIAN NIAGARA POWER INC._STREET LIGHTING SERVICE CLASSIFICATION | F85: 0 | G85: 0 | H85: 78598.02 | I85: 259.22 | J85: 1345215.52 | K85: 4093.2 | L85: 0 | M85: 0 | N85: 0 | O85: 0 | P85: 1423813.54 | Q85: 4352.42 | R85: 1423813.54 | S85: 4352.42
A86: 2022 | B86: CANADIAN NIAGARA POWER INC. | C86: UNMETERED SCATTERED LOAD CONNECTIONS | D86: UNMETERED SCATTERED LOAD | E86: CANADIAN NIAGARA POWER INC._UNMETERED SCATTERED LOAD SERVICE CLASSIFICATION | F86: 883032 | G86: 0 | H86: 405630.62 | I86: 0 | J86: 0 | K86: 0 | L86: 0 | M86: 0 | N86: 0 | O86: 0 | P86: 405630.62 | Q86: 0 | R86: 1288662.62 | S86: 0
A87: 2022 | B87: CENTRE WELLINGTON HYDRO LTD. | C87: GENERAL SERVICE EQUAL TO OR GREATER THAN 50 KW | D87: GENERAL SERVICE 3,000 TO 4,999 KW | E87: CENTRE WELLINGTON HYDRO LTD._GENERAL SERVICE 3,000 TO 4,999 KW SERVICE CLASSIFICATION | F87: 0 | G87: 0 | H87: 0 | I87: 0 | J87: 15601730.4 | K87: 36793.03 | L87: 0 | M87: 0 | N87: 0 | O87: 0 | P87: 15601730.4 | Q87: 36793.03 | R87: 15601730.4 | S87: 36793.03
A88: 2022 | B88: CENTRE WELLINGTON HYDRO LTD. | C88: GENERAL SERVICE EQUAL TO OR GREATER THAN 50 KW | D88: GENERAL SERVICE 50 TO 2,999 KW | E88: CENTRE WELLINGTON HYDRO LTD._GENERAL SERVICE 50 TO 2,999 KW SERVICE CLASSIFICATION | F88: 12402434 | G88: 34034 | H88: 1608765 | I88: 4806.14 | J88: 38994999.29 | K88: 109387.66 | L88: 2711389.5 | M88: 4997.830078 | N88: 0 | O88: 0 | P88: 43315153.9 | Q88: 119191.63 | R88: 55717587.9 | S88: 153225.65
A89: 2022 | B89: CENTRE WELLINGTON HYDRO LTD. | C89: GENERAL SERVICE LESS THAN 50 KW | D89: GENERAL SERVICE LESS THAN 50 KW | E89: CENTRE WELLINGTON HYDRO LTD._GENERAL SERVICE LESS THAN 50 KW SERVICE CLASSIFICATION | F89: 4514581 | G89: 0 | H89: 19320861 | I89: 0 | J89: 0 | K89: 0 | L89: 0 | M89: 0 | N89: 0 | O89: 0 | P89: 19320861 | Q89: 0 | R89: 23835442 | S89: 0
A90: 2022 | B90: CENTRE WELLINGTON HYDRO LTD. | C90: NO RATE CLASS | D90: NO RATE CLASS | E90: CENTRE WELLINGTON HYDRO LTD._NO RATE CLASS SERVICE CLASSIFICATION | F90: 0 | G90: 0 | H90: 0 | I90: 0 | J90: 0 | K90: 0 | L90: 0 | M90: 0 | N90: 21350194 | O90: 51795.48047 | P90: 0 | Q90: 0 | R90: 0 | S90: 0
A91: 2022 | B91: CENTRE WELLINGTON HYDRO LTD. | C91: RESIDENTIAL | D91: RESIDENTIAL | E91: CENTRE WELLINGTON HYDRO LTD._RESIDENTIAL SERVICE CLASSIFICATION | F91: 583850 | G91: 0 | H91: 49353574 | I91: 0 | J91: 0 | K91: 0 | L91: 0 | M91: 0 | N91: 0 | O91: 0 | P91: 49353574 | Q91: 0 | R91: 49937424 | S91: 0
A92: 2022 | B92: CENTRE WELLINGTON HYDRO LTD. | C92: SENTINEL LIGHTING CONNECTIONS | D92: SENTINEL LIGHTING | E92: CENTRE WELLINGTON HYDRO LTD._SENTINEL LIGHTING SERVICE CLASSIFICATION | F92: 12921 | G92: 35 | H92: 22564 | I92: 62.68 | J92: 0 | K92: 0 | L92: 0 | M92: 0 | N92: 0 | O92: 0 | P92: 22564 | Q92: 62.68 | R92: 35485 | S92: 98.57
A93: 2022 | B93: CENTRE WELLINGTON HYDRO LTD. | C93: STREET LIGHTING CONNECTIONS | D93: STREET LIGHTING | E93: CENTRE WELLINGTON HYDRO LTD._STREET LIGHTING SERVICE CLASSIFICATION | F93: 0 | G93: 0 | H93: 0 | I93: 0 | J93: 594930.56 | K93: 1647.32 | L93: 0 | M93: 0 | N93: 0 | O93: 0 | P93: 594930.56 | Q93: 1647.32 | R93: 594930.56 | S93: 1647.32
A94: 2022 | B94: CENTRE WELLINGTON HYDRO LTD. | C94: UNMETERED SCATTERED LOAD CONNECTIONS | D94: UNMETERED SCATTERED LOAD | E94: CENTRE WELLINGTON HYDRO LTD._UNMETERED SCATTERED LOAD SERVICE CLASSIFICATION | F94: 105888 | G94: 0 | H94: 513507 | I94: 0 | J94: 0 | K94: 0 | L94: 0 | M94: 0 | N94: 0 | O94: 0 | P94: 513507 | Q94: 0 | R94: 619395 | S94: 0
A95: 2022 | B95: CHAPLEAU PUBLIC UTILITIES CORPORATION | C95: GENERAL SERVICE EQUAL TO OR GREATER THAN 50 KW | D95: GENERAL SERVICE 50 TO 4,999 KW | E95: CHAPLEAU PUBLIC UTILITIES CORPORATION_GENERAL SERVICE 50 TO 4,999 KW SERVICE CLASSIFICATION | F95: 459640 | G95: 1639 | H95: 0 | I95: 0 | J95: 4230779 | K95: 11803 | L95: 0 | M95: 0 | N95: 0 | O95: 0 | P95: 4230779 | Q95: 11803 | R95: 4690419 | S95: 13442.2
A96: 2022 | B96: CHAPLEAU PUBLIC UTILITIES CORPORATION | C96: GENERAL SERVICE LESS THAN 50 KW | D96: GENERAL SERVICE LESS THAN 50 KW | E96: CHAPLEAU PUBLIC UTILITIES CORPORATION_GENERAL SERVICE LESS THAN 50 KW SERVICE CLASSIFICATION | F96: 534978 | G96: 0 | H96: 3662447 | I96: 0 | J96: 0 | K96: 0 | L96: 0 | M96: 0 | N96: 0 | O96: 0 | P96: 3662447 | Q96: 0 | R96: 4197425 | S96: 0
A97: 2022 | B97: CHAPLEAU PUBLIC UTILITIES CORPORATION | C97: NO RATE CLASS | D97: NO RATE CLASS | E97: CHAPLEAU PUBLIC UTILITIES CORPORATION_NO RATE CLASS SERVICE CLASSIFICATION | F97: 0 | G97: 0 | H97: 0 | I97: 0 | J97: 0 | K97: 0 | L97: 0 | M97: 0 | N97: 0 | O97: 0 | P97: 0 | Q97: 0 | R97: 0 | S97: 0
A98: 2022 | B98: CHAPLEAU PUBLIC UTILITIES CORPORATION | C98: RESIDENTIAL | D98: RESIDENTIAL | E98: CHAPLEAU PUBLIC UTILITIES CORPORATION_RESIDENTIAL SERVICE CLASSIFICATION | F98: 24232 | G98: 0 | H98: 13584483 | I98: 0 | J98: 0 | K98: 0 | L98: 0 | M98: 0 | N98: 0 | O98: 0 | P98: 13584483 | Q98: 0 | R98: 13608715 | S98: 0
A99: 2022 | B99: CHAPLEAU PUBLIC UTILITIES CORPORATION | C99: SENTINEL LIGHTING CONNECTIONS | D99: SENTINEL LIGHTING | E99: CHAPLEAU PUBLIC UTILITIES CORPORATION_SENTINEL LIGHTING SERVICE CLASSIFICATION | F99: 1346 | G99: 3 | H99: 18360 | I99: 51 | J99: 0 | K99: 0 | L99: 0 | M99: 0 | N99: 0 | O99: 0 | P99: 18360 | Q99: 51 | R99: 19706 | S99: 54.68
A100: 2022 | B100: CHAPLEAU PUBLIC UTILITIES CORPORATION | C100: STREET LIGHTING CONNECTIONS | D100: STREET LIGHTING | E100: CHAPLEAU PUBLIC UTILITIES CORPORATION_STREET LIGHTING SERVICE CLASSIFICATION | F100: 0 | G100: 0 | H100: 198386 | I100: 562 | J100: 0 | K100: 0 | L100: 0 | M100: 0 | N100: 0 | O100: 0 | P100: 198386 | Q100: 562 | R100: 198386 | S100: 562
A101: 2022 | B101: CHAPLEAU PUBLIC UTILITIES CORPORATION | C101: UNMETERED SCATTERED LOAD CONNECTIONS | D101: UNMETERED SCATTERED LOAD | E101: CHAPLEAU PUBLIC UTILITIES CORPORATION_UNMETERED SCATTERED LOAD SERVICE CLASSIFICATION | F101: 0 | G101: 0 | H101: 2892 | I101: 0 | J101: 0 | K101: 0 | L101: 0 | M101: 0 | N101: 0 | O101: 0 | P101: 2892 | Q101: 0 | R101: 2892 | S101: 0
A102: 2022 | B102: COOPERATIVE HYDRO EMBRUN INC. | C102: GENERAL SERVICE EQUAL TO OR GREATER THAN 50 KW | D102: GENERAL SERVICE 50 TO 4,999 KW | E102: COOPERATIVE HYDRO EMBRUN INC._GENERAL SERVICE 50 TO 4,999 KW SERVICE CLASSIFICATION | F102: 0 | G102: 0 | H102: 773111 | I102: 0 | J102: 3186127 | K102: 9235 | L102: 0 | M102: 0 | N102: 0 | O102: 0 | P102: 3959238 | Q102: 9235 | R102: 3959238 | S102: 9235
A103: 2022 | B103: COOPERATIVE HYDRO EMBRUN INC. | C103: GENERAL SERVICE LESS THAN 50 KW | D103: GENERAL SERVICE LESS THAN 50 KW | E103: COOPERATIVE HYDRO EMBRUN INC._GENERAL SERVICE LESS THAN 50 KW SERVICE CLASSIFICATION | F103: 1042739 | G103: 0 | H103: 3307991 | I103: 0 | J103: 0 | K103: 0 | L103: 0 | M103: 0 | N103: 0 | O103: 0 | P103: 3307991 | Q103: 0 | R103: 4350730 | S103: 0
A104: 2022 | B104: COOPERATIVE HYDRO EMBRUN INC. | C104: NO RATE CLASS | D104: NO RATE CLASS | E104: COOPERATIVE HYDRO EMBRUN INC._NO RATE CLASS SERVICE CLASSIFICATION | F104: 0 | G104: 0 | H104: 0 | I104: 0 | J104: 0 | K104: 0 | L104: 0 | M104: 0 | N104: 0 | O104: 0 | P104: 0 | Q104: 0 | R104: 0 | S104: 0
A105: 2022 | B105: COOPERATIVE HYDRO EMBRUN INC. | C105: RESIDENTIAL | D105: RESIDENTIAL | E105: COOPERATIVE HYDRO EMBRUN INC._RESIDENTIAL SERVICE CLASSIFICATION | F105: 112037 | G105: 0 | H105: 21542962 | I105: 0 | J105: 0 | K105: 0 | L105: 0 | M105: 0 | N105: 0 | O105: 0 | P105: 21542962 | Q105: 0 | R105: 21654999 | S105: 0
A106: 2022 | B106: COOPERATIVE HYDRO EMBRUN INC. | C106: STREET LIGHTING CONNECTIONS | D106: STREET LIGHTING | E106: COOPERATIVE HYDRO EMBRUN INC._STREET LIGHTING SERVICE CLASSIFICATION | F106: 0 | G106: 0 | H106: 0 | I106: 0 | J106: 214544 | K106: 598 | L106: 0 | M106: 0 | N106: 0 | O106: 0 | P106: 214544 | Q106: 598 | R106: 214544 | S106: 598
A107: 2022 | B107: COOPERATIVE HYDRO EMBRUN INC. | C107: UNMETERED SCATTERED LOAD CONNECTIONS | D107: UNMETERED SCATTERED LOAD | E107: COOPERATIVE HYDRO EMBRUN INC._UNMETERED SCATTERED LOAD SERVICE CLASSIFICATION | F107: 0 | G107: 0 | H107: 93084 | I107: 0 | J107: 0 | K107: 0 | L107: 0 | M107: 0 | N107: 0 | O107: 0 | P107: 93084 | Q107: 0 | R107: 93084 | S107: 0
A108: 2022 | B108: CORNWALL STREET RAILWAY LIGHT AND POWER COMPANY LIMITED | C108: NO RATE CLASS | D108: NO RATE CLASS | E108: CORNWALL STREET RAILWAY LIGHT AND POWER COMPANY LIMITED_NO RATE CLASS SERVICE CLASSIFICATION | F108: 0 | G108: 0 | H108: 0 | I108: 0 | J108: 0 | K108: 0 | L108: 0 | M108: 0 | P108: 0 | Q108: 0 | R108: 0 | S108: 0
A109: 2022 | B109: ELEXICON ENERGY INC. | C109: GENERAL SERVICE EQUAL TO OR GREATER THAN 50 KW | D109: GENERAL SERVICE 3,000 TO 4,999 KW - VERIDIAN | E109: ELEXICON ENERGY INC._VERIDIAN RATE ZONE_GENERAL SERVICE 3,000 TO 4,999 KW SERVICE CLASSIFICATION | F109: 0 | G109: 0 | H109: 0 | I109: 0 | J109: 105997891 | K109: 233934 | L109: 0 | M109: 0 | N109: 0 | O109: 0 | P109: 105997891 | Q109: 233934 | R109: 105997891 | S109: 233934
A110: 2022 | B110: ELEXICON ENERGY INC. | C110: GENERAL SERVICE EQUAL TO OR GREATER THAN 50 KW | D110: GENERAL SERVICE 50 TO 2,999 KW - VERIDIAN | E110: ELEXICON ENERGY INC._VERIDIAN RATE ZONE_GENERAL SERVICE 50 TO 2,999 KW SERVICE CLASSIFICATION | F110: 114505118 | G110: 300238 | H110: 100429722 | I110: 263353 | J110: 677010179 | K110: 1628985 | L110: 34299372 | M110: 58543 | N110: 0 | O110: 0 | P110: 811739273 | Q110: 1950881 | R110: 926244391 | S110: 2251119
A111: 2022 | B111: ELEXICON ENERGY INC. | C111: GENERAL SERVICE EQUAL TO OR GREATER THAN 50 KW | D111: GENERAL SERVICE 50 TO 4,999 KW - WHITBY | E111: ELEXICON ENERGY INC._FOR THE WHITBY RATE ZONE_GENERAL SERVICE 50 TO 4,999 KW SERVICE CLASSIFICATION | F111: 62027523 | G111: 151580 | H111: 42589200 | I111: 110153 | J111: 283944582 | K111: 646266 | L111: 3987457 | M111: 7641 | N111: 0 | O111: 0 | P111: 330521239 | Q111: 764060 | R111: 392548762 | S111: 915640
A112: 2022 | B112: ELEXICON ENERGY INC. | C112: GENERAL SERVICE LESS THAN 50 KW | D112: GENERAL SERVICE < 50 KW - VERIDIAN | E112: ELEXICON ENERGY INC._VERIDIAN RATE ZONE_GENERAL SERVICE LESS THAN 50 KW SERVICE CLASSIFICATION | F112: 43537251 | G112: 0 | H112: 235064395 | I112: 0 | J112: 274894 | K112: 0 | L112: 0 | M112: 0 | N112: 0 | O112: 0 | P112: 235339289 | Q112: 0 | R112: 278876540 | S112: 0
A113: 2022 | B113: ELEXICON ENERGY INC. | C113: GENERAL SERVICE LESS THAN 50 KW | D113: GENERAL SERVICE < 50 KW - WHITBY | E113: ELEXICON ENERGY INC._FOR THE WHITBY RATE ZONE_GENERAL SERVICE LESS THAN 50 KW SERVICE CLASSIFICATION | F113: 13282265 | G113: 0 | H113: 69984058 | I113: 0 | J113: 0 | K113: 0 | L113: 0 | M113: 0 | N113: 0 | O113: 0 | P113: 69984058 | Q113: 0 | R113: 83266323 | S113: 0
A114: 2022 | B114: ELEXICON ENERGY INC. | C114: LARGE USER | D114: LARGE USE - VERIDIAN | E114: ELEXICON ENERGY INC._VERIDIAN RATE ZONE_LARGE USE SERVICE CLASSIFICATION | F114: 0 | G114: 0 | H114: 0 | I114: 0 | J114: 271237266 | K114: 481567 | L114: 0 | M114: 0 | N114: 0 | O114: 0 | P114: 271237266 | Q114: 481567 | R114: 271237266 | S114: 481567
A115: 2022 | B115: ELEXICON ENERGY INC. | C115: NO RATE CLASS | D115: NO RATE CLASS | E115: ELEXICON ENERGY INC._NO RATE CLASS SERVICE CLASSIFICATION | F115: 0 | G115: 0 | H115: 0 | I115: 0 | J115: 0 | K115: 0 | L115: 0 | M115: 0 | N115: 760889856 | O115: 1467361 | P115: 0 | Q115: 0 | R115: 0 | S115: 0
A116: 2022 | B116: ELEXICON ENERGY INC. | C116: RESIDENTIAL | D116: RESIDENTIAL - VERIDIAN | E116: ELEXICON ENERGY INC._VERIDIAN RATE ZONE_RESIDENTIAL SERVICE CLASSIFICATION | F116: 22439510 | G116: 0 | H116: 1006882056 | I116: 0 | J116: 0 | K116: 0 | L116: 0 | M116: 0 | N116: 0 | O116: 0 | P116: 1006882056 | Q116: 0 | R116: 1029321566 | S116: 0
A117: 2022 | B117: ELEXICON ENERGY INC. | C117: RESIDENTIAL | D117: RESIDENTIAL - WHITBY | E117: ELEXICON ENERGY INC._FOR THE WHITBY RATE ZONE_RESIDENTIAL SERVICE CLASSIFICATION | F117: 4268262 | G117: 0 | H117: 390424478 | I117: 0 | J117: 0 | K117: 0 | L117: 0 | M117: 0 | N117: 0 | O117: 0 | P117: 390424478 | Q117: 0 | R117: 394692740 | S117: 0
A118: 2022 | B118: ELEXICON ENERGY INC. | C118: RESIDENTIAL | D118: RESIDENTIAL SEASONAL - VERIDIAN | E118: ELEXICON ENERGY INC._VERIDIAN RATE ZONE_SEASONAL RESIDENTIAL SERVICE CLASSIFICATION | F118: 75163 | G118: 0 | H118: 12472545 | I118: 0 | J118: 0 | K118: 0 | L118: 0 | M118: 0 | N118: 0 | O118: 0 | P118: 12472545 | Q118: 0 | R118: 12547708 | S118: 0
A119: 2022 | B119: ELEXICON ENERGY INC. | C119: SENTINEL LIGHTING CONNECTIONS | D119: SENTINEL LIGHTING - VERIDIAN | E119: ELEXICON ENERGY INC._VERIDIAN RATE ZONE_SENTINEL LIGHTING SERVICE CLASSIFICATION | F119: 74351 | G119: 207 | H119: 153034 | I119: 425 | J119: 0 | K119: 0 | L119: 0 | M119: 0 | N119: 0 | O119: 0 | P119: 153034 | Q119: 425 | R119: 227385 | S119: 632
A120: 2022 | B120: ELEXICON ENERGY INC. | C120: SENTINEL LIGHTING CONNECTIONS | D120: SENTINEL LIGHTING - WHITBY | E120: ELEXICON ENERGY INC._FOR THE WHITBY RATE ZONE_SENTINEL LIGHTING SERVICE CLASSIFICATION | F120: 63 | G120: 0 | H120: 27735 | I120: 71 | J120: 0 | K120: 0 | L120: 0 | M120: 0 | N120: 0 | O120: 0 | P120: 27735 | Q120: 71 | R120: 27798 | S120: 71
A121: 2022 | B121: ELEXICON ENERGY INC. | C121: STREET LIGHTING CONNECTIONS | D121: STREET LIGHTING - VERIDIAN | E121: ELEXICON ENERGY INC._VERIDIAN RATE ZONE_STREET LIGHTING SERVICE CLASSIFICATION | F121: 2612264 | G121: 7316 | H121: 0 | I121: 0 | J121: 8543203 | K121: 23824 | L121: 0 | M121: 0 | N121: 0 | O121: 0 | P121: 8543203 | Q121: 23824 | R121: 11155467 | S121: 31140
A122: 2022 | B122: ELEXICON ENERGY INC. | C122: STREET LIGHTING CONNECTIONS | D122: STREET LIGHTING - WHITBY | E122: ELEXICON ENERGY INC._FOR THE WHITBY RATE ZONE_STREET LIGHTING SERVICE CLASSIFICATION | F122: 0 | G122: 0 | H122: 0 | I122: 0 | J122: 3085782 | K122: 9363 | L122: 0 | M122: 0 | N122: 0 | O122: 0 | P122: 3085782 | Q122: 9363 | R122: 3085782 | S122: 9363
A123: 2022 | B123: ELEXICON ENERGY INC. | C123: UNMETERED SCATTERED LOAD CONNECTIONS | D123: UNMETERED SCATTERED LOAD - VERIDIAN | E123: ELEXICON ENERGY INC._VERIDIAN RATE ZONE_UNMETERED SCATTERED LOAD SERVICE CLASSIFICATION | F123: 222559 | G123: 0 | H123: 4355614 | I123: 0 | J123: 0 | K123: 0 | L123: 0 | M123: 0 | N123: 0 | O123: 0 | P123: 4355614 | Q123: 0 | R123: 4578173 | S123: 0
A124: 2022 | B124: ELEXICON ENERGY INC. | C124: UNMETERED SCATTERED LOAD CONNECTIONS | D124: UNMETERED SCATTERED LOAD - WHITBY | E124: ELEXICON ENERGY INC._FOR THE WHITBY RATE ZONE_UNMETERED SCATTERED LOAD SERVICE CLASSIFICATION | F124: 0 | G124: 0 | H124: 1852550 | I124: 0 | J124: 0 | K124: 0 | L124: 0 | M124: 0 | N124: 0 | O124: 0 | P124: 1852550 | Q124: 0 | R124: 1852550 | S124: 0
A125: 2022 | B125: ENERGY+ INC. | C125: EMBEDDED DISTRIBUTOR(S) | D125: EMBEDDED DISTRIBUTOR - HYDRO ONE #1 | E125: ENERGY+ INC._EMBEDDED DISTRIBUTOR SERVICE CLASSIFICATION - HYDRO ONE #1 | F125: 0 | G125: 0 | H125: 0 | I125: 0 | J125: 14208286.26 | K125: 29703.09 | L125: 0 | M125: 0 | N125: 0 | O125: 0 | P125: 14208286.26 | Q125: 29703.09 | R125: 14208286.26 | S125: 29703.09
A126: 2022 | B126: ENERGY+ INC. | C126: EMBEDDED DISTRIBUTOR(S) | D126: EMBEDDED DISTRIBUTOR - HYDRO ONE #2 | E126: ENERGY+ INC._EMBEDDED DISTRIBUTOR SERVICE CLASSIFICATION - HYDRO ONE #2 | F126: 0 | G126: 0 | H126: 0 | I126: 0 | J126: 60949372.86 | K126: 164300.77 | L126: 0 | M126: 0 | N126: 0 | O126: 0 | P126: 60949372.86 | Q126: 164300.77 | R126: 60949372.86 | S126: 164300.77
A127: 2022 | B127: ENERGY+ INC. | C127: EMBEDDED DISTRIBUTOR(S) | D127: EMBEDDED DISTRIBUTOR - BRANTFORD | E127: ENERGY+ INC._EMBEDDED DISTRIBUTOR SERVICE CLASSIFICATION - BRANTFORD | F127: 0 | G127: 0 | H127: 0 | I127: 0 | J127: 289051.29 | K127: 868.29 | L127: 0 | M127: 0 | N127: 0 | O127: 0 | P127: 289051.29 | Q127: 868.29 | R127: 289051.29 | S127: 868.29
A128: 2022 | B128: ENERGY+ INC. | C128: EMBEDDED DISTRIBUTOR(S) | D128: EMBEDDED DISTRIBUTOR - HYDRO ONE CND | E128: ENERGY+ INC._EMBEDDED DISTRIBUTOR SERVICE CLASSIFICATION - HYDRO ONE CND | F128: 0 | G128: 0 | H128: 0 | I128: 0 | J128: 13957219.64 | K128: 28236.7 | L128: 0 | M128: 0 | N128: 0 | O128: 0 | P128: 13957219.64 | Q128: 28236.7 | R128: 13957219.64 | S128: 28236.7
A129: 2022 | B129: ENERGY+ INC. | C129: EMBEDDED DISTRIBUTOR(S) | D129: EMBEDDED DISTRIBUTOR - WATERLOO NORTH HYDRO | E129: ENERGY+ INC._EMBEDDED DISTRIBUTOR SERVICE CLASSIFICATION - WATERLOO NORTH HYDRO | F129: 0 | G129: 0 | H129: 0 | I129: 0 | J129: 0 | K129: 0 | L129: 72461768 | M129: 138675.0625 | N129: 0 | O129: 0 | P129: 72461766.79 | Q129: 138675.07 | R129: 72461766.79 | S129: 138675.07
A130: 2022 | B130: ENERGY+ INC. | C130: GENERAL SERVICE EQUAL TO OR GREATER THAN 50 KW | D130: GENERAL SERVICE 1,000 TO 4,999 KW | E130: ENERGY+ INC._GENERAL SERVICE 1,000 TO 4,999 KW SERVICE CLASSIFICATION | F130: 63923242.41 | G130: 145853 | H130: 0 | I130: 0 | J130: 150538873.7 | K130: 371636.64 | L130: 26090756 | M130: 43805.76172 | N130: 0 | O130: 0 | P130: 176629629.7 | Q130: 415442.4 | R130: 240552872.1 | S130: 561296.12
A131: 2022 | B131: ENERGY+ INC. | C131: GENERAL SERVICE EQUAL TO OR GREATER THAN 50 KW | D131: GENERAL SERVICE 50 TO 999 KW | E131: ENERGY+ INC._GENERAL SERVICE 50 TO 999 KW SERVICE CLASSIFICATION | F131: 84362296.45 | G131: 271805 | H131: 51531646.2 | I131: 182960.02 | J131: 320001039 | K131: 981845.98 | L131: 8860517 | M131: 17062.0293 | N131: 0 | O131: 0 | P131: 380393202 | Q131: 1181868.03 | R131: 464755498.4 | S131: 1453673.1
A132: 2022 | B132: ENERGY+ INC. | C132: GENERAL SERVICE LESS THAN 50 KW | D132: GENERAL SERVICE LESS THAN 50 KW | E132: ENERGY+ INC._GENERAL SERVICE LESS THAN 50 KW SERVICE CLASSIFICATION | F132: 25867599.89 | G132: 0 | H132: 176511499.9 | I132: 0 | J132: 262830.11 | K132: 3879.74 | L132: 0 | M132: 0 | N132: 0 | O132: 0 | P132: 176774330.1 | Q132: 3879.74 | R132: 202641929.9 | S132: 3879.74
A133: 2022 | B133: ENERGY+ INC. | C133: LARGE USER | D133: LARGE USER | E133: ENERGY+ INC._LARGE USER SERVICE CLASSIFICATION | F133: 0 | G133: 0 | H133: 0 | I133: 0 | J133: 144867973.2 | K133: 352232.27 | L133: 0 | M133: 0 | N133: 0 | O133: 0 | P133: 144867973.2 | Q133: 352232.27 | R133: 144867973.2 | S133: 352232.27
A134: 2022 | B134: ENERGY+ INC. | C134: NO RATE CLASS | D134: NO RATE CLASS | E134: ENERGY+ INC._NO RATE CLASS SERVICE CLASSIFICATION | F134: 0 | G134: 0 | H134: 0 | I134: 0 | J134: 0 | K134: 0 | L134: 0 | M134: 0 | N134: 355125120 | O134: 912764 | P134: 0 | Q134: 0 | R134: 0 | S134: 0
A135: 2022 | B135: ENERGY+ INC. | C135: RESIDENTIAL | D135: RESIDENTIAL | E135: ENERGY+ INC._RESIDENTIAL SERVICE CLASSIFICATION | F135: 6803349.36 | G135: 0 | H135: 517312534 | I135: 0 | J135: 0 | K135: 0 | L135: 0 | M135: 0 | N135: 0 | O135: 0 | P135: 517312534 | Q135: 0 | R135: 524115883.4 | S135: 0
A136: 2022 | B136: ENERGY+ INC. | C136: SENTINEL LIGHTING CONNECTIONS | D136: SENTINEL LIGHTING | E136: ENERGY+ INC._SENTINEL LIGHTING SERVICE CLASSIFICATION | F136: 0 | G136: 0 | H136: 10035.36 | I136: 241.92 | J136: 0 | K136: 0 | L136: 0 | M136: 0 | N136: 0 | O136: 0 | P136: 10035.36 | Q136: 241.92 | R136: 10035.36 | S136: 241.92
A137: 2022 | B137: ENERGY+ INC. | C137: STREET LIGHTING CONNECTIONS | D137: STREET LIGHTING | E137: ENERGY+ INC._STREET LIGHTING SERVICE CLASSIFICATION | F137: 721325.11 | G137: 2015 | H137: 462059.04 | I137: 1292.58 | J137: 4729664.61 | K137: 13201.54 | L137: 0 | M137: 0 | N137: 0 | O137: 0 | P137: 5191723.65 | Q137: 14494.12 | R137: 5913048.76 | S137: 16509.95
A138: 2022 | B138: ENERGY+ INC. | C138: UNMETERED SCATTERED LOAD CONNECTIONS | D138: UNMETERED SCATTERED LOAD | E138: ENERGY+ INC._UNMETERED SCATTERED LOAD SERVICE CLASSIFICATION | F138: 209748 | G138: 0 | H138: 1966594.36 | I138: 0 | J138: 0 | K138: 0 | L138: 0 | M138: 0 | N138: 0 | O138: 0 | P138: 1966594.36 | Q138: 0 | R138: 2176342.36 | S138: 0
A139: 2022 | B139: ENTEGRUS POWERLINES INC. | C139: EMBEDDED DISTRIBUTOR(S) | D139: EMBEDDED DISTRIBUTOR - MAIN | E139: ENTEGRUS POWERLINES INC._FOR ENTEGRUS-MAIN RATE ZONE_EMBEDDED DISTRIBUTOR SERVICE CLASSIFICATION | F139: 0 | G139: 0 | H139: 0 | I139: 0 | J139: 1688560 | K139: 11728 | L139: 0 | M139: 0 | N139: 0 | O139: 0 | P139: 1688560 | Q139: 11728 | R139: 1688560 | S139: 11728
A140: 2022 | B140: ENTEGRUS POWERLINES INC. | C140: GENERAL SERVICE EQUAL TO OR GREATER THAN 50 KW | D140: GENERAL SERVICE 50 TO 4,999 KW - MAIN | E140: ENTEGRUS POWERLINES INC._FOR ENTEGRUS-MAIN RATE ZONE_GENERAL SERVICE 50 TO 4,999 KW SERVICE CLASSIFICATION | F140: 118679706 | G140: 306474 | H140: 26617636 | I140: 133785 | J140: 294984052 | K140: 699609 | L140: 4415184 | M140: 13709 | N140: 0 | O140: 0 | P140: 326016872 | Q140: 847103 | R140: 444696578 | S140: 1153577
A141: 2022 | B141: ENTEGRUS POWERLINES INC. | C141: GENERAL SERVICE EQUAL TO OR GREATER THAN 50 KW | D141: GENERAL SERVICE 50 TO 4,999 KW - ST. THOMAS ENERGY | E141: ENTEGRUS POWERLINES INC._FOR FORMER ST. THOMAS ENERGY RATE ZONE_GENERAL SERVICE 50 TO 4,999 KW SERVICE CLASSIFICATION | F141: 18484282 | G141: 45126 | H141: 9061161 | I141: 31126 | J141: 87730785 | K141: 234413 | L141: 3253305 | M141: 6475 | N141: 0 | O141: 0 | P141: 100045251 | Q141: 272014 | R141: 118529533 | S141: 317140
A142: 2022 | B142: ENTEGRUS POWERLINES INC. | C142: GENERAL SERVICE LESS THAN 50 KW | D142: GENERAL SERVICE LESS THAN 50 KW - MAIN | E142: ENTEGRUS POWERLINES INC._FOR ENTEGRUS-MAIN RATE ZONE_GENERAL SERVICE LESS THAN 50 KW SERVICE CLASSIFICATION | F142: 18944979 | G142: 0 | H142: 94615061 | I142: 0 | J142: 0 | K142: 0 | L142: 0 | M142: 0 | N142: 0 | O142: 0 | P142: 94615061 | Q142: 0 | R142: 113560040 | S142: 0
A143: 2022 | B143: ENTEGRUS POWERLINES INC. | C143: GENERAL SERVICE LESS THAN 50 KW | D143: GENERAL SERVICE LESS THAN 50 KW - ST. THOMAS ENERGY | E143: ENTEGRUS POWERLINES INC._FOR FORMER ST. THOMAS ENERGY RATE ZONE_GENERAL SERVICE LESS THAN 50 KW SERVICE CLASSIFICATION | F143: 6753483 | G143: 0 | H143: 33285777 | I143: 0 | J143: 0 | K143: 0 | L143: 0 | M143: 0 | N143: 0 | O143: 0 | P143: 33285777 | Q143: 0 | R143: 40039260 | S143: 0
A144: 2022 | B144: ENTEGRUS POWERLINES INC. | C144: LARGE USER | D144: LARGE USE - MAIN | E144: ENTEGRUS POWERLINES INC._FOR ENTEGRUS-MAIN RATE ZONE_LARGE USE SERVICE CLASSIFICATION | F144: 0 | G144: 0 | H144: 0 | I144: 0 | J144: 39779688 | K144: 108012 | L144: 0 | M144: 0 | N144: 0 | O144: 0 | P144: 39779688 | Q144: 108012 | R144: 39779688 | S144: 108012
A145: 2022 | B145: ENTEGRUS POWERLINES INC. | C145: NO RATE CLASS | D145: NO RATE CLASS | E145: ENTEGRUS POWERLINES INC._NO RATE CLASS SERVICE CLASSIFICATION | F145: 0 | G145: 0 | H145: 0 | I145: 0 | J145: 0 | K145: 0 | L145: 0 | M145: 0 | N145: 283324896 | O145: 599672 | P145: 0 | Q145: 0 | R145: 0 | S145: 0
A146: 2022 | B146: ENTEGRUS POWERLINES INC. | C146: RESIDENTIAL | D146: RESIDENTIAL - MAIN | E146: ENTEGRUS POWERLINES INC._FOR ENTEGRUS-MAIN RATE ZONE_RESIDENTIAL SERVICE CLASSIFICATION | F146: 6957466 | G146: 0 | H146: 305730917 | I146: 0 | J146: 0 | K146: 0 | L146: 0 | M146: 0 | N146: 0 | O146: 0 | P146: 305730917 | Q146: 0 | R146: 312688383 | S146: 0
A147: 2022 | B147: ENTEGRUS POWERLINES INC. | C147: RESIDENTIAL | D147: RESIDENTIAL - ST. THOMAS ENERGY | E147: ENTEGRUS POWERLINES INC._FOR FORMER ST. THOMAS ENERGY RATE ZONE_RESIDENTIAL SERVICE CLASSIFICATION | F147: 5851504 | G147: 0 | H147: 129266402 | I147: 0 | J147: 0 | K147: 0 | L147: 0 | M147: 0 | N147: 0 | O147: 0 | P147: 129266402 | Q147: 0 | R147: 135117906 | S147: 0
A148: 2022 | B148: ENTEGRUS POWERLINES INC. | C148: SENTINEL LIGHTING CONNECTIONS | D148: SENTINEL LIGHTING - MAIN | E148: ENTEGRUS POWERLINES INC._FOR ENTEGRUS-MAIN RATE ZONE_SENTINEL LIGHTING SERVICE CLASSIFICATION | F148: 52390 | G148: 150 | H148: 188462 | I148: 524 | J148: 64431 | K148: 179 | L148: 0 | M148: 0 | N148: 0 | O148: 0 | P148: 252893 | Q148: 703 | R148: 305283 | S148: 853
A149: 2022 | B149: ENTEGRUS POWERLINES INC. | C149: SENTINEL LIGHTING CONNECTIONS | D149: SENTINEL LIGHTING - ST. THOMAS ENERGY | E149: ENTEGRUS POWERLINES INC._FOR FORMER ST. THOMAS ENERGY RATE ZONE_SENTINEL LIGHTING SERVICE CLASSIFICATION | F149: 2665 | G149: 7 | H149: 49400 | I149: 0 | J149: 0 | K149: 0 | L149: 0 | M149: 0 | N149: 0 | O149: 0 | P149: 49400 | Q149: 0 | R149: 52065 | S149: 7
A150: 2022 | B150: ENTEGRUS POWERLINES INC. | C150: STREET LIGHTING CONNECTIONS | D150: STREET LIGHTING - MAIN | E150: ENTEGRUS POWERLINES INC._FOR ENTEGRUS-MAIN RATE ZONE_STREET LIGHTING SERVICE CLASSIFICATION | F150: 0 | G150: 0 | H150: 0 | I150: 0 | J150: 3553053 | K150: 10494 | L150: 0 | M150: 0 | N150: 0 | O150: 0 | P150: 3553053 | Q150: 10494 | R150: 3553053 | S150: 10494
A151: 2022 | B151: ENTEGRUS POWERLINES INC. | C151: STREET LIGHTING CONNECTIONS | D151: STREET LIGHTING - ST. THOMAS ENERGY | E151: ENTEGRUS POWERLINES INC._FOR FORMER ST. THOMAS ENERGY RATE ZONE_STREET LIGHTING SERVICE CLASSIFICATION | F151: 0 | G151: 0 | H151: 0 | I151: 0 | J151: 1807168 | K151: 5039 | L151: 0 | M151: 0 | N151: 0 | O151: 0 | P151: 1807168 | Q151: 5039 | R151: 1807168 | S151: 5039
A152: 2022 | B152: ENTEGRUS POWERLINES INC. | C152: UNMETERED SCATTERED LOAD CONNECTIONS | D152: UNMETERED SCATTERED LOAD - MAIN | E152: ENTEGRUS POWERLINES INC._FOR ENTEGRUS-MAIN RATE ZONE_UNMETERED SCATTERED LOAD SERVICE CLASSIFICATION | F152: 717852 | G152: 0 | H152: 529200 | I152: 0 | J152: 0 | K152: 0 | L152: 0 | M152: 0 | N152: 0 | O152: 0 | P152: 529200 | Q152: 0 | R152: 1247052 | S152: 0
A153: 2022 | B153: ENWIN UTILITIES LTD. | C153: GENERAL SERVICE EQUAL TO OR GREATER THAN 50 KW | D153: GENERAL SERVICE 3,000 TO 4,999 KW - INTERMEDIATE USE | E153: ENWIN UTILITIES LTD._GENERAL SERVICE 3,000 TO 4,999 KW - INTERMEDIATE USE SERVICE CLASSIFICATION | F153: 0 | G153: 0 | H153: 0 | I153: 0 | J153: 0 | K153: 0 | L153: 0 | M153: 0 | N153: 0 | O153: 0 | P153: 0 | Q153: 0 | R153: 0 | S153: 0
A154: 2022 | B154: ENWIN UTILITIES LTD. | C154: GENERAL SERVICE EQUAL TO OR GREATER THAN 50 KW | D154: GENERAL SERVICE 50 TO 4,999 KW | E154: ENWIN UTILITIES LTD._GENERAL SERVICE 50 TO 4,999 KW SERVICE CLASSIFICATION | F154: 98748790.21 | G154: 260216 | H154: 148014120.9 | I154: 367506.87 | J154: 596332761.8 | K154: 1527385.43 | L154: 10244929 | M154: 19480.66016 | N154: 0 | O154: 0 | P154: 754591811.4 | Q154: 1914372.96 | R154: 853340601.6 | S154: 2174589.58
A155: 2022 | B155: ENWIN UTILITIES LTD. | C155: GENERAL SERVICE LESS THAN 50 KW | D155: GENERAL SERVICE LESS THAN 50 KW | E155: ENWIN UTILITIES LTD._GENERAL SERVICE LESS THAN 50 KW SERVICE CLASSIFICATION | F155: 27769604.7 | G155: 0 | H155: 176252125.4 | I155: 0 | J155: 0 | K155: 0 | L155: 0 | M155: 0 | N155: 0 | O155: 0 | P155: 176252125.4 | Q155: 0 | R155: 204021730.1 | S155: 0
A156: 2022 | B156: ENWIN UTILITIES LTD. | C156: LARGE USER | D156: LARGE USE - 3TS | E156: ENWIN UTILITIES LTD._LARGE USE - 3TS SERVICE CLASSIFICATION | F156: 0 | G156: 0 | H156: 0 | I156: 0 | J156: 105674753 | K156: 249863.26 | L156: 73120840 | M156: 130416.8516 | N156: 0 | O156: 0 | P156: 178795591.8 | Q156: 380280.11 | R156: 178795591.8 | S156: 380280.11
A157: 2022 | B157: ENWIN UTILITIES LTD. | C157: LARGE USER | D157: LARGE USE - FORD ANNEX | E157: ENWIN UTILITIES LTD._LARGE USE - FORD ANNEX SERVICE CLASSIFICATION | F157: 0 | G157: 0 | H157: 0 | I157: 0 | J157: 0 | K157: 0 | L157: 0 | M157: 0 | N157: 0 | O157: 0 | P157: 0 | Q157: 0 | R157: 0 | S157: 0
A158: 2022 | B158: ENWIN UTILITIES LTD. | C158: LARGE USER | D158: LARGE USE - REGULAR | E158: ENWIN UTILITIES LTD._LARGE USE - REGULAR SERVICE CLASSIFICATION | F158: 0 | G158: 0 | H158: 0 | I158: 0 | J158: 79402949.64 | K158: 245919.94 | L158: 96198960 | M158: 172724.125 | N158: 0 | O158: 0 | P158: 175601913.1 | Q158: 418644.06 | R158: 175601913.1 | S158: 418644.06
A159: 2022 | B159: ENWIN UTILITIES LTD. | C159: NO RATE CLASS | D159: NO RATE CLASS | E159: ENWIN UTILITIES LTD._NO RATE CLASS SERVICE CLASSIFICATION | F159: 0 | G159: 0 | H159: 0 | I159: 0 | J159: 0 | K159: 0 | L159: 0 | M159: 0 | N159: 413053216 | O159: 1019198 | P159: 0 | Q159: 0 | R159: 0 | S159: 0
A160: 2022 | B160: ENWIN UTILITIES LTD. | C160: RESIDENTIAL | D160: RESIDENTIAL | E160: ENWIN UTILITIES LTD._RESIDENTIAL SERVICE CLASSIFICATION | F160: 10519421.62 | G160: 0 | H160: 652332460 | I160: 0 | J160: 0 | K160: 0 | L160: 0 | M160: 0 | N160: 0 | O160: 0 | P160: 652332460 | Q160: 0 | R160: 662851881.6 | S160: 0
A161: 2022 | B161: ENWIN UTILITIES LTD. | C161: SENTINEL LIGHTING CONNECTIONS | D161: SENTINEL LIGHTING | E161: ENWIN UTILITIES LTD._SENTINEL LIGHTING SERVICE CLASSIFICATION | F161: 54234.89 | G161: 152 | H161: 661827.8 | I161: 1839.81 | J161: 0 | K161: 0 | L161: 0 | M161: 0 | N161: 0 | O161: 0 | P161: 661827.8 | Q161: 1839.81 | R161: 716062.69 | S161: 1992.57
A162: 2022 | B162: ENWIN UTILITIES LTD. | C162: STREET LIGHTING CONNECTIONS | D162: STREET LIGHTING | E162: ENWIN UTILITIES LTD._STREET LIGHTING SERVICE CLASSIFICATION | F162: 0 | G162: 0 | H162: 18383.74 | I162: 53.04 | J162: 6580995.63 | K162: 18969.76 | L162: 0 | M162: 0 | N162: 0 | O162: 0 | P162: 6599379.37 | Q162: 19022.8 | R162: 6599379.37 | S162: 19022.8
A163: 2022 | B163: ENWIN UTILITIES LTD. | C163: UNMETERED SCATTERED LOAD CONNECTIONS | D163: UNMETERED SCATTERED LOAD | E163: ENWIN UTILITIES LTD._UNMETERED SCATTERED LOAD SERVICE CLASSIFICATION | F163: 0 | G163: 0 | H163: 138289.81 | I163: 0 | J163: 2171556.75 | K163: 0 | L163: 0 | M163: 0 | N163: 0 | O163: 0 | P163: 2309846.56 | Q163: 0 | R163: 2309846.56 | S163: 0
A164: 2022 | B164: EPCOR ELECTRICITY DISTRIBUTION ONTARIO INC. | C164: GENERAL SERVICE EQUAL TO OR GREATER THAN 50 KW | D164: GENERAL SERVICE 50 TO 4,999 KW | E164: EPCOR ELECTRICITY DISTRIBUTION ONTARIO INC._GENERAL SERVICE 50 TO 4,999 KW SERVICE CLASSIFICATION | F164: 19457267.34 | G164: 44035 | H164: 13765324.04 | I164: 41896.28 | J164: 85964296.71 | K164: 206660.81 | L164: 2389303.75 | M164: 4662.939941 | N164: 0 | O164: 0 | P164: 102118924.5 | Q164: 253220.03 | R164: 121576191.8 | S164: 297255.05
A165: 2022 | B165: EPCOR ELECTRICITY DISTRIBUTION ONTARIO INC. | C165: GENERAL SERVICE LESS THAN 50 KW | D165: GENERAL SERVICE LESS THAN 50 KW | E165: EPCOR ELECTRICITY DISTRIBUTION ONTARIO INC._GENERAL SERVICE LESS THAN 50 KW SERVICE CLASSIFICATION | F165: 6545898.09 | G165: 0 | H165: 37626918.83 | I165: 0 | J165: 374166.19 | K165: 0 | L165: 0 | M165: 0 | N165: 0 | O165: 0 | P165: 38001085.02 | Q165: 0 | R165: 44546983.11 | S165: 0
A166: 2022 | B166: EPCOR ELECTRICITY DISTRIBUTION ONTARIO INC. | C166: NO RATE CLASS | D166: NO RATE CLASS | E166: EPCOR ELECTRICITY DISTRIBUTION ONTARIO INC._NO RATE CLASS SERVICE CLASSIFICATION | F166: 0 | G166: 0 | H166: 0 | I166: 0 | J166: 0 | K166: 0 | L166: 0 | M166: 0 | N166: 50868804 | O166: 113630.9922 | P166: 0 | Q166: 0 | R166: 0 | S166: 0
A167: 2022 | B167: EPCOR ELECTRICITY DISTRIBUTION ONTARIO INC. | C167: RESIDENTIAL | D167: RESIDENTIAL | E167: EPCOR ELECTRICITY DISTRIBUTION ONTARIO INC._RESIDENTIAL SERVICE CLASSIFICATION | F167: 2069000.01 | G167: 0 | H167: 134916040.8 | I167: 0 | J167: 0 | K167: 0 | L167: 0 | M167: 0 | N167: 0 | O167: 0 | P167: 134916040.8 | Q167: 0 | R167: 136985040.8 | S167: 0
A168: 2022 | B168: EPCOR ELECTRICITY DISTRIBUTION ONTARIO INC. | C168: STREET LIGHTING CONNECTIONS | D168: STREET LIGHTING | E168: EPCOR ELECTRICITY DISTRIBUTION ONTARIO INC._STREET LIGHTING SERVICE CLASSIFICATION | F168: 0 | G168: 0 | H168: 0 | I168: 0 | J168: 1221028.91 | K168: 3430.2 | L168: 0 | M168: 0 | N168: 0 | O168: 0 | P168: 1221028.91 | Q168: 3430.2 | R168: 1221028.91 | S168: 3430.2
A169: 2022 | B169: EPCOR ELECTRICITY DISTRIBUTION ONTARIO INC. | C169: UNMETERED SCATTERED LOAD CONNECTIONS | D169: UNMETERED SCATTERED LOAD | E169: EPCOR ELECTRICITY DISTRIBUTION ONTARIO INC._UNMETERED SCATTERED LOAD SERVICE CLASSIFICATION | F169: 336.02 | G169: 0 | H169: 395897.25 | I169: 0 | J169: 0 | K169: 0 | L169: 0 | M169: 0 | N169: 0 | O169: 0 | P169: 395897.25 | Q169: 0 | R169: 396233.27 | S169: 0
A170: 2022 | B170: ERTH POWER CORPORATION | C170: EMBEDDED DISTRIBUTOR(S) | D170: EMBEDDED DISTRIBUTOR - MAIN | E170: ERTH POWER CORPORATION_MAIN RATE ZONE_EMBEDDED DISTRIBUTOR SERVICE CLASSIFICATION | F170: 0 | G170: 0 | H170: 0 | I170: 0 | J170: 16786736 | K170: 38092 | L170: 0 | M170: 0 | N170: 0 | O170: 0 | P170: 16786736 | Q170: 38092 | R170: 16786736 | S170: 38092
A171: 2022 | B171: ERTH POWER CORPORATION | C171: GENERAL SERVICE EQUAL TO OR GREATER THAN 50 KW | D171: GENERAL SERVICE 1,000 TO 4,999 KW - MAIN | E171: ERTH POWER CORPORATION_MAIN RATE ZONE_GENERAL SERVICE 1,000 TO 4,999 KW SERVICE CLASSIFICATION | F171: 10530360 | G171: 21471 | H171: 0 | I171: 0 | J171: 71869263 | K171: 142132 | L171: 0 | M171: 0 | N171: 0 | O171: 0 | P171: 71869263 | Q171: 142132 | R171: 82399623 | S171: 163603
A172: 2022 | B172: ERTH POWER CORPORATION | C172: GENERAL SERVICE EQUAL TO OR GREATER THAN 50 KW | D172: GENERAL SERVICE 50 TO 499 KW - GODERICH | E172: ERTH POWER CORPORATION_GODERICH RATE ZONE_GENERAL SERVICE 50 TO 499 KW SERVICE CLASSIFICATION | F172: 0 | G172: 0 | H172: 3288945 | I172: 6151 | J172: 10750517 | K172: 39156 | L172: 2543704 | M172: 12427 | N172: 0 | O172: 0 | P172: 16583166 | Q172: 57734 | R172: 16583166 | S172: 57734
A173: 2022 | B173: ERTH POWER CORPORATION | C173: GENERAL SERVICE EQUAL TO OR GREATER THAN 50 KW | D173: GENERAL SERVICE 50 TO 999 KW - MAIN | E173: ERTH POWER CORPORATION_MAIN RATE ZONE_GENERAL SERVICE 50 TO 999 KW SERVICE CLASSIFICATION | F173: 46194381 | G173: 103028 | H173: 5531439 | I173: 28328 | J173: 48735674 | K173: 135526 | L173: 0 | M173: 0 | N173: 0 | O173: 0 | P173: 54267113 | Q173: 163854 | R173: 100461494 | S173: 266882
A174: 2022 | B174: ERTH POWER CORPORATION | C174: GENERAL SERVICE EQUAL TO OR GREATER THAN 50 KW | D174: GENERAL SERVICE 500 TO 4,999 KW - GODERICH | E174: ERTH POWER CORPORATION_GODERICH RATE ZONE_GENERAL SERVICE 500 TO 4,999 KW SERVICE CLASSIFICATION | F174: 0 | G174: 0 | H174: 0 | I174: 0 | J174: 13301023 | K174: 31432 | L174: 0 | M174: 0 | N174: 0 | O174: 0 | P174: 13301023 | Q174: 31432 | R174: 13301023 | S174: 31432
A175: 2022 | B175: ERTH POWER CORPORATION | C175: GENERAL SERVICE LESS THAN 50 KW | D175: GENERAL SERVICE LESS THAN 50 KW - GODERICH | E175: ERTH POWER CORPORATION_GODERICH RATE ZONE_GENERAL SERVICE LESS THAN 50 KW SERVICE CLASSIFICATION | F175: 0 | G175: 0 | H175: 10432876 | I175: 0 | J175: 0 | K175: 0 | L175: 0 | M175: 0 | N175: 0 | O175: 0 | P175: 10432876 | Q175: 0 | R175: 10432876 | S175: 0
A176: 2022 | B176: ERTH POWER CORPORATION | C176: GENERAL SERVICE LESS THAN 50 KW | D176: GENERAL SERVICE LESS THAN 50 KW - MAIN | E176: ERTH POWER CORPORATION_MAIN RATE ZONE_GENERAL SERVICE LESS THAN 50 KW SERVICE CLASSIFICATION | F176: 11686580 | G176: 0 | H176: 38678173 | I176: 0 | J176: 149107 | K176: 0 | L176: 0 | M176: 0 | N176: 0 | O176: 0 | P176: 38827280 | Q176: 0 | R176: 50513860 | S176: 0
A177: 2022 | B177: ERTH POWER CORPORATION | C177: LARGE USER | D177: LARGE USE - GODERICH | E177: ERTH POWER CORPORATION_GODERICH RATE ZONE_LARGE USE SERVICE CLASSIFICATION | F177: 0 | G177: 0 | H177: 0 | I177: 0 | J177: 0 | K177: 0 | L177: 72019856 | M177: 174624 | N177: 0 | O177: 0 | P177: 72019858 | Q177: 174624 | R177: 72019858 | S177: 174624
A178: 2022 | B178: ERTH POWER CORPORATION | C178: LARGE USER | D178: LARGE USE- MAIN | E178: ERTH POWER CORPORATION_MAIN RATE ZONE_LARGE USE SERVICE CLASSIFICATION | F178: 0 | G178: 0 | H178: 0 | I178: 0 | J178: 97230798 | K178: 191731 | L178: 0 | M178: 0 | N178: 0 | O178: 0 | P178: 97230798 | Q178: 191731 | R178: 97230798 | S178: 191731
A179: 2022 | B179: ERTH POWER CORPORATION | C179: NO RATE CLASS | D179: NO RATE CLASS | E179: ERTH POWER CORPORATION_NO RATE CLASS SERVICE CLASSIFICATION | F179: 0 | G179: 0 | H179: 0 | I179: 0 | J179: 0 | K179: 0 | L179: 0 | M179: 0 | N179: 205760592 | O179: 422337 | P179: 0 | Q179: 0 | R179: 0 | S179: 0
A180: 2022 | B180: ERTH POWER CORPORATION | C180: RESIDENTIAL | D180: RESIDENTIAL - GODERICH | E180: ERTH POWER CORPORATION_GODERICH RATE ZONE_RESIDENTIAL SERVICE CLASSIFICATION | F180: 0 | G180: 0 | H180: 25814517 | I180: 0 | J180: 0 | K180: 0 | L180: 0 | M180: 0 | N180: 0 | O180: 0 | P180: 25814517 | Q180: 0 | R180: 25814517 | S180: 0
A181: 2022 | B181: ERTH POWER CORPORATION | C181: RESIDENTIAL | D181: RESIDENTIAL - MAIN | E181: ERTH POWER CORPORATION_MAIN RATE ZONE_RESIDENTIAL SERVICE CLASSIFICATION | F181: 5622808 | G181: 0 | H181: 146150908 | I181: 0 | J181: 30804 | K181: 0 | L181: 0 | M181: 0 | N181: 0 | O181: 0 | P181: 146181712 | Q181: 0 | R181: 151804520 | S181: 0
A182: 2022 | B182: ERTH POWER CORPORATION | C182: SENTINEL LIGHTING CONNECTIONS | D182: SENTINEL LIGHTING - GODERICH | E182: ERTH POWER CORPORATION_GODERICH RATE ZONE_SENTINEL LIGHTING SERVICE CLASSIFICATION | F182: 0 | G182: 0 | H182: 1932 | I182: 0 | J182: 0 | K182: 0 | L182: 0 | M182: 0 | N182: 0 | O182: 0 | P182: 1932 | Q182: 0 | R182: 1932 | S182: 0
A183: 2022 | B183: ERTH POWER CORPORATION | C183: SENTINEL LIGHTING CONNECTIONS | D183: SENTINEL LIGHTING - MAIN | E183: ERTH POWER CORPORATION_MAIN RATE ZONE_SENTINEL LIGHTING ERVICE CLASSIFICATION | F183: 27997 | G183: 0 | H183: 182057 | I183: 0 | J183: 0 | K183: 0 | L183: 0 | M183: 0 | N183: 0 | O183: 0 | P183: 182057 | Q183: 0 | R183: 210054 | S183: 0
A184: 2022 | B184: ERTH POWER CORPORATION | C184: STREET LIGHTING CONNECTIONS | D184: STREET LIGHTING - GODERICH | E184: ERTH POWER CORPORATION_GODERICH RATE ZONE_STREET LIGHTING SERVICE CLASSIFICATION | F184: 0 | G184: 0 | H184: 77588 | I184: 8 | J184: 0 | K184: 0 | L184: 0 | M184: 0 | N184: 0 | O184: 0 | P184: 77588 | Q184: 8 | R184: 77588 | S184: 8
A185: 2022 | B185: ERTH POWER CORPORATION | C185: STREET LIGHTING CONNECTIONS | D185: STREET LIGHTING - MAIN | E185: ERTH POWER CORPORATION_MAIN RATE ZONE_STREET LIGHTING SERVICE CLASSIFICATION | F185: 637205 | G185: 1998 | H185: 665892 | I185: 1872 | J185: 829977 | K185: 2259 | L185: 0 | M185: 0 | N185: 0 | O185: 0 | P185: 1495869 | Q185: 4131 | R185: 2133074 | S185: 6129
A186: 2022 | B186: ERTH POWER CORPORATION | C186: UNMETERED SCATTERED LOAD CONNECTIONS | D186: UNMETERED SCATTERED LOAD - GODERICH | E186: ERTH POWER CORPORATION_GODERICH RATE ZONE_UNMETERED SCATTERED LOAD SERVICE CLASSIFICATION | F186: 0 | G186: 0 | H186: 83100 | I186: 0 | J186: 0 | K186: 0 | L186: 0 | M186: 0 | N186: 0 | O186: 0 | P186: 83100 | Q186: 0 | R186: 83100 | S186: 0
A187: 2022 | B187: ERTH POWER CORPORATION | C187: UNMETERED SCATTERED LOAD CONNECTIONS | D187: UNMETERED SCATTERED LOAD - MAIN | E187: ERTH POWER CORPORATION_MAIN RATE ZONE_UNMETERED SCATTERED LOAD SERVICE CLASSIFICATION | F187: 51696 | G187: 0 | H187: 376169 | I187: 0 | J187: 0 | K187: 0 | L187: 0 | M187: 0 | N187: 0 | O187: 0 | P187: 376169 | Q187: 0 | R187: 427865 | S187: 0
A188: 2022 | B188: ESPANOLA REGIONAL HYDRO DISTRIBUTION CORPORATION | C188: GENERAL SERVICE EQUAL TO OR GREATER THAN 50 KW | D188: GENERAL SERVICE 50 TO 4,999 KW | E188: ESPANOLA REGIONAL HYDRO DISTRIBUTION CORPORATION_GENERAL SERVICE 50 TO 4,999 KW SERVICE CLASSIFICATION | F188: 5248392 | G188: 12865 | H188: 1381240 | I188: 4109.74 | J188: 7300915 | K188: 18315.47 | L188: 0 | M188: 0 | N188: 0 | O188: 0 | P188: 8682155 | Q188: 22425.21 | R188: 13930547 | S188: 35290.25
A189: 2022 | B189: ESPANOLA REGIONAL HYDRO DISTRIBUTION CORPORATION | C189: GENERAL SERVICE LESS THAN 50 KW | D189: GENERAL SERVICE LESS THAN 50 KW | E189: ESPANOLA REGIONAL HYDRO DISTRIBUTION CORPORATION_GENERAL SERVICE LESS THAN 50 KW SERVICE CLASSIFICATION | F189: 1277614.93 | G189: 0 | H189: 8234773.44 | I189: 0 | J189: 0 | K189: 0 | L189: 0 | M189: 0 | N189: 0 | O189: 0 | P189: 8234773.44 | Q189: 0 | R189: 9512388.37 | S189: 0
A190: 2022 | B190: ESPANOLA REGIONAL HYDRO DISTRIBUTION CORPORATION | C190: NO RATE CLASS | D190: NO RATE CLASS | E190: ESPANOLA REGIONAL HYDRO DISTRIBUTION CORPORATION_NO RATE CLASS SERVICE CLASSIFICATION | F190: 0 | G190: 0 | H190: 0 | I190: 0 | J190: 0 | K190: 0 | L190: 0 | M190: 0 | P190: 0 | Q190: 0 | R190: 0 | S190: 0
A191: 2022 | B191: ESPANOLA REGIONAL HYDRO DISTRIBUTION CORPORATION | C191: RESIDENTIAL | D191: RESIDENTIAL | E191: ESPANOLA REGIONAL HYDRO DISTRIBUTION CORPORATION_RESIDENTIAL SERVICE CLASSIFICATION | F191: 422979.32 | G191: 0 | H191: 30589518.33 | I191: 0 | J191: 0 | K191: 0 | L191: 0 | M191: 0 | N191: 0 | O191: 0 | P191: 30589518.33 | Q191: 0 | R191: 31012497.65 | S191: 0
A192: 2022 | B192: ESPANOLA REGIONAL HYDRO DISTRIBUTION CORPORATION | C192: SENTINEL LIGHTING CONNECTIONS | D192: SENTINEL LIGHTING | E192: ESPANOLA REGIONAL HYDRO DISTRIBUTION CORPORATION_SENTINEL LIGHTING SERVICE CLASSIFICATION | F192: 0 | G192: 0 | H192: 22647.6 | I192: 64.8 | J192: 0 | K192: 0 | L192: 0 | M192: 0 | N192: 0 | O192: 0 | P192: 22647.6 | Q192: 64.8 | R192: 22647.6 | S192: 64.8
A193: 2022 | B193: ESPANOLA REGIONAL HYDRO DISTRIBUTION CORPORATION | C193: STREET LIGHTING CONNECTIONS | D193: STREET LIGHTING | E193: ESPANOLA REGIONAL HYDRO DISTRIBUTION CORPORATION_STREET LIGHTING SERVICE CLASSIFICATION | F193: 168203.2 | G193: 543 | H193: 0 | I193: 0 | J193: 53117 | K193: 200.2 | L193: 0 | M193: 0 | N193: 0 | O193: 0 | P193: 53117 | Q193: 200.2 | R193: 221320.2 | S193: 743.6
A194: 2022 | B194: ESPANOLA REGIONAL HYDRO DISTRIBUTION CORPORATION | C194: UNMETERED SCATTERED LOAD CONNECTIONS | D194: UNMETERED SCATTERED LOAD | E194: ESPANOLA REGIONAL HYDRO DISTRIBUTION CORPORATION_UNMETERED SCATTERED LOAD SERVICE CLASSIFICATION | F194: 10764 | G194: 0 | H194: 112420 | I194: 0 | J194: 0 | K194: 0 | L194: 0 | M194: 0 | N194: 0 | O194: 0 | P194: 112420 | Q194: 0 | R194: 123184 | S194: 0
A195: 2022 | B195: FESTIVAL HYDRO INC. | C195: GENERAL SERVICE EQUAL TO OR GREATER THAN 50 KW | D195: GENERAL SERVICE 50 TO 4,999 KW | E195: FESTIVAL HYDRO INC._GENERAL SERVICE 50 TO 4,999 KW SERVICE CLASSIFICATION | F195: 59063635.12 | G195: 176444 | H195: 15923233.96 | I195: 44340.23 | J195: 262278261.3 | K195: 657587.53 | L195: 2664877.75 | M195: 4791.609863 | N195: 0 | O195: 0 | P195: 280866373.1 | Q195: 706719.37 | R195: 339930008.2 | S195: 883163.99
A196: 2022 | B196: FESTIVAL HYDRO INC. | C196: GENERAL SERVICE LESS THAN 50 KW | D196: GENERAL SERVICE LESS THAN 50 KW | E196: FESTIVAL HYDRO INC._GENERAL SERVICE LESS THAN 50 KW SERVICE CLASSIFICATION | F196: 14237195.35 | G196: 0 | H196: 58332302.4 | I196: 0 | J196: 0 | K196: 0 | L196: 0 | M196: 0 | N196: 0 | O196: 0 | P196: 58332302.4 | Q196: 0 | R196: 72569497.75 | S196: 0
A197: 2022 | B197: FESTIVAL HYDRO INC. | C197: LARGE USER | D197: LARGE USE | E197: FESTIVAL HYDRO INC._LARGE USE SERVICE CLASSIFICATION | F197: 0 | G197: 0 | H197: 0 | I197: 0 | J197: 28340498.6 | K197: 41848.72 | L197: 546707.1875 | M197: 23848.89062 | N197: 0 | O197: 0 | P197: 28887205.78 | Q197: 65697.61 | R197: 28887205.78 | S197: 65697.61
A198: 2022 | B198: FESTIVAL HYDRO INC. | C198: NO RATE CLASS | D198: NO RATE CLASS | E198: FESTIVAL HYDRO INC._NO RATE CLASS SERVICE CLASSIFICATION | F198: 0 | G198: 0 | H198: 0 | I198: 0 | J198: 0 | K198: 0 | L198: 0 | M198: 0 | N198: 254642112 | O198: 569224.8125 | P198: 0 | Q198: 0 | R198: 0 | S198: 0
A199: 2022 | B199: FESTIVAL HYDRO INC. | C199: RESIDENTIAL | D199: RESIDENTIAL | E199: FESTIVAL HYDRO INC._RESIDENTIAL SERVICE CLASSIFICATION | F199: 3480252.9 | G199: 0 | H199: 152372933.2 | I199: 0 | J199: 0 | K199: 0 | L199: 0 | M199: 0 | N199: 0 | O199: 0 | P199: 152372933.2 | Q199: 0 | R199: 155853186.1 | S199: 0
A200: 2022 | B200: FESTIVAL HYDRO INC. | C200: SENTINEL LIGHTING CONNECTIONS | D200: SENTINEL LIGHTING | E200: FESTIVAL HYDRO INC._SENTINEL LIGHTING SERVICE CLASSIFICATION | F200: 75 | G200: 0 | H200: 95916.94 | I200: 266.64 | J200: 0 | K200: 0 | L200: 0 | M200: 0 | N200: 0 | O200: 0 | P200: 95916.94 | Q200: 266.64 | R200: 95991.94 | S200: 266.64
A201: 2022 | B201: FESTIVAL HYDRO INC. | C201: STREET LIGHTING CONNECTIONS | D201: STREET LIGHTING | E201: FESTIVAL HYDRO INC._STREET LIGHTING SERVICE CLASSIFICATION | F201: 2218500.03 | G201: 5996 | H201: 110292.46 | I201: 229.31 | J201: 0 | K201: 0 | L201: 0 | M201: 0 | N201: 0 | O201: 0 | P201: 110292.46 | Q201: 229.31 | R201: 2328792.49 | S201: 6225.79
A202: 2022 | B202: FESTIVAL HYDRO INC. | C202: UNMETERED SCATTERED LOAD CONNECTIONS | D202: UNMETERED SCATTERED LOAD | E202: FESTIVAL HYDRO INC._UNMETERED SCATTERED LOAD SERVICE CLASSIFICATION | F202: 62420.02 | G202: 0 | H202: 334527.44 | I202: 0 | J202: 754860.92 | K202: 0 | L202: 0 | M202: 0 | N202: 0 | O202: 0 | P202: 1089388.36 | Q202: 0 | R202: 1151808.38 | S202: 0
... 334 more rows

Sheet hidden1 (hidden)
A1: =IF('DELETE 3. Rate Classes'!L17=1, 'DELETE 3. Rate Classes'!#REF!, "") ->  | B1: 1
A2: =IF('DELETE 3. Rate Classes'!L18=1, 'DELETE 3. Rate Classes'!#REF!, "") ->  | B2: 2
A3: =IF('DELETE 3. Rate Classes'!L19=1, 'DELETE 3. Rate Classes'!#REF!, "") ->  | B3: 3
A4: =IF('DELETE 3. Rate Classes'!L20=1, 'DELETE 3. Rate Classes'!#REF!, "") ->  | B4: 4
A5: =IF('DELETE 3. Rate Classes'!L21=1, 'DELETE 3. Rate Classes'!#REF!, "") ->  | B5: 5
A6: =IF('DELETE 3. Rate Classes'!L22=1, 'DELETE 3. Rate Classes'!#REF!, "") ->  | B6: 6
A7: =IF('DELETE 3. Rate Classes'!L23=1, 'DELETE 3. Rate Classes'!#REF!, "") ->  | B7: 7
A8: =IF('DELETE 3. Rate Classes'!L24=1, 'DELETE 3. Rate Classes'!#REF!, "") ->  | B8: 8
A9: =IF('DELETE 3. Rate Classes'!L25=1, 'DELETE 3. Rate Classes'!#REF!, "") ->  | B9: 9
A10: =IF('DELETE 3. Rate Classes'!L26=1, 'DELETE 3. Rate Classes'!#REF!, "") ->  | B10: 10
A11: =IF('DELETE 3. Rate Classes'!L27=1, 'DELETE 3. Rate Classes'!#REF!, "") ->  | B11: 11
A12: =IF('DELETE 3. Rate Classes'!L28=1, 'DELETE 3. Rate Classes'!#REF!, "") ->  | B12: 12
A13: =IF('DELETE 3. Rate Classes'!L29=1, 'DELETE 3. Rate Classes'!#REF!, "") ->  | B13: 13
A14: =IF('DELETE 3. Rate Classes'!L30=1, 'DELETE 3. Rate Classes'!#REF!, "") ->  | B14: 14
A15: =IF('DELETE 3. Rate Classes'!L31=1, 'DELETE 3. Rate Classes'!#REF!, "") ->  | B15: 15
A16: =IF('DELETE 3. Rate Classes'!L32=1, 'DELETE 3. Rate Classes'!#REF!, "") ->  | B16: 16
A17: =IF('DELETE 3. Rate Classes'!L33=1, 'DELETE 3. Rate Classes'!#REF!, "") ->  | B17: 17
A18: =IF('DELETE 3. Rate Classes'!L34=1, 'DELETE 3. Rate Classes'!#REF!, "") ->  | B18: 18
A19: =IF('DELETE 3. Rate Classes'!L35=1, 'DELETE 3. Rate Classes'!#REF!, "") ->  | B19: 19
A20: =IF('DELETE 3. Rate Classes'!L36=1, 'DELETE 3. Rate Classes'!#REF!, "") ->  | B20: 20
A21: =IF('DELETE 3. Rate Classes'!L37=1, 'DELETE 3. Rate Classes'!#REF!, "") ->  | B21: 21
A22: =IF('DELETE 3. Rate Classes'!L38=1, 'DELETE 3. Rate Classes'!#REF!, "") ->  | B22: 22
